Body_Code,Body_Name,Service,Posting Date,GL Code,GL Code Desc,Doc Number,Doc Net Amount,Supplier Name
http://statistics.data.gov.uk/id/local-authority/38,Oxfordshire County Council,CHC Fast Track - Care Homes - Over 65,10/03/2022,5687,,3111140705,"-58,621.45",SANCTUARY CARE PROPERTY (2) LTD
http://statistics.data.gov.uk/id/local-authority/38,Oxfordshire County Council,CHC Fast Track - Care Homes - Over 65,10/03/2022,5687,,3111141336,"-42,000.00",The Grange Care Centre
http://statistics.data.gov.uk/id/local-authority/38,Oxfordshire County Council,CHC Fast Track - Care Homes - Over 65,10/03/2022,5687,,3111139756,"-32,000.00",GCH (St Katherines) Ltd
http://statistics.data.gov.uk/id/local-authority/38,Oxfordshire County Council,Continuing Care - Care Homes - 65+,10/03/2022,5687,,3111141229,"-31,590.00",St Lukes Nursing Home (Oxford)
http://statistics.data.gov.uk/id/local-authority/38,Oxfordshire County Council,CHC Fast Track - Care Homes - Over 65,10/03/2022,5687,,3111141892,"-31,063.56",Orders of St John
http://statistics.data.gov.uk/id/local-authority/38,Oxfordshire County Council,BRIDGES GENERAL,04/03/2022,5526,Payments to Private Contractors,2200961555,"-29,247.48",Milestone Infrastructure Limited
http://statistics.data.gov.uk/id/local-authority/38,Oxfordshire County Council,CHC Fast Track - Care Homes - Over 65,10/03/2022,5687,,3111139643,"-28,571.41",LAWTON GROUP LTD
http://statistics.data.gov.uk/id/local-authority/38,Oxfordshire County Council,Insight & Corporate Programmes,08/03/2022,5190,Subscriptions,2200962989,"-27,500.00",Inphase Limited
http://statistics.data.gov.uk/id/local-authority/38,Oxfordshire County Council,Insight & Corporate Programmes,10/03/2022,5190,Subscriptions,2200965103,"-27,500.00",Inphase Limited
http://statistics.data.gov.uk/id/local-authority/38,Oxfordshire County Council,Care Homes - Over 65 Memory & Cognition,10/03/2022,5685,B*Cycle tracks,3111138336,"-26,990.74",Elysium Neurological Services (Badb
http://statistics.data.gov.uk/id/local-authority/38,Oxfordshire County Council,Continuing Care - Care Homes - 65+,10/03/2022,5687,,3111138321,"-26,639.22",Elysium Neurological Services (Badb
http://statistics.data.gov.uk/id/local-authority/38,Oxfordshire County Council,Unregulated Placements,25/03/2022,2040,Agency Staff,2200971803,"-24,120.00",Serenity Welfare
http://statistics.data.gov.uk/id/local-authority/38,Oxfordshire County Council,YPSH Int Prop Management,30/03/2022,4861,Hired and Contracted Services,3111152462,"-23,925.06",Response Organisation
http://statistics.data.gov.uk/id/local-authority/38,Oxfordshire County Council,Support at Home U65 Learning Disability,10/03/2022,5688,,3111140074,"-23,265.00",Solden Hill House Ltd
http://statistics.data.gov.uk/id/local-authority/38,Oxfordshire County Council,CHC Fast Track - Care Homes - Over 65,10/03/2022,5687,,3111141290,"-22,583.12",The Close Nursing Home
http://statistics.data.gov.uk/id/local-authority/38,Oxfordshire County Council,Support at Home 65+ Physical Support,02/03/2022,5526,Payments to Private Contractors,2200960877,"-21,992.42",Charterville Care At Home Ltd
http://statistics.data.gov.uk/id/local-authority/38,Oxfordshire County Council,GRASS CUTTING DIST.,28/03/2022,5526,Payments to Private Contractors,2200972508,"-20,794.69",Oxford Direct Services Ltd
http://statistics.data.gov.uk/id/local-authority/38,Oxfordshire County Council,CHC Fast Track - Care Homes - Over 65,10/03/2022,5687,,3111141339,"-20,466.40",The Grange Care Centre
http://statistics.data.gov.uk/id/local-authority/38,Oxfordshire County Council,Support at Home U65 Learning Disability,10/03/2022,5688,,3111139881,"-19,808.47",UNITED RESPONSE
http://statistics.data.gov.uk/id/local-authority/38,Oxfordshire County Council,COMM DRAWDOWN FUNDNG,04/03/2022,8102,Payments to main contractor,2200961563,"-19,765.10",Milestone Infrastructure Limited
http://statistics.data.gov.uk/id/local-authority/38,Oxfordshire County Council,ICT Operations & Maintenance,30/03/2022,5072,Telephone - Equipment,2200973521,"-19,234.59",Vodafone
http://statistics.data.gov.uk/id/local-authority/38,Oxfordshire County Council,DEFECT REPAIRS,04/03/2022,5526,Payments to Private Contractors,2200961551,"-18,572.47",Milestone Infrastructure Limited
http://statistics.data.gov.uk/id/local-authority/38,Oxfordshire County Council,Continuing Care - Care Homes - Under 65,10/03/2022,5687,,3111141292,"-18,560.00",The Close Nursing Home
http://statistics.data.gov.uk/id/local-authority/38,Oxfordshire County Council,COMM DRAWDOWN FUNDNG,04/03/2022,8102,Payments to main contractor,2200961565,"-16,760.90",Milestone Infrastructure Limited
http://statistics.data.gov.uk/id/local-authority/38,Oxfordshire County Council,Funded Nursing Care  - Over 65,10/03/2022,5692,,3111140857,"-16,255.44",SANCTUARY CARE LTD
http://statistics.data.gov.uk/id/local-authority/38,Oxfordshire County Council,Care Homes - Over 65 Memory & Cognition,31/03/2022,5686,,3111152977,"-15,366.86",Barchester Healthcare
http://statistics.data.gov.uk/id/local-authority/38,Oxfordshire County Council,Support at Home U65 Learning Disability,10/03/2022,5688,,3111139869,"-15,348.74",UNITED RESPONSE
http://statistics.data.gov.uk/id/local-authority/38,Oxfordshire County Council,Mainstream Res,30/03/2022,5558,,3111152815,"-15,256.26",Cambian Childcare Ltd
http://statistics.data.gov.uk/id/local-authority/38,Oxfordshire County Council,Covid 19 CHC,10/03/2022,5687,,3111138561,"-14,100.00",Grace Care Service Ltd T/A Burford
http://statistics.data.gov.uk/id/local-authority/38,Oxfordshire County Council,Care Homes - Over 65 Physical Sypport,10/03/2022,5685,B*Cycle tracks,3111139340,"-13,525.72",Coxwell Hall & Mews Nursing Home
http://statistics.data.gov.uk/id/local-authority/38,Oxfordshire County Council,Care Homes - Over 65 Mental Health,10/03/2022,5686,,3111141021,"-13,392.85",Rosebank Care Home
http://statistics.data.gov.uk/id/local-authority/38,Oxfordshire County Council,Funded Nursing Care  - Over 65,10/03/2022,5692,,3111142236,"-13,260.18",Orders of St John
http://statistics.data.gov.uk/id/local-authority/38,Oxfordshire County Council,Funded Nursing Care  - Over 65,10/03/2022,5692,,3111140966,"-12,682.14",SANCTUARY CARE LTD
http://statistics.data.gov.uk/id/local-authority/38,Oxfordshire County Council,COMM DRAWDOWN FUNDNG,04/03/2022,8004,Design Consultant,2200961546,"-12,429.67",Milestone Infrastructure Limited
http://statistics.data.gov.uk/id/local-authority/38,Oxfordshire County Council,CHC Fast Track - Care Homes - Over 65,10/03/2022,5687,,3111138276,"-12,400.00",Acacia Lodge Care Home
http://statistics.data.gov.uk/id/local-authority/38,Oxfordshire County Council,Care Homes - Over 65 Memory & Cognition,10/03/2022,5686,,3111140336,"-11,892.86",Freeland House
http://statistics.data.gov.uk/id/local-authority/38,Oxfordshire County Council,Support at Home 65+ Physical Support,10/03/2022,5686,,3111140740,"-10,892.85",Middletown Grange Care Home
http://statistics.data.gov.uk/id/local-authority/38,Oxfordshire County Council,COMM DRAWDOWN FUNDNG,17/03/2022,8510,Other expenses,2200967872,"-10,512.00",Stantec UK Limited
http://statistics.data.gov.uk/id/local-authority/38,Oxfordshire County Council,Care Homes - Over 65 Physical Sypport,10/03/2022,5687,,3111138528,"-10,243.72",METHODIST HOMES
http://statistics.data.gov.uk/id/local-authority/38,Oxfordshire County Council,Support at Home U65 Learning Disability,10/03/2022,5688,,3111139664,"-10,220.37",The Brandon Trust
http://statistics.data.gov.uk/id/local-authority/38,Oxfordshire County Council,ASC Workforce Capacity Fund,29/03/2022,4790,"Publicity, Promotions and Advertisement",2200972665,"-10,100.00",Oxfordshire Association of Care
http://statistics.data.gov.uk/id/local-authority/38,Oxfordshire County Council,Care Homes - Over 65 Memory & Cognition,28/03/2022,5685,B*Cycle tracks,3111149311,"-10,006.63",Lashbrook House Care Home
http://statistics.data.gov.uk/id/local-authority/38,Oxfordshire County Council,Support at Home U65 Learning Disability,10/03/2022,5688,,3111139865,"-9,697.60",UNITED RESPONSE
http://statistics.data.gov.uk/id/local-authority/38,Oxfordshire County Council,Care Homes - Over 65 Physical Sypport,10/03/2022,5687,,3111140175,"-9,450.00",Cedar Court Care Home
http://statistics.data.gov.uk/id/local-authority/38,Oxfordshire County Council,Support at Home 65+ Physical Support,10/03/2022,5686,,3111139468,"-9,035.01",Enstone House
http://statistics.data.gov.uk/id/local-authority/38,Oxfordshire County Council,Vegetation Mgmt,04/03/2022,5526,Payments to Private Contractors,2200961560,"-8,550.05",Milestone Infrastructure Limited
http://statistics.data.gov.uk/id/local-authority/38,Oxfordshire County Council,Covid 19 CHC,10/03/2022,5687,,3111141766,"-8,477.15",Orders of St John
http://statistics.data.gov.uk/id/local-authority/38,Oxfordshire County Council,CHC Fast Track - Care Homes - Over 65,10/03/2022,5687,,3111138677,"-8,357.14",Chacombe Park Care Home
http://statistics.data.gov.uk/id/local-authority/38,Oxfordshire County Council,Support at Home 65+ Physical Support,10/03/2022,5687,,3111140221,"-8,328.57",Fewcott Healthcare Ltd
http://statistics.data.gov.uk/id/local-authority/38,Oxfordshire County Council,,23/03/2022,1448,Blackfield Inc & Exp A/c,3111148272,"-8,312.08",OCC One Time Vendor
http://statistics.data.gov.uk/id/local-authority/38,Oxfordshire County Council,COUNTY PRINT FINSHRS,31/03/2022,4705,Printing,2200974240,"-8,275.00",Fine Print (Services) Ltd
http://statistics.data.gov.uk/id/local-authority/38,Oxfordshire County Council,IDO Planning Team,21/03/2022,2040,Agency Staff,2200969082,"-8,000.00",Stantec UK Limited
http://statistics.data.gov.uk/id/local-authority/38,Oxfordshire County Council,,09/03/2022,1448,Blackfield Inc & Exp A/c,3111137339,"-7,497.72",OCC One Time Vendor
http://statistics.data.gov.uk/id/local-authority/38,Oxfordshire County Council,,23/03/2022,1448,Blackfield Inc & Exp A/c,3111148273,"-7,497.72",OCC One Time Vendor
http://statistics.data.gov.uk/id/local-authority/38,Oxfordshire County Council,DRAINAGE REPAIRS,09/03/2022,5526,Payments to Private Contractors,2200963840,"-7,480.62",Milestone Infrastructure Limited
http://statistics.data.gov.uk/id/local-authority/38,Oxfordshire County Council,VOIDS/VACANCY COSTS,10/03/2022,3945,Rent,3111139412,"-7,430.06",Chrysalis Supported Association Ltd
http://statistics.data.gov.uk/id/local-authority/38,Oxfordshire County Council,Care Homes - Over 65 Physical Sypport,10/03/2022,5685,B*Cycle tracks,3111138494,"-7,212.51",METHODIST HOMES
http://statistics.data.gov.uk/id/local-authority/38,Oxfordshire County Council,Support at Home 65+ Physical Support,10/03/2022,5687,,3111139908,"-6,757.14",Green Gates NH (BUPA)
http://statistics.data.gov.uk/id/local-authority/38,Oxfordshire County Council,Support at Home 65+ Physical Support,10/03/2022,5685,B*Cycle tracks,3111140208,"-6,712.51",Fewcott Healthcare Ltd
http://statistics.data.gov.uk/id/local-authority/38,Oxfordshire County Council,Care Homes - Under 65 Memory & Cognition,10/03/2022,5686,,3111142048,"-6,489.43",OSJ  - Old Station House
http://statistics.data.gov.uk/id/local-authority/38,Oxfordshire County Council,Covid 19 CHC,10/03/2022,5687,,3111141440,"-6,432.29",The Langston
http://statistics.data.gov.uk/id/local-authority/38,Oxfordshire County Council,Support at Home U65 Physical Support,10/03/2022,5686,,3111138929,"-6,000.00",Cherwood House Care Centre
http://statistics.data.gov.uk/id/local-authority/38,Oxfordshire County Council,COMM DRAWDOWN FUNDNG,01/03/2022,8103,Payments to sub contractor,2200959934,"-5,965.00",Oxford Direct Services Ltd
http://statistics.data.gov.uk/id/local-authority/38,Oxfordshire County Council,Support at Home 65+ Physical Support,10/03/2022,5686,,3111141168,"-5,942.85",St Johns Residential Home
http://statistics.data.gov.uk/id/local-authority/38,Oxfordshire County Council,Care Homes - Over 65 Physical Sypport,10/03/2022,5687,,3111140707,"-5,875.20",Merryfield Nursing Home
http://statistics.data.gov.uk/id/local-authority/38,Oxfordshire County Council,CHC Fast Track - Care Homes - Over 65,10/03/2022,5687,,3111140593,"-5,142.86",Mill House Nursing Home
http://statistics.data.gov.uk/id/local-authority/38,Oxfordshire County Council,Support at Home 65+ Physical Support,10/03/2022,5685,B*Cycle tracks,3111141633,"-5,081.54",MARIA MALLABAND CARE GROUP
http://statistics.data.gov.uk/id/local-authority/38,Oxfordshire County Council,Support at Home 65+ Mental Health,10/03/2022,5686,,3111141173,"-4,986.43",St Johns Residential Home
http://statistics.data.gov.uk/id/local-authority/38,Oxfordshire County Council,Support at Home 65+ Mental Health,01/03/2022,5699,,3111132617,"-4,928.32",Agincare UK Ltd
http://statistics.data.gov.uk/id/local-authority/38,Oxfordshire County Council,Independent Foster,24/03/2022,5559,,3111148503,"-4,895.78",FOSTERCARE UK LTD
http://statistics.data.gov.uk/id/local-authority/38,Oxfordshire County Council,Covid 19 CHC,10/03/2022,5687,,3111138350,"-4,800.00",Beech Court Nursing Home
http://statistics.data.gov.uk/id/local-authority/38,Oxfordshire County Council,Support at Home 65+ Physical Support,10/03/2022,5686,,3111142210,"-4,708.00",Orders of St John
http://statistics.data.gov.uk/id/local-authority/38,Oxfordshire County Council,Covid 19 CHC,10/03/2022,5687,,3111140179,"-4,571.43",Beech Haven Care Home
http://statistics.data.gov.uk/id/local-authority/38,Oxfordshire County Council,Swindon Adoption Support Fund,30/03/2022,4861,Hired and Contracted Services,2200973580,"-4,536.00",Connecting Roots
http://statistics.data.gov.uk/id/local-authority/38,Oxfordshire County Council,Care Homes - Over 65 Physical Sypport,10/03/2022,5687,,3111141612,"-4,471.97",MARIA MALLABAND CARE GROUP
http://statistics.data.gov.uk/id/local-authority/38,Oxfordshire County Council,Support at Home 65+ Physical Support,10/03/2022,5687,,3111139923,"-4,457.14",Green Gates NH (BUPA)
http://statistics.data.gov.uk/id/local-authority/38,Oxfordshire County Council,Support at Home U65 Learning Disability,10/03/2022,5690,,3111137941,"-4,429.82",Turnstyle
http://statistics.data.gov.uk/id/local-authority/38,Oxfordshire County Council,COMM DRAWDOWN FUNDNG,10/03/2022,8102,Payments to main contractor,3111137691,"-4,140.22",Oxford Direct Services Ltd
http://statistics.data.gov.uk/id/local-authority/38,Oxfordshire County Council,CHC Fast Track - Care Homes - Over 65,10/03/2022,5687,,3111141408,"-4,071.43",Four Seasons (Headington) Ltd
http://statistics.data.gov.uk/id/local-authority/38,Oxfordshire County Council,CHC Fast Track - Care Homes - Over 65,10/03/2022,5687,,3111138564,"-4,000.00",Grace Care Service Ltd T/A Burford
http://statistics.data.gov.uk/id/local-authority/38,Oxfordshire County Council,ICT Operations & Maintenance,04/03/2022,5072,Telephone - Equipment,2200961542,"-4,000.00",Vodafone
http://statistics.data.gov.uk/id/local-authority/38,Oxfordshire County Council,Care Homes - Over 65 Physical Sypport,10/03/2022,5686,,3111141888,"-3,959.06",Orders of St John
http://statistics.data.gov.uk/id/local-authority/38,Oxfordshire County Council,Care Homes - Over 65 Memory & Cognition,10/03/2022,5686,,3111139575,"-3,953.71",Framland
http://statistics.data.gov.uk/id/local-authority/38,Oxfordshire County Council,Covid 19 CHC,10/03/2022,5687,,3111140433,"-3,900.00",Heathfield House Nursing Home
http://statistics.data.gov.uk/id/local-authority/38,Oxfordshire County Council,COMM DRAWDOWN FUNDNG,04/03/2022,8102,Payments to main contractor,2200961558,"-3,753.24",Milestone Infrastructure Limited
http://statistics.data.gov.uk/id/local-authority/38,Oxfordshire County Council,Support at Home 65+ Physical Support,10/03/2022,5686,,3111142174,"-3,745.00",Orders of St John
http://statistics.data.gov.uk/id/local-authority/38,Oxfordshire County Council,Care Homes - Under 65 MH - OBC Contract,10/03/2022,5686,,3111138315,"-3,715.71",Oxford Group Home Organ
http://statistics.data.gov.uk/id/local-authority/38,Oxfordshire County Council,Support at Home U65 Learning Disability,10/03/2022,5690,,3111138125,"-3,579.43",You and Me Supported Living
http://statistics.data.gov.uk/id/local-authority/38,Oxfordshire County Council,High Cost INMSS Placements,14/03/2022,5537,Payments to Other Establishments,2200966474,"-3,562.11",Kedleston Group
http://statistics.data.gov.uk/id/local-authority/38,Oxfordshire County Council,Vulnerable Learners,10/03/2022,4539,"Books, DVDs and CDs",2200965108,"-3,460.28",ORAL HEALTH FOUNDATION
http://statistics.data.gov.uk/id/local-authority/38,Oxfordshire County Council,Care Homes - Under 65 Leaning Disability,10/03/2022,5686,,3111141558,"-3,441.60",Voyage
http://statistics.data.gov.uk/id/local-authority/38,Oxfordshire County Council,COMM DRAWDOWN FUNDNG,17/03/2022,8004,Design Consultant,2200967876,"-3,420.00",Stantec UK Limited
http://statistics.data.gov.uk/id/local-authority/38,Oxfordshire County Council,Care Homes - Over 65 Memory & Cognition,10/03/2022,5687,,3111138562,"-3,418.17",Grace Care Service Ltd T/A Burford
http://statistics.data.gov.uk/id/local-authority/38,Oxfordshire County Council,Covid 19 CHC,28/03/2022,5687,,3111149671,"-3,400.00",Lashbrook House Care Home
http://statistics.data.gov.uk/id/local-authority/38,Oxfordshire County Council,Care Homes - Over 65 Physical Sypport,28/03/2022,5685,B*Cycle tracks,3111149312,"-3,369.43",Lashbrook House Care Home
http://statistics.data.gov.uk/id/local-authority/38,Oxfordshire County Council,Support at Home 65+ Physical Support,10/03/2022,5687,,3111141913,"-3,317.00",Orders of St John
http://statistics.data.gov.uk/id/local-authority/38,Oxfordshire County Council,Care Homes - Under 65 Physical Sypport,10/03/2022,5687,,3111140114,"-3,299.92",Cedar Court Care Home
http://statistics.data.gov.uk/id/local-authority/38,Oxfordshire County Council,Support at Home 65+ Memory & Cognition,10/03/2022,5685,B*Cycle tracks,3111138353,"-3,187.14",Beech Court Nursing Home
http://statistics.data.gov.uk/id/local-authority/38,Oxfordshire County Council,Covid 19 CHC,10/03/2022,5687,,3111141382,"-3,107.14",Four Seasons (Headington) Ltd
http://statistics.data.gov.uk/id/local-authority/38,Oxfordshire County Council,OCCUPATIONAL HEALTH,14/03/2022,4859,Medical and Counselling Fees,2200966238,"-3,060.72",People Asset Management
http://statistics.data.gov.uk/id/local-authority/38,Oxfordshire County Council,Support at Home U65 Physical Support,01/03/2022,5696,,3111132648,"-3,021.00",All Care GB Ltd
http://statistics.data.gov.uk/id/local-authority/38,Oxfordshire County Council,CHC Fast Track - Sup at Home - Under 65,02/03/2022,5691,,3111135487,"-2,964.00",Bicester PA and Care LLP
http://statistics.data.gov.uk/id/local-authority/38,Oxfordshire County Council,Continuing Care - Care Homes - 65+,10/03/2022,5687,,3111140571,"-2,914.29",Mill House Nursing Home
http://statistics.data.gov.uk/id/local-authority/38,Oxfordshire County Council,SEN TRANSPORT,10/03/2022,4330,Transport to School Activities,3111137703,"-2,903.58",The Gallery Trust
http://statistics.data.gov.uk/id/local-authority/38,Oxfordshire County Council,Care Homes - Over 65 Memory & Cognition,10/03/2022,5687,,3111140341,"-2,842.34",The Julie Richardson Nursing Home
http://statistics.data.gov.uk/id/local-authority/38,Oxfordshire County Council,Care Homes - Over 65 Memory & Cognition,10/03/2022,5686,,3111141935,"-2,782.00",Orders of St John
http://statistics.data.gov.uk/id/local-authority/38,Oxfordshire County Council,Support at Home U65 Learning Disability,10/03/2022,5688,,3111139878,"-2,770.74",UNITED RESPONSE
http://statistics.data.gov.uk/id/local-authority/38,Oxfordshire County Council,Care Homes - Over 65 Other Soc Isolation,10/03/2022,5687,,3111140681,"-2,754.00",SANCTUARY CARE PROPERTY (2) LTD
http://statistics.data.gov.uk/id/local-authority/38,Oxfordshire County Council,CHILD OBESITY,02/03/2022,4861,Hired and Contracted Services,2200960879,"-2,750.00",Zuhura Plummer
http://statistics.data.gov.uk/id/local-authority/38,Oxfordshire County Council,Funded Nursing Care  - Over 65,10/03/2022,5692,,3111138150,"-2,733.60",Abbey Crest Nursing Home
http://statistics.data.gov.uk/id/local-authority/38,Oxfordshire County Council,DEFECT REPAIRS,04/03/2022,5526,Payments to Private Contractors,2200961557,"-2,654.29",Milestone Infrastructure Limited
http://statistics.data.gov.uk/id/local-authority/38,Oxfordshire County Council,SEN TRANSPORT,10/03/2022,4330,Transport to School Activities,3111137701,"-2,565.00",The Gallery Trust
http://statistics.data.gov.uk/id/local-authority/38,Oxfordshire County Council,Care Homes - Over 65 Physical Sypport,10/03/2022,5686,,3111141438,"-2,491.71",METHODIST HOMES
http://statistics.data.gov.uk/id/local-authority/38,Oxfordshire County Council,Support at Home 65+ Physical Support,17/03/2022,5696,,3111145867,"-2,483.63",Orders of St John Care Trust
http://statistics.data.gov.uk/id/local-authority/38,Oxfordshire County Council,Care Homes - Over 65 Memory & Cognition,10/03/2022,5685,B*Cycle tracks,3111140654,"-2,458.69",Meadow View Nursing Home
http://statistics.data.gov.uk/id/local-authority/38,Oxfordshire County Council,Support at Home U65 Learning Disability,10/03/2022,5690,,3111137945,"-2,442.86",Turnstyle
http://statistics.data.gov.uk/id/local-authority/38,Oxfordshire County Council,Funded Nursing Care  - Over 65,10/03/2022,5692,,3111139355,"-2,412.00",CUMNOR HILL HOUSE
http://statistics.data.gov.uk/id/local-authority/38,Oxfordshire County Council,Support at Home 65+ Memory & Cognition,10/03/2022,5685,B*Cycle tracks,3111141795,"-2,404.20",Orders of St John
http://statistics.data.gov.uk/id/local-authority/38,Oxfordshire County Council,Continuing Care - Care Homes - Under 65,10/03/2022,5687,,3111138179,"-2,357.14",Abbey Crest Nursing Home
http://statistics.data.gov.uk/id/local-authority/38,Oxfordshire County Council,Covid 19 CHC,10/03/2022,5687,,3111140240,"-2,357.14",Fewcott Healthcare Ltd
http://statistics.data.gov.uk/id/local-authority/38,Oxfordshire County Council,Support at Home 65+ Memory & Cognition,10/03/2022,5686,,3111142233,"-2,354.00",Orders of St John
http://statistics.data.gov.uk/id/local-authority/38,Oxfordshire County Council,Covid 19 CHC,10/03/2022,5687,,3111140512,"-2,321.43",Huntercombe Hall Ltd
http://statistics.data.gov.uk/id/local-authority/38,Oxfordshire County Council,Support at Home 65+ Physical Support,29/03/2022,5699,,3111150541,"-2,288.10",PLL Care Services
http://statistics.data.gov.uk/id/local-authority/38,Oxfordshire County Council,Care Homes - Over 65 Memory & Cognition,10/03/2022,5687,,3111140744,"-2,285.71",Middletown Grange Care Home
http://statistics.data.gov.uk/id/local-authority/38,Oxfordshire County Council,Councillors Priorities Fund,02/03/2022,4940,Other Services,3111135496,"-2,250.00",Bladon Parish Council
http://statistics.data.gov.uk/id/local-authority/38,Oxfordshire County Council,LIABILITY,31/03/2022,3257,,3111153834,"-2,250.00",Weightmans LLP
http://statistics.data.gov.uk/id/local-authority/38,Oxfordshire County Council,Care Homes - Over 65 Physical Sypport,10/03/2022,5686,,3111138193,"-2,240.43",ACER HEALTHCARE LTD
http://statistics.data.gov.uk/id/local-authority/38,Oxfordshire County Council,Care Homes - Over 65 Physical Sypport,10/03/2022,5687,,3111140648,"-2,228.57",Meadow View Nursing Home
http://statistics.data.gov.uk/id/local-authority/38,Oxfordshire County Council,2 YEAR OLD FUNDING,02/03/2022,5537,Payments to Other Establishments,3111134867,"-2,181.12",NOAs Ark Nursery
http://statistics.data.gov.uk/id/local-authority/38,Oxfordshire County Council,Care Homes - Over 65 Memory & Cognition,10/03/2022,5687,,3111140955,"-2,143.14",SANCTUARY CARE LTD
http://statistics.data.gov.uk/id/local-authority/38,Oxfordshire County Council,Care Homes - Over 65 Physical Sypport,10/03/2022,5687,,3111140354,"-2,142.86",Freeland House
http://statistics.data.gov.uk/id/local-authority/38,Oxfordshire County Council,SEN TRANSPORT,10/03/2022,4330,Transport to School Activities,3111137699,"-2,052.00",The Gallery Trust
http://statistics.data.gov.uk/id/local-authority/38,Oxfordshire County Council,COMMUNITY & ROAD SAFETY,22/03/2022,3103,Other Training Courses and Qualification,2200970015,"-2,025.00",Windrush Bike Project CIC
http://statistics.data.gov.uk/id/local-authority/38,Oxfordshire County Council,Support at Home 65+ Memory & Cognition,01/03/2022,5699,,3111132818,"-2,020.45",YOD Ltd
http://statistics.data.gov.uk/id/local-authority/38,Oxfordshire County Council,CHC Fast Track - Care Homes - Over 65,10/03/2022,5687,,3111138538,"-1,950.00",Grace Care Service Ltd T/A Burford
http://statistics.data.gov.uk/id/local-authority/38,Oxfordshire County Council,OCCUPATIONAL HEALTH,14/03/2022,4859,Medical and Counselling Fees,2200966232,"-1,950.00",People Asset Management
http://statistics.data.gov.uk/id/local-authority/38,Oxfordshire County Council,SEN TRANSPORT,10/03/2022,5227,Other Transport Arrangements,3111137704,"-1,935.72",The Gallery Trust
http://statistics.data.gov.uk/id/local-authority/38,Oxfordshire County Council,Funded Nursing Care  - Over 65,10/03/2022,5692,,3111140726,"-1,902.80",Middletown Grange Care Home
http://statistics.data.gov.uk/id/local-authority/38,Oxfordshire County Council,Care Homes - Over 65 Memory & Cognition,10/03/2022,5686,,3111140453,"-1,875.00",Heathfield House Nursing Home
http://statistics.data.gov.uk/id/local-authority/38,Oxfordshire County Council,Care Homes - Over 65 Mental Health,14/03/2022,5686,,3111142784,"-1,838.58",Oxford Group Home Organ
http://statistics.data.gov.uk/id/local-authority/38,Oxfordshire County Council,Care Homes - Over 65 Memory & Cognition,10/03/2022,5685,B*Cycle tracks,3111140946,"-1,824.23",SANCTUARY CARE LTD
http://statistics.data.gov.uk/id/local-authority/38,Oxfordshire County Council,Care Homes - Over 65 Physical Sypport,10/03/2022,5686,,3111141868,"-1,819.00",Orders of St John
http://statistics.data.gov.uk/id/local-authority/38,Oxfordshire County Council,Care Homes - Over 65 Physical Sypport,10/03/2022,5686,,3111140944,"-1,806.86",SANCTUARY CARE LTD
http://statistics.data.gov.uk/id/local-authority/38,Oxfordshire County Council,Care Homes - Over 65 Memory & Cognition,10/03/2022,5687,,3111140436,"-1,800.00",Heathfield House Nursing Home
http://statistics.data.gov.uk/id/local-authority/38,Oxfordshire County Council,Care Homes - Over 65 Physical Sypport,14/03/2022,5686,,3111142775,"-1,760.58",Oxford Group Home Organ
http://statistics.data.gov.uk/id/local-authority/38,Oxfordshire County Council,SEN TRANSPORT,10/03/2022,5227,Other Transport Arrangements,3111137702,"-1,710.00",The Gallery Trust
http://statistics.data.gov.uk/id/local-authority/38,Oxfordshire County Council,Care Homes - Over 65 Physical Sypport,10/03/2022,5687,,3111141841,"-1,695.43",Orders of St John
http://statistics.data.gov.uk/id/local-authority/38,Oxfordshire County Council,Funded Nursing Care  - Over 65,10/03/2022,5692,,3111141707,"-1,669.66",Orders of St John
http://statistics.data.gov.uk/id/local-authority/38,Oxfordshire County Council,Continuing Care - Care Homes - 65+,10/03/2022,5687,,3111140561,"-1,657.14",Lincroft Meadow
http://statistics.data.gov.uk/id/local-authority/38,Oxfordshire County Council,Covid 19 CHC,10/03/2022,5687,,3111140745,"-1,578.57",ST ANNES RESIDENTIAL  HOME
http://statistics.data.gov.uk/id/local-authority/38,Oxfordshire County Council,Care Homes - Over 65 Physical Sypport,10/03/2022,5686,,3111141960,"-1,549.71",Orders of St John
http://statistics.data.gov.uk/id/local-authority/38,Oxfordshire County Council,Care Homes - Over 65 Physical Sypport,10/03/2022,5685,B*Cycle tracks,3111138849,"-1,528.06",Cherwood House Care Centre
http://statistics.data.gov.uk/id/local-authority/38,Oxfordshire County Council,Growth Management,30/03/2022,2040,Agency Staff,2200973473,"-1,517.25",WATERMAN ASPEN LTD
http://statistics.data.gov.uk/id/local-authority/38,Oxfordshire County Council,Independent Foster,17/03/2022,5559,,3111146022,"-1,514.32",Fostering Solutions Limited
http://statistics.data.gov.uk/id/local-authority/38,Oxfordshire County Council,GYPSY & TRAVELLER SV,22/03/2022,4000,Council Tax,2200969994,"-1,423.56",VOWH Council Tax
http://statistics.data.gov.uk/id/local-authority/38,Oxfordshire County Council,Care Homes - Over 65 Physical Sypport,10/03/2022,5687,,3111138560,"-1,402.50",Grace Care Service Ltd T/A Burford
http://statistics.data.gov.uk/id/local-authority/38,Oxfordshire County Council,Care Homes - Over 65 Physical Sypport,10/03/2022,5685,B*Cycle tracks,3111140096,"-1,395.82",HC ONE OVAL LIMITED
http://statistics.data.gov.uk/id/local-authority/38,Oxfordshire County Council,SEN TRANSPORT,10/03/2022,5227,Other Transport Arrangements,3111137700,"-1,368.00",The Gallery Trust
http://statistics.data.gov.uk/id/local-authority/38,Oxfordshire County Council,Care Homes - Over 65 Physical Sypport,10/03/2022,5685,B*Cycle tracks,3111138904,"-1,344.17",Cherwood House Care Centre
http://statistics.data.gov.uk/id/local-authority/38,Oxfordshire County Council,Support at Home 65+ Physical Support,01/03/2022,5699,,3111132834,"-1,343.01",YOD Ltd
http://statistics.data.gov.uk/id/local-authority/38,Oxfordshire County Council,Support at Home U65 Learning Disability,10/03/2022,5688,,3111139728,"-1,340.73",The Brandon Trust
http://statistics.data.gov.uk/id/local-authority/38,Oxfordshire County Council,Support at Home U65 Learning Disability,10/03/2022,5688,,3111139730,"-1,340.73",The Brandon Trust
http://statistics.data.gov.uk/id/local-authority/38,Oxfordshire County Council,Support at Home U65 Learning Disability,10/03/2022,5688,,3111139732,"-1,340.73",The Brandon Trust
http://statistics.data.gov.uk/id/local-authority/38,Oxfordshire County Council,Support at Home U65 Learning Disability,10/03/2022,5688,,3111139734,"-1,340.73",The Brandon Trust
http://statistics.data.gov.uk/id/local-authority/38,Oxfordshire County Council,Support at Home 65+ Physical Support,10/03/2022,5685,B*Cycle tracks,3111141345,"-1,331.82",The Grange Care Centre
http://statistics.data.gov.uk/id/local-authority/38,Oxfordshire County Council,Care Homes - Over 65 Physical Sypport,10/03/2022,5685,B*Cycle tracks,3111141333,"-1,291.91",The Grange Care Centre
http://statistics.data.gov.uk/id/local-authority/38,Oxfordshire County Council,Care Homes - Over 65 Physical Sypport,10/03/2022,5687,,3111142142,"-1,271.57",Orders of St John
http://statistics.data.gov.uk/id/local-authority/38,Oxfordshire County Council,MAINSTREAM-SECONDARY,30/03/2022,4322,"Season Tickets - Bus, Rail & Ferry",3111152879,"-1,266.30",Stagecoach Services Ltd
http://statistics.data.gov.uk/id/local-authority/38,Oxfordshire County Council,SEN TRANSPORT,01/03/2022,4330,Transport to School Activities,3111132864,"-1,260.00",Ash Cars (UK) Ltd
http://statistics.data.gov.uk/id/local-authority/38,Oxfordshire County Council,ARAP Around Care,23/03/2022,4330,Transport to School Activities,3111148472,"-1,222.72",Walters
http://statistics.data.gov.uk/id/local-authority/38,Oxfordshire County Council,MAINSTREAM-PRIMARY,23/03/2022,4330,Transport to School Activities,3111148473,"-1,222.72",Walters
http://statistics.data.gov.uk/id/local-authority/38,Oxfordshire County Council,MEADOWBROOK TRANSPT,01/03/2022,4330,Transport to School Activities,3111132863,"-1,200.00",Ash Cars (UK) Ltd
http://statistics.data.gov.uk/id/local-authority/38,Oxfordshire County Council,SEN Miscellaneous Expenditure,22/03/2022,4861,Hired and Contracted Services,2200969440,"-1,200.00",Develop My Child
http://statistics.data.gov.uk/id/local-authority/38,Oxfordshire County Council,Funded Nursing Care  - Over 65,10/03/2022,5692,,3111139994,"-1,072.00",Green Pastures Christian NH
http://statistics.data.gov.uk/id/local-authority/38,Oxfordshire County Council,Funded Nursing Care  - Over 65,10/03/2022,5692,,3111141257,"-1,072.00",Tall Trees
http://statistics.data.gov.uk/id/local-authority/38,Oxfordshire County Council,Care Homes - Over 65 Physical Sypport,10/03/2022,5686,,3111141722,"-1,070.00",Orders of St John
http://statistics.data.gov.uk/id/local-authority/38,Oxfordshire County Council,Community Support Service Bicester,02/03/2022,4210,Vehicles and Plant - Repairs and Main,2200960863,"-1,057.90",Flex-E-Rent
http://statistics.data.gov.uk/id/local-authority/38,Oxfordshire County Council,AGENCY RESID - DISAB,30/03/2022,5559,,3111152842,"-1,051.21",BY THE BRIDGE
http://statistics.data.gov.uk/id/local-authority/38,Oxfordshire County Council,Funded Nursing Care  - Over 65,10/03/2022,5692,,3111140169,"-1,045.20",Banbury Heights Nursing Home
http://statistics.data.gov.uk/id/local-authority/38,Oxfordshire County Council,Afghanistan Hotel Education Grant,07/03/2022,7003,"Courses, Classes, Workshops and Clubs",3111136206,"-1,045.07",OCC Sutton Courtenay CE
http://statistics.data.gov.uk/id/local-authority/38,Oxfordshire County Council,GYPSY & TRAVELLER SV,04/03/2022,4122,Other premises related costs,2200961589,"-1,040.00",Aspire Enterprise Services Ltd
http://statistics.data.gov.uk/id/local-authority/38,Oxfordshire County Council,Care Homes - Over 65 Memory & Cognition,10/03/2022,5687,,3111140822,"-1,020.00",Vale House
http://statistics.data.gov.uk/id/local-authority/38,Oxfordshire County Council,Procurement Rebates & Income,17/03/2022,7203,Other Miscellaneous Income,3111146207,"-1,000.00",Browns Taxis Ltd
http://statistics.data.gov.uk/id/local-authority/38,Oxfordshire County Council,Covid 19 CHC,10/03/2022,5899,Social Care - Direct Payments,3111137684,"-1,000.00",Personal Redacted Data
http://statistics.data.gov.uk/id/local-authority/38,Oxfordshire County Council,Care Homes - Over 65 Physical Sypport,10/03/2022,5687,,3111138279,-973.08,Acacia Lodge Care Home
http://statistics.data.gov.uk/id/local-authority/38,Oxfordshire County Council,Continuing Care - Care Homes - Under 65,10/03/2022,5687,,3111140692,-961.71,Merryfield Nursing Home
http://statistics.data.gov.uk/id/local-authority/38,Oxfordshire County Council,Funded Nursing Care  - Over 65,10/03/2022,5692,,3111138138,-938,Abbey Crest Nursing Home
http://statistics.data.gov.uk/id/local-authority/38,Oxfordshire County Council,SEN TRANSPORT,30/03/2022,4322,"Season Tickets - Bus, Rail & Ferry",3111152898,-918,Stagecoach Services Ltd
http://statistics.data.gov.uk/id/local-authority/38,Oxfordshire County Council,LIABILITY,29/03/2022,3257,,3111149906,-913,OCC One Time Vendor
http://statistics.data.gov.uk/id/local-authority/38,Oxfordshire County Council,Support at Home 65+ Physical Support,10/03/2022,5686,,3111140535,-900,Kirlena House
http://statistics.data.gov.uk/id/local-authority/38,Oxfordshire County Council,SPECIAL GUARDIANSHIP,08/03/2022,5661,B*Carriageway pre surf. dressing patchin,3111137094,-897.63,Personal Redacted Data
http://statistics.data.gov.uk/id/local-authority/38,Oxfordshire County Council,Care Homes - Over 65 Physical Sypport,10/03/2022,5686,,3111140729,-895,ST ANNES RESIDENTIAL  HOME
http://statistics.data.gov.uk/id/local-authority/38,Oxfordshire County Council,COMM DRAWDOWN FUNDNG,04/03/2022,8004,Design Consultant,2200961548,-893.13,Milestone Infrastructure Limited
http://statistics.data.gov.uk/id/local-authority/38,Oxfordshire County Council,Care Homes - Over 65 Physical Sypport,10/03/2022,5687,,3111142208,-847.71,Orders of St John
http://statistics.data.gov.uk/id/local-authority/38,Oxfordshire County Council,STI TESTING+TREATMEN,17/03/2022,4940,Other Services,3111149263,-805,Buckinghamshire Healthcare NHS Trus
http://statistics.data.gov.uk/id/local-authority/38,Oxfordshire County Council,EARLY YEARS TRADED SERVICES,29/03/2022,4940,Other Services,2200972631,-800,S HUGHES
http://statistics.data.gov.uk/id/local-authority/38,Oxfordshire County Council,EARLY YEARS TRADED SERVICES,29/03/2022,5380,"Author, Speaker and Lecturer Fees",2200972641,-800,S HUGHES
http://statistics.data.gov.uk/id/local-authority/38,Oxfordshire County Council,Funded Nursing Care  - Over 65,10/03/2022,5692,,3111138133,-777.2,Abbey Crest Nursing Home
http://statistics.data.gov.uk/id/local-authority/38,Oxfordshire County Council,COMMUNITY & ROAD SAFETY,24/03/2022,3103,Other Training Courses and Qualification,2200971385,-765,Windrush Bike Project CIC
http://statistics.data.gov.uk/id/local-authority/38,Oxfordshire County Council,Care Homes - Over 65 Physical Sypport,10/03/2022,5686,,3111142245,-749,Orders of St John
http://statistics.data.gov.uk/id/local-authority/38,Oxfordshire County Council,Care Homes - Over 65 Physical Sypport,10/03/2022,5687,,3111140369,-714.29,Freeland House
http://statistics.data.gov.uk/id/local-authority/38,Oxfordshire County Council,Support at Home U65 Learning Disability,10/03/2022,5690,,3111138017,-714,Style Acre
http://statistics.data.gov.uk/id/local-authority/38,Oxfordshire County Council,Growth Management,30/03/2022,2040,Agency Staff,2200973443,-686.03,WATERMAN ASPEN LTD
http://statistics.data.gov.uk/id/local-authority/38,Oxfordshire County Council,2 YEAR OLD FUNDING,31/03/2022,5537,Payments to Other Establishments,3111152957,-681.6,Longford Park Primary School
http://statistics.data.gov.uk/id/local-authority/38,Oxfordshire County Council,COMMUNITY & ROAD SAFETY,24/03/2022,3103,Other Training Courses and Qualification,2200971378,-675,Windrush Bike Project CIC
http://statistics.data.gov.uk/id/local-authority/38,Oxfordshire County Council,Swindon Adoption Support Fund,22/03/2022,4859,Medical and Counselling Fees,2200969984,-670,2PIP Theraputic Services
http://statistics.data.gov.uk/id/local-authority/38,Oxfordshire County Council,Funded Nursing Care  - Over 65,10/03/2022,5692,,3111138855,-670,Cherwood House Care Centre
http://statistics.data.gov.uk/id/local-authority/38,Oxfordshire County Council,Funded Nursing Care  - Over 65,10/03/2022,5692,,3111140933,-670,Penhurst Gardens
http://statistics.data.gov.uk/id/local-authority/38,Oxfordshire County Council,Procurement Rebates & Income,17/03/2022,7203,Other Miscellaneous Income,3111146205,-667.2,Barker & Evans Ltd
http://statistics.data.gov.uk/id/local-authority/38,Oxfordshire County Council,2 YEAR OLD FUNDING,02/03/2022,5537,Payments to Other Establishments,3111134873,-613.44,The Aunties' Old School Nursery
http://statistics.data.gov.uk/id/local-authority/38,Oxfordshire County Council,Care Homes - Over 65 Physical Sypport,10/03/2022,5687,,3111138490,-571.43,METHODIST HOMES
http://statistics.data.gov.uk/id/local-authority/38,Oxfordshire County Council,Funded Nursing Care  - Over 65,10/03/2022,5692,,3111140165,-562.8,Banbury Heights Nursing Home
http://statistics.data.gov.uk/id/local-authority/38,Oxfordshire County Council,Funded Nursing Care  - Over 65,10/03/2022,5692,,3111140365,-562.8,Freeland House
http://statistics.data.gov.uk/id/local-authority/38,Oxfordshire County Council,Family Solutions Plus Non-staff - Centra,29/03/2022,4270,HTM / Other Vehicle - Hire Charges,2200972649,-560,Oxford Van Man
http://statistics.data.gov.uk/id/local-authority/38,Oxfordshire County Council,COUNTY PRINT FINSHRS,01/03/2022,4450,Disability Aids and Equipment,2200959948,-554,Theo Davies
http://statistics.data.gov.uk/id/local-authority/38,Oxfordshire County Council,Support at Home 65+ Physical Support,29/03/2022,5699,,3111150467,-552.65,Mega Resources Ltd
http://statistics.data.gov.uk/id/local-authority/38,Oxfordshire County Council,NURSERY ED FUND,31/03/2022,5537,Payments to Other Establishments,3111152982,-551.76,Berinsfield Early Years Pre-School
http://statistics.data.gov.uk/id/local-authority/38,Oxfordshire County Council,,21/03/2022,1320,Childcare Vouchers A/C,3111147129,-550,Childcare Vouchers Ltd
http://statistics.data.gov.uk/id/local-authority/38,Oxfordshire County Council,Support at Home 65+ Physical Support,29/03/2022,5698,,3111151281,-546,Oxford Private Care
http://statistics.data.gov.uk/id/local-authority/38,Oxfordshire County Council,Covid 19 CHC,10/03/2022,5687,,3111138951,-542.86,Cherwood House Care Centre
http://statistics.data.gov.uk/id/local-authority/38,Oxfordshire County Council,NURSERY ED FUND,02/03/2022,5537,Payments to Other Establishments,3111135347,-539,Aureus Primary School Academy
http://statistics.data.gov.uk/id/local-authority/38,Oxfordshire County Council,NURSERY ED FUND,02/03/2022,5537,Payments to Other Establishments,3111135345,-534.82,Sheillar Murombedzi
http://statistics.data.gov.uk/id/local-authority/38,Oxfordshire County Council,COMM DRAWDOWN FUNDNG,04/03/2022,8102,Payments to main contractor,2200961562,-531.58,Milestone Infrastructure Limited
http://statistics.data.gov.uk/id/local-authority/38,Oxfordshire County Council,PD EQUIPMENT,04/03/2022,4450,Disability Aids and Equipment,2200961529,-520,G & S SMIRTHWAITE LTD
http://statistics.data.gov.uk/id/local-authority/38,Oxfordshire County Council,,11/03/2022,1441,Uncleared Misc Income Receipts,2200965644,-500,OCC Headington Lib Cash
http://statistics.data.gov.uk/id/local-authority/38,Oxfordshire County Council,KNIGHTS COURT,01/03/2022,3821,Grounds Maintenance Contracts,2200959895,500,Aspire Oxfordshire
http://statistics.data.gov.uk/id/local-authority/38,Oxfordshire County Council,FLEET OPERATIONS,24/03/2022,4210,Vehicles and Plant - Repairs and Main,2200971130,500,AWP Body Repairs
http://statistics.data.gov.uk/id/local-authority/38,Oxfordshire County Council,Household Support Fund,25/03/2022,4939,,3111148704,500,Banbury School Day Nurse
http://statistics.data.gov.uk/id/local-authority/38,Oxfordshire County Council,Councillors Priorities Fund,04/03/2022,4940,Other Services,3111135967,500,Bix and Assendon Parish Council
http://statistics.data.gov.uk/id/local-authority/38,Oxfordshire County Council,PROCUREMENT,29/03/2022,4685,Clothing and Uniforms,2200972979,500,BRISTOL UNIFORMS LTD
http://statistics.data.gov.uk/id/local-authority/38,Oxfordshire County Council,Family Solutions Plus Non-staff - North,16/03/2022,5227,Other Transport Arrangements,3111145697,500,Cherwell Cars
http://statistics.data.gov.uk/id/local-authority/38,Oxfordshire County Council,HISTORY SERVICE,31/03/2022,5190,Subscriptions,2200974357,500,CILIP
http://statistics.data.gov.uk/id/local-authority/38,Oxfordshire County Council,LEGAL SERVICES,29/03/2022,5251,Legal Costs,2200973100,500,Daniel Nother
http://statistics.data.gov.uk/id/local-authority/38,Oxfordshire County Council,Household Support Fund,25/03/2022,4939,,3111149116,500,Deddington CE Primary School
http://statistics.data.gov.uk/id/local-authority/38,Oxfordshire County Council,TRADING STANDARDS,14/03/2022,5251,Legal Costs,2200966193,500,Drystone Chambers
http://statistics.data.gov.uk/id/local-authority/38,Oxfordshire County Council,TRADING STANDARDS,16/03/2022,5251,Legal Costs,2200967616,500,Drystone Chambers
http://statistics.data.gov.uk/id/local-authority/38,Oxfordshire County Council,LEGAL SERVICES,04/03/2022,5251,Legal Costs,2200961908,500,Francesca Gardner
http://statistics.data.gov.uk/id/local-authority/38,Oxfordshire County Council,TREE MAINT OPS,28/03/2022,5526,Payments to Private Contractors,2200972066,500,Goetre Villa Ltd
http://statistics.data.gov.uk/id/local-authority/38,Oxfordshire County Council,FOSTERING TEAM,30/03/2022,4861,Hired and Contracted Services,2200973785,500,Green Light People Solutions
http://statistics.data.gov.uk/id/local-authority/38,Oxfordshire County Council,FOSTERING TEAM,30/03/2022,4861,Hired and Contracted Services,2200973786,500,Green Light People Solutions
http://statistics.data.gov.uk/id/local-authority/38,Oxfordshire County Council,FOSTERING TEAM,30/03/2022,4861,Hired and Contracted Services,2200973787,500,Green Light People Solutions
http://statistics.data.gov.uk/id/local-authority/38,Oxfordshire County Council,FOSTERING TEAM,30/03/2022,4861,Hired and Contracted Services,2200973788,500,Green Light People Solutions
http://statistics.data.gov.uk/id/local-authority/38,Oxfordshire County Council,Household Support Fund,25/03/2022,4939,,3111148778,500,Hardwick & Arden Pre-School
http://statistics.data.gov.uk/id/local-authority/38,Oxfordshire County Council,Support at Home U65 Physical Support,11/03/2022,5693,,3111142539,500,HEALTHCARE ACCESS LTD
http://statistics.data.gov.uk/id/local-authority/38,Oxfordshire County Council,Family Solutions Plus Non-staff - Centra,21/03/2022,5227,Other Transport Arrangements,3111146809,500,Her Ride Limited
http://statistics.data.gov.uk/id/local-authority/38,Oxfordshire County Council,Afghanistan settler holding hotel fund,29/03/2022,4315,Payments for Conveying Children,2200973158,500,Heyfordian Travel Ltd
http://statistics.data.gov.uk/id/local-authority/38,Oxfordshire County Council,Afghanistan settler holding hotel fund,29/03/2022,4315,Payments for Conveying Children,2200973159,500,Heyfordian Travel Ltd
http://statistics.data.gov.uk/id/local-authority/38,Oxfordshire County Council,LAC PUPIL PREMIUM,21/03/2022,5537,Payments to Other Establishments,3111146986,500,Hillcrest Childrens Services Ltd
http://statistics.data.gov.uk/id/local-authority/38,Oxfordshire County Council,Household Support Fund,25/03/2022,4939,,3111148787,500,Hook Norton Pre-School Playgroup
http://statistics.data.gov.uk/id/local-authority/38,Oxfordshire County Council,Councillors Priorities Fund,14/03/2022,4940,Other Services,3111142755,500,Jericho Community Association
http://statistics.data.gov.uk/id/local-authority/38,Oxfordshire County Council,OSCB,30/03/2022,4940,Other Services,2200973700,500,Karen Lesley Tudor
http://statistics.data.gov.uk/id/local-authority/38,Oxfordshire County Council,LOWER WINDRUSH PROJ,16/03/2022,4531,Materials,2200967489,500,Lock and Key Centre
http://statistics.data.gov.uk/id/local-authority/38,Oxfordshire County Council,Wokingham Adoption Support Fund,07/03/2022,4861,Hired and Contracted Services,2200962422,500,More Therapy
http://statistics.data.gov.uk/id/local-authority/38,Oxfordshire County Council,,11/03/2022,1441,Uncleared Misc Income Receipts,2200965629,500,OCC Headington Lib Cash
http://statistics.data.gov.uk/id/local-authority/38,Oxfordshire County Council,,11/03/2022,1441,Uncleared Misc Income Receipts,2200965654,500,OCC Headington Lib Cash
http://statistics.data.gov.uk/id/local-authority/38,Oxfordshire County Council,HIGHWAYS GENERAL,01/03/2022,5055,Insurance Costs,3111132346,500,OCC One Time Vendor
http://statistics.data.gov.uk/id/local-authority/38,Oxfordshire County Council,HIGHWAYS GENERAL,01/03/2022,5055,Insurance Costs,3111132348,500,OCC One Time Vendor
http://statistics.data.gov.uk/id/local-authority/38,Oxfordshire County Council,HIGHWAYS GENERAL,21/03/2022,5055,Insurance Costs,3111146841,500,OCC One Time Vendor
http://statistics.data.gov.uk/id/local-authority/38,Oxfordshire County Council,HIGHWAYS GENERAL,21/03/2022,5055,Insurance Costs,3111146847,500,OCC One Time Vendor
http://statistics.data.gov.uk/id/local-authority/38,Oxfordshire County Council,HIGHWAYS GENERAL,25/03/2022,5055,Insurance Costs,3111148674,500,OCC One Time Vendor
http://statistics.data.gov.uk/id/local-authority/38,Oxfordshire County Council,HIGHWAYS GENERAL,28/03/2022,5055,Insurance Costs,3111149256,500,OCC One Time Vendor
http://statistics.data.gov.uk/id/local-authority/38,Oxfordshire County Council,RBWM Adoption Support Fund,29/03/2022,6500,Government Grants (Revenue),3111149684,500,OCC One Time Vendor
http://statistics.data.gov.uk/id/local-authority/38,Oxfordshire County Council,Wokingham Adoption Support Fund,29/03/2022,6500,Government Grants (Revenue),3111149791,500,OCC One Time Vendor
http://statistics.data.gov.uk/id/local-authority/38,Oxfordshire County Council,Energy Solutions Project,30/03/2022,5195,Grant Aid and Donations,3111152562,500,OCC One Time Vendor
http://statistics.data.gov.uk/id/local-authority/38,Oxfordshire County Council,LANDLORD & TENANT,22/03/2022,3945,Rent,3500082291,500,Oxford City Council
http://statistics.data.gov.uk/id/local-authority/38,Oxfordshire County Council,L&D CORE PROGRAMME,18/03/2022,3103,Other Training Courses and Qualification,2200968334,500,Premier Partnership
http://statistics.data.gov.uk/id/local-authority/38,Oxfordshire County Council,CSC SUPP & SERVICES,29/03/2022,4525,Furniture,2200972931,500,Showcase PSR Limited
http://statistics.data.gov.uk/id/local-authority/38,Oxfordshire County Council,Household Support Fund,25/03/2022,4939,,3111148909,500,St Hugh of Lincoln Nursery School
http://statistics.data.gov.uk/id/local-authority/38,Oxfordshire County Council,West Berkshire Adoption Support Fund,22/03/2022,4861,Hired and Contracted Services,2200969554,500,The Annex Project
http://statistics.data.gov.uk/id/local-authority/38,Oxfordshire County Council,Household Support Fund,25/03/2022,4939,,3111148935,500,The Barn Kindergarten
http://statistics.data.gov.uk/id/local-authority/38,Oxfordshire County Council,Councillors Priorities Fund,04/03/2022,4940,Other Services,3111135966,500,The Chiltern Centre
http://statistics.data.gov.uk/id/local-authority/38,Oxfordshire County Council,Household Support Fund,25/03/2022,4939,,3111148940,500,The Close Day Nursery Opco Ltd
http://statistics.data.gov.uk/id/local-authority/38,Oxfordshire County Council,Household Support Fund,25/03/2022,4939,,3111148960,500,The Treehouse Thame Limited
http://statistics.data.gov.uk/id/local-authority/38,Oxfordshire County Council,LEGAL SERVICES,11/03/2022,5251,Legal Costs,2200965969,500,Theodore Bunce
http://statistics.data.gov.uk/id/local-authority/38,Oxfordshire County Council,Household Support Fund,25/03/2022,4939,,3111148932,500,Wantage Preschool
http://statistics.data.gov.uk/id/local-authority/38,Oxfordshire County Council,Support at Home 65+ Physical Support,29/03/2022,5689,,3111151918,500.21,PLL Care Services
http://statistics.data.gov.uk/id/local-authority/38,Oxfordshire County Council,VOIDS/VACANCY COSTS,10/03/2022,3945,Rent,3111139463,500.25,Oxford Citizens Housing Association
http://statistics.data.gov.uk/id/local-authority/38,Oxfordshire County Council,Support at Home 65+ Physical Support,01/03/2022,5689,,3111133836,500.64,My Carer Ltd
http://statistics.data.gov.uk/id/local-authority/38,Oxfordshire County Council,Urgent Response,29/03/2022,5689,,3111151580,500.89,Day and Nightcare Assistance
http://statistics.data.gov.uk/id/local-authority/38,Oxfordshire County Council,Early Years Covid 19 Payments,10/03/2022,5537,Payments to Other Establishments,3111137687,501,Imogen Mason
http://statistics.data.gov.uk/id/local-authority/38,Oxfordshire County Council,Early Years Covid 19 Payments,10/03/2022,5537,Payments to Other Establishments,3111137689,501,Nicola Pike
http://statistics.data.gov.uk/id/local-authority/38,Oxfordshire County Council,Support at Home 65+ Physical Support,29/03/2022,5689,,3111151192,501.35,Alina Homecare
http://statistics.data.gov.uk/id/local-authority/38,Oxfordshire County Council,TRANSLATION,09/03/2022,5668,Technical and Professional Consultant F,2200964012,501.43,K International PLC
http://statistics.data.gov.uk/id/local-authority/38,Oxfordshire County Council,MAINSTREAM-PRIMARY,15/03/2022,4330,Transport to School Activities,3111143801,501.5,001 Alpha Cars Ltd
http://statistics.data.gov.uk/id/local-authority/38,Oxfordshire County Council,NURSERY ED FUND,31/03/2022,5537,Payments to Other Establishments,3111153066,501.6,Broadhill Pre-School
http://statistics.data.gov.uk/id/local-authority/38,Oxfordshire County Council,NURSERY ED FUND,31/03/2022,5537,Payments to Other Establishments,3111153076,501.6,Catherine Scate
http://statistics.data.gov.uk/id/local-authority/38,Oxfordshire County Council,NURSERY ED FUND,31/03/2022,5537,Payments to Other Establishments,3111153094,501.6,Dashwood Banbury Academy
http://statistics.data.gov.uk/id/local-authority/38,Oxfordshire County Council,FAM GRP CONFERENCES,30/03/2022,4940,Other Services,2200973600,501.6,Deborah Ciancio
http://statistics.data.gov.uk/id/local-authority/38,Oxfordshire County Council,NURSERY ED FUND,02/03/2022,5537,Payments to Other Establishments,3111134977,501.6,Personal Redacted Data
http://statistics.data.gov.uk/id/local-authority/38,Oxfordshire County Council,Support at Home 65+ Physical Support,29/03/2022,5689,,3111151975,501.79,Prestige Nursing Ltd
http://statistics.data.gov.uk/id/local-authority/38,Oxfordshire County Council,Mockingbird,01/03/2022,5394,Other Expenses,3111134134,501.85,Personal Redacted Data
http://statistics.data.gov.uk/id/local-authority/38,Oxfordshire County Council,DEFINITIVE MAP,30/03/2022,3103,Other Training Courses and Qualification,2200973870,502,INSTITUTE OF PUBLIC RIGHTS OF WAY
http://statistics.data.gov.uk/id/local-authority/38,Oxfordshire County Council,Support at Home U65 Physical Support,15/03/2022,5899,Social Care - Direct Payments,3111144314,502.32,Personal Redacted Data
http://statistics.data.gov.uk/id/local-authority/38,Oxfordshire County Council,Support at Home U65 Physical Support,29/03/2022,5689,,3111151325,502.5,Bicester PA and Care LLP
http://statistics.data.gov.uk/id/local-authority/38,Oxfordshire County Council,Support at Home 65+ Physical Support,01/03/2022,5689,,3111133828,502.5,My Carer Ltd
http://statistics.data.gov.uk/id/local-authority/38,Oxfordshire County Council,Support at Home 65+ Mental Health,01/03/2022,5698,,3111133623,502.78,Oxford Private Care
http://statistics.data.gov.uk/id/local-authority/38,Oxfordshire County Council,East Oxfordshire Team,29/03/2022,5227,Other Transport Arrangements,3111149930,503.2,OMC GLOBAL LIMITED
http://statistics.data.gov.uk/id/local-authority/38,Oxfordshire County Council,COMM DRAWDOWN FUNDNG,01/03/2022,8004,Design Consultant,2200960248,503.72,Milestone Infrastructure Limited
http://statistics.data.gov.uk/id/local-authority/38,Oxfordshire County Council,SEN TRANSPORT,21/03/2022,5227,Other Transport Arrangements,3111147115,504,Banbury Taxis
http://statistics.data.gov.uk/id/local-authority/38,Oxfordshire County Council,SEN TRANSPORT,30/03/2022,4330,Transport to School Activities,3111152876,504,Carriage Company
http://statistics.data.gov.uk/id/local-authority/38,Oxfordshire County Council,MAINSTREAM-PRIMARY,14/03/2022,4330,Transport to School Activities,3111142892,504,Go Green Taxis
http://statistics.data.gov.uk/id/local-authority/38,Oxfordshire County Council,MUSEUM CAFE,30/03/2022,4665,Catering,2200973395,504,Illycaffe UK Ltd
http://statistics.data.gov.uk/id/local-authority/38,Oxfordshire County Council,Support at Home U65 Sensory Support,15/03/2022,5899,Social Care - Direct Payments,3111144054,504,Personal Redacted Data
http://statistics.data.gov.uk/id/local-authority/38,Oxfordshire County Council,Support at Home 65+ Physical Support,15/03/2022,5899,Social Care - Direct Payments,3111144026,504,Personal Redacted Data
http://statistics.data.gov.uk/id/local-authority/38,Oxfordshire County Council,LEGAL BUDGET,18/03/2022,5251,Legal Costs,2200968430,504,Willow Tree Psychology Ltd
http://statistics.data.gov.uk/id/local-authority/38,Oxfordshire County Council,Community Support Service Wallingford,09/03/2022,4232,Vehicle Fuel,2200963559,504.81,Allstar Business Solutions Ltd
http://statistics.data.gov.uk/id/local-authority/38,Oxfordshire County Council,TRANSPORT COSTS,07/03/2022,5227,Other Transport Arrangements,3111136265,505,D�Arrive Ltd
http://statistics.data.gov.uk/id/local-authority/38,Oxfordshire County Council,NURSERY ED FUND,31/03/2022,5537,Payments to Other Establishments,3111153138,505.12,Little Peeple Nursery
http://statistics.data.gov.uk/id/local-authority/38,Oxfordshire County Council,Support at Home U65 Physical Support,01/03/2022,5689,,3111133466,505.19,Genuine Carers Ltd
http://statistics.data.gov.uk/id/local-authority/38,Oxfordshire County Council,LIBRARY COLLECTIONS,03/03/2022,4539,"Books, DVDs and CDs",3111135772,505.29,ASKEWS & HOLTS LIBRARY SERVICES LTD
http://statistics.data.gov.uk/id/local-authority/38,Oxfordshire County Council,Support at Home U65 Mental Health,15/03/2022,5899,Social Care - Direct Payments,3111145254,505.48,Purple Conversation Com In Co (DP)
http://statistics.data.gov.uk/id/local-authority/38,Oxfordshire County Council,Support at Home 65+ Learning Disability,11/03/2022,5693,,3111142572,506,Pioneering Care Bicester Limited
http://statistics.data.gov.uk/id/local-authority/38,Oxfordshire County Council,OTHER,28/03/2022,3942,Hire of Accommodation and Facilities,2200972299,506,Vale of White Horse District Counci
http://statistics.data.gov.uk/id/local-authority/38,Oxfordshire County Council,Support at Home 65+ Physical Support,11/03/2022,5693,,3111142556,506.4,Pioneering Care Bicester Limited
http://statistics.data.gov.uk/id/local-authority/38,Oxfordshire County Council,Support at Home 65+ Physical Support,29/03/2022,5698,,3111151435,506.5,Oxfordshire Crossroads
http://statistics.data.gov.uk/id/local-authority/38,Oxfordshire County Council,Support at Home U65 Learning Disability,15/03/2022,5899,Social Care - Direct Payments,3111144827,507.08,Purple Conversation Com In Co (DP)
http://statistics.data.gov.uk/id/local-authority/38,Oxfordshire County Council,Support at Home 65+ Learning Disability,10/03/2022,5690,,3111137878,507.25,The Ice Centre
http://statistics.data.gov.uk/id/local-authority/38,Oxfordshire County Council,Support at Home U65 Physical Support,01/03/2022,5689,,3111133749,507.4,Home Helpers Care Ltd
http://statistics.data.gov.uk/id/local-authority/38,Oxfordshire County Council,Support at Home 65+ Physical Support,29/03/2022,5689,,3111151750,507.4,Home Helpers Care Ltd
http://statistics.data.gov.uk/id/local-authority/38,Oxfordshire County Council,Support at Home U65 Physical Support,29/03/2022,5689,,3111151763,507.4,Home Helpers Care Ltd
http://statistics.data.gov.uk/id/local-authority/38,Oxfordshire County Council,MAINSTREAM-SECONDARY,11/03/2022,4330,Transport to School Activities,3111142445,507.5,A2B Castle Cars Ltd
http://statistics.data.gov.uk/id/local-authority/38,Oxfordshire County Council,SEN TRANSPORT,07/03/2022,5227,Other Transport Arrangements,3111136450,507.5,Town Cars
http://statistics.data.gov.uk/id/local-authority/38,Oxfordshire County Council,SM DISABILITIES,28/03/2022,5554,Childrens' Social Care - Direct Payments,3111149612,507.64,Purple Conversation Com In Co (DP)
http://statistics.data.gov.uk/id/local-authority/38,Oxfordshire County Council,Planned Maintenance,10/03/2022,3787,Premises Repairs,2200965079,508,Ambiflex Ltd
http://statistics.data.gov.uk/id/local-authority/38,Oxfordshire County Council,Support at Home U65 Physical Support,29/03/2022,5689,,3111151558,508.04,Oxfordshire Crossroads
http://statistics.data.gov.uk/id/local-authority/38,Oxfordshire County Council,Support at Home 65+ Physical Support,29/03/2022,5689,,3111151684,508.1,Greigcare Home Service
http://statistics.data.gov.uk/id/local-authority/38,Oxfordshire County Council,Support at Home 65+ Physical Support,01/03/2022,5689,,3111134152,508.11,Prestige Nursing Ltd
http://statistics.data.gov.uk/id/local-authority/38,Oxfordshire County Council,Support at Home U65 Physical Support,17/03/2022,5696,,3111145806,508.18,Orders of St John Care Trust
http://statistics.data.gov.uk/id/local-authority/38,Oxfordshire County Council,Early Years SEN Funding,11/03/2022,5537,Payments to Other Establishments,3111142417,508.2,Ladybird Pre-School Limited
http://statistics.data.gov.uk/id/local-authority/38,Oxfordshire County Council,Early Years SEN Funding,11/03/2022,5537,Payments to Other Establishments,3111142418,508.2,Ladybird Pre-School Limited
http://statistics.data.gov.uk/id/local-authority/38,Oxfordshire County Council,Support at Home U65 MH OBC Contract,15/03/2022,5899,Social Care - Direct Payments,3111144245,508.36,Personal Redacted Data
http://statistics.data.gov.uk/id/local-authority/38,Oxfordshire County Council,Support at Home 65+ Physical Support,10/03/2022,5685,B*Cycle tracks,3111139907,509.2,Green Gates NH (BUPA)
http://statistics.data.gov.uk/id/local-authority/38,Oxfordshire County Council,Funded Nursing Care  - Over 65,10/03/2022,5692,,3111140609,509.2,Meadow View Nursing Home
http://statistics.data.gov.uk/id/local-authority/38,Oxfordshire County Council,CHERWELL & WEST AREA,03/03/2022,4498,Health and Safety Equipment,2200961020,509.37,Terberg DTS (UK) Ltd
http://statistics.data.gov.uk/id/local-authority/38,Oxfordshire County Council,Support at Home U65 Learning Disability,15/03/2022,5899,Social Care - Direct Payments,3111145023,509.56,Purple Conversation Com In Co (DP)
http://statistics.data.gov.uk/id/local-authority/38,Oxfordshire County Council,LIBRARY COLLECTIONS,24/03/2022,4539,"Books, DVDs and CDs",3111148627,509.57,ASKEWS & HOLTS LIBRARY SERVICES LTD
http://statistics.data.gov.uk/id/local-authority/38,Oxfordshire County Council,Support at Home 65+ Learning Disability,29/03/2022,5689,,3111151692,509.79,Greigcare Home Service
http://statistics.data.gov.uk/id/local-authority/38,Oxfordshire County Council,Support at Home 65+ Physical Support,29/03/2022,5698,,3111151221,509.79,KCARE NURSING AGENCY
http://statistics.data.gov.uk/id/local-authority/38,Oxfordshire County Council,UASC 16&17,28/03/2022,4615,Drugs and Medical Supplies,9300055175,509.84,OCC SS Oxford City Div 1 Cash
http://statistics.data.gov.uk/id/local-authority/38,Oxfordshire County Council,SEN TRANSPORT,01/03/2022,5227,Other Transport Arrangements,3111132504,510,A2B Castle Cars Ltd
http://statistics.data.gov.uk/id/local-authority/38,Oxfordshire County Council,LAC PUPIL PREMIUM,21/03/2022,5537,Payments to Other Establishments,3111147061,510,Bay House School
http://statistics.data.gov.uk/id/local-authority/38,Oxfordshire County Council,Children in Care Non-staffing - North,16/03/2022,4330,Transport to School Activities,3111145699,510,Cherwell Cars
http://statistics.data.gov.uk/id/local-authority/38,Oxfordshire County Council,SEN TRANSPORT,22/03/2022,5227,Other Transport Arrangements,3111147209,510,Her Ride Limited
http://statistics.data.gov.uk/id/local-authority/38,Oxfordshire County Council,SEN Alternative Provision,22/03/2022,4878,Hired and Contracted Services (Curricul,2200969485,510,NHance Maths Academy
http://statistics.data.gov.uk/id/local-authority/38,Oxfordshire County Council,SEN Alternative Provision,22/03/2022,4878,Hired and Contracted Services (Curricul,2200969497,510,NHance Maths Academy
http://statistics.data.gov.uk/id/local-authority/38,Oxfordshire County Council,CEF Household Support Fund,30/03/2022,5365,Non-Staff Subsistence and Expenses,9300055222,510,OCC SS Banbury Area Off Cash
http://statistics.data.gov.uk/id/local-authority/38,Oxfordshire County Council,SEN TRANSPORT,14/03/2022,5227,Other Transport Arrangements,3111142975,510,Oxon Transport Services Ltd
http://statistics.data.gov.uk/id/local-authority/38,Oxfordshire County Council,SEN TRANSPORT,14/03/2022,5227,Other Transport Arrangements,3111143007,510,Oxon Transport Services Ltd
http://statistics.data.gov.uk/id/local-authority/38,Oxfordshire County Council,SEN TRANSPORT,14/03/2022,5227,Other Transport Arrangements,3111143025,510,Oxon Transport Services Ltd
http://statistics.data.gov.uk/id/local-authority/38,Oxfordshire County Council,SEN TRANSPORT,14/03/2022,5227,Other Transport Arrangements,3111143042,510,Oxon Transport Services Ltd
http://statistics.data.gov.uk/id/local-authority/38,Oxfordshire County Council,SEN TRANSPORT,07/03/2022,5227,Other Transport Arrangements,3111136454,510,Town Cars
http://statistics.data.gov.uk/id/local-authority/38,Oxfordshire County Council,Support at Home 65+ Physical Support,02/03/2022,5693,,3111135387,510.16,Direct Link Care Ltd
http://statistics.data.gov.uk/id/local-authority/38,Oxfordshire County Council,Support at Home 65+ Physical Support,17/03/2022,5696,,3111145902,510.22,Orders of St John Care Trust
http://statistics.data.gov.uk/id/local-authority/38,Oxfordshire County Council,Support at Home U65 Learning Disability,15/03/2022,5899,Social Care - Direct Payments,3111143511,511.04,Connection Support (Oxford)
http://statistics.data.gov.uk/id/local-authority/38,Oxfordshire County Council,2 YEAR OLD FUNDING,31/03/2022,5537,Payments to Other Establishments,3111153221,511.2,Busy Bees at Oxford
http://statistics.data.gov.uk/id/local-authority/38,Oxfordshire County Council,2 YEAR OLD FUNDING,31/03/2022,5537,Payments to Other Establishments,3111153263,511.2,Co-Op Oxford Nursery
http://statistics.data.gov.uk/id/local-authority/38,Oxfordshire County Council,Support at Home U65 Physical Support,29/03/2022,5689,,3111152065,511.51,AVR (Oxon) Ltd
http://statistics.data.gov.uk/id/local-authority/38,Oxfordshire County Council,Support at Home 65+ Other /Soc Isolation,16/03/2022,5693,,3111145655,512,Personal Redacted Data
http://statistics.data.gov.uk/id/local-authority/38,Oxfordshire County Council,Planned Maintenance,17/03/2022,3787,Premises Repairs,2200968282,512,DrainGain Ltd
http://statistics.data.gov.uk/id/local-authority/38,Oxfordshire County Council,LEGAL BUDGET,29/03/2022,5251,Legal Costs,2200973033,512,LEXTOX
http://statistics.data.gov.uk/id/local-authority/38,Oxfordshire County Council,ELEC NPR ST LTG,29/03/2022,5526,Payments to Private Contractors,2200972976,512,Robelec Ltd
http://statistics.data.gov.uk/id/local-authority/38,Oxfordshire County Council,Unregulated Placements,09/03/2022,2040,Agency Staff,2200963879,512.1,MEDGEN LTD
http://statistics.data.gov.uk/id/local-authority/38,Oxfordshire County Council,NURSERY ED FUND,02/03/2022,5537,Payments to Other Establishments,3111135054,512.16,Lucy Bourne
http://statistics.data.gov.uk/id/local-authority/38,Oxfordshire County Council,FPT CITY,29/03/2022,5394,Other Expenses,3111149997,512.43,Personal Redacted Data
http://statistics.data.gov.uk/id/local-authority/38,Oxfordshire County Council,Children in Care Non-staffing - North,15/03/2022,5227,Other Transport Arrangements,9300054992,512.8,OCC SS Banbury Area Off Cash
http://statistics.data.gov.uk/id/local-authority/38,Oxfordshire County Council,Support at Home 65+ Learning Disability,01/03/2022,5696,,3111132578,513,All Care GB Ltd
http://statistics.data.gov.uk/id/local-authority/38,Oxfordshire County Council,Support at Home 65+ Physical Support,01/03/2022,5696,,3111132605,513,All Care GB Ltd
http://statistics.data.gov.uk/id/local-authority/38,Oxfordshire County Council,Support at Home 65+ Learning Disability,29/03/2022,5696,,3111150067,513,All Care GB Ltd
http://statistics.data.gov.uk/id/local-authority/38,Oxfordshire County Council,Support at Home 65+ Physical Support,29/03/2022,5696,,3111150115,513,All Care GB Ltd
http://statistics.data.gov.uk/id/local-authority/38,Oxfordshire County Council,Support at Home 65+ Memory & Cognition,29/03/2022,5689,,3111151563,513.23,Oxfordshire Crossroads
http://statistics.data.gov.uk/id/local-authority/38,Oxfordshire County Council,Support at Home U65 Autism /Abated,10/03/2022,5690,,3111138060,513.25,Autism at Kingwood Limited
http://statistics.data.gov.uk/id/local-authority/38,Oxfordshire County Council,Support at Home 65+ Mental Health,29/03/2022,5689,,3111151718,513.78,Harino Care
http://statistics.data.gov.uk/id/local-authority/38,Oxfordshire County Council,Support at Home U65 Learning Disability,10/03/2022,5690,,3111137979,513.94,Turnstyle
http://statistics.data.gov.uk/id/local-authority/38,Oxfordshire County Council,Support at Home 65+ Physical Support,01/03/2022,5698,,3111133382,514.02,Day & Night Care Assistance
http://statistics.data.gov.uk/id/local-authority/38,Oxfordshire County Council,Support at Home 65+ Physical Support,18/03/2022,5696,,3111146561,514.36,One Housing Group Limited
http://statistics.data.gov.uk/id/local-authority/38,Oxfordshire County Council,Support at Home 65+ Physical Support,18/03/2022,5696,,3111146562,514.36,One Housing Group Limited
http://statistics.data.gov.uk/id/local-authority/38,Oxfordshire County Council,Support at Home 65+ Physical Support,18/03/2022,5696,,3111146574,514.36,One Housing Group Limited
http://statistics.data.gov.uk/id/local-authority/38,Oxfordshire County Council,Support at Home 65+ Physical Support,23/03/2022,5696,,3111148277,514.36,One Housing Group Limited
http://statistics.data.gov.uk/id/local-authority/38,Oxfordshire County Council,Support at Home 65+ Physical Support,23/03/2022,5696,,3111148278,514.36,One Housing Group Limited
http://statistics.data.gov.uk/id/local-authority/38,Oxfordshire County Council,Support at Home 65+ Physical Support,23/03/2022,5696,,3111148293,514.36,One Housing Group Limited
http://statistics.data.gov.uk/id/local-authority/38,Oxfordshire County Council,Support at Home 65+ Physical Support,17/03/2022,5696,,3111145857,514.42,Orders of St John Care Trust
http://statistics.data.gov.uk/id/local-authority/38,Oxfordshire County Council,LIBRARY COLLECTIONS,03/03/2022,4539,"Books, DVDs and CDs",3111135768,514.66,ASKEWS & HOLTS LIBRARY SERVICES LTD
http://statistics.data.gov.uk/id/local-authority/38,Oxfordshire County Council,Support at Home U65 Memory & Cognition,15/03/2022,5899,Social Care - Direct Payments,3111145403,514.68,Purple Conversation Com In Co (DP)
http://statistics.data.gov.uk/id/local-authority/38,Oxfordshire County Council,COMMUNITY & ROAD SAFETY,01/03/2022,4790,"Publicity, Promotions and Advertisement",2200959985,515,Global Media Group Services Ltd
http://statistics.data.gov.uk/id/local-authority/38,Oxfordshire County Council,Swindon Adoption Support Fund,29/03/2022,6500,Government Grants (Revenue),3111149721,515,OCC One Time Vendor
http://statistics.data.gov.uk/id/local-authority/38,Oxfordshire County Council,Support at Home 65+ Physical Support,15/03/2022,5899,Social Care - Direct Payments,3111145118,515.08,Purple Conversation Com In Co (DP)
http://statistics.data.gov.uk/id/local-authority/38,Oxfordshire County Council,VOIDS/VACANCY COSTS,10/03/2022,3945,Rent,3111139457,515.22,Oxford Citizens Housing Association
http://statistics.data.gov.uk/id/local-authority/38,Oxfordshire County Council,VOIDS/VACANCY COSTS,10/03/2022,3945,Rent,3111139460,515.22,Oxford Citizens Housing Association
http://statistics.data.gov.uk/id/local-authority/38,Oxfordshire County Council,Support at Home U65 Sensory Support,15/03/2022,5899,Social Care - Direct Payments,3111144051,515.52,Personal Redacted Data
http://statistics.data.gov.uk/id/local-authority/38,Oxfordshire County Council,SEN TRANSPORT,17/03/2022,5227,Other Transport Arrangements,3111146164,515.66,24/7 LTD
http://statistics.data.gov.uk/id/local-authority/38,Oxfordshire County Council,Support at Home U65 Learning Disability,10/03/2022,5690,,3111137969,515.84,Turnstyle
http://statistics.data.gov.uk/id/local-authority/38,Oxfordshire County Council,Support at Home 65+ Learning Disability,10/03/2022,5690,,3111137989,515.84,Turnstyle
http://statistics.data.gov.uk/id/local-authority/38,Oxfordshire County Council,Support at Home U65 Physical Support,29/03/2022,5689,,3111151622,515.92,Genuine Carers Ltd
http://statistics.data.gov.uk/id/local-authority/38,Oxfordshire County Council,CHC Fast Track - Sup at Homes - Over 65,04/03/2022,5691,,3111136149,516,FiNN Homecare Ltd
http://statistics.data.gov.uk/id/local-authority/38,Oxfordshire County Council,Oxfordshire Adoption Support Fund,02/03/2022,4861,Hired and Contracted Services,2200960385,516,SWAAY
http://statistics.data.gov.uk/id/local-authority/38,Oxfordshire County Council,Oxfordshire Adoption Support Fund,02/03/2022,4861,Hired and Contracted Services,2200960386,516,SWAAY
http://statistics.data.gov.uk/id/local-authority/38,Oxfordshire County Council,Wokingham Adoption Support Fund,10/03/2022,4861,Hired and Contracted Services,2200964345,516,SWAAY
http://statistics.data.gov.uk/id/local-authority/38,Oxfordshire County Council,Support at Home 65+ Memory & Cognition,15/03/2022,5899,Social Care - Direct Payments,3111144161,516.6,Personal Redacted Data
http://statistics.data.gov.uk/id/local-authority/38,Oxfordshire County Council,NURSERY ED FUND,02/03/2022,5537,Payments to Other Establishments,3111135108,516.65,Pippa Ashton
http://statistics.data.gov.uk/id/local-authority/38,Oxfordshire County Council,NURSERY ED FUND,02/03/2022,5537,Payments to Other Establishments,3111135199,516.65,Sticky Fingers
http://statistics.data.gov.uk/id/local-authority/38,Oxfordshire County Council,LEGAL BUDGET,31/03/2022,5251,Legal Costs,2200974474,516.75,K International PLC
http://statistics.data.gov.uk/id/local-authority/38,Oxfordshire County Council,Support at Home 65+ Physical Support,15/03/2022,5899,Social Care - Direct Payments,3111143969,516.8,Personal Redacted Data
http://statistics.data.gov.uk/id/local-authority/38,Oxfordshire County Council,LEGAL BUDGET,18/03/2022,5251,Legal Costs,2200968389,517,DNA WORLDWIDE GROUP
http://statistics.data.gov.uk/id/local-authority/38,Oxfordshire County Council,CHC Fast Track - Sup at Homes - Over 65,28/03/2022,5691,,3111149412,517,XPERIENCE RECRUITMENT LIMITED
http://statistics.data.gov.uk/id/local-authority/38,Oxfordshire County Council,Thame Emergency & Assessment Home,01/03/2022,4706,Stationery and other office consumables,2200960143,517.12,Lyreco UK Ltd
http://statistics.data.gov.uk/id/local-authority/38,Oxfordshire County Council,Support at Home U65 Mental Health,29/03/2022,5689,,3111151358,517.28,Care Outlook Ltd
http://statistics.data.gov.uk/id/local-authority/38,Oxfordshire County Council,Support at Home 65+ Learning Disability,14/03/2022,5688,,3111142817,517.28,Dimensions (UK) Ltd
http://statistics.data.gov.uk/id/local-authority/38,Oxfordshire County Council,Support at Home U65 MH OBC Contract,01/03/2022,5689,,3111134224,517.5,Response Organisation
http://statistics.data.gov.uk/id/local-authority/38,Oxfordshire County Council,Support at Home 65+ Physical Support,01/03/2022,5689,,3111134103,517.58,PLL Care Services
http://statistics.data.gov.uk/id/local-authority/38,Oxfordshire County Council,LEAVING CARE CITY 1,23/03/2022,4407,Equipment,9300055080,517.6,OCC SS Oxford City Div 1 Cash
http://statistics.data.gov.uk/id/local-authority/38,Oxfordshire County Council,ATV Adoption Woodley,02/03/2022,5251,Legal Costs,3111135491,517.83,OCC One Time Vendor
http://statistics.data.gov.uk/id/local-authority/38,Oxfordshire County Council,Support at Home 65+ Physical Support,29/03/2022,5689,,3111151931,517.84,PLL Care Services
http://statistics.data.gov.uk/id/local-authority/38,Oxfordshire County Council,Children in Care Non-staffing - South,09/03/2022,5394,Other Expenses,3111137515,517.95,OCC One Time Vendor
http://statistics.data.gov.uk/id/local-authority/38,Oxfordshire County Council,GRASS CUTTING DIST.,02/03/2022,5526,Payments to Private Contractors,3111135488,517.98,OCC One Time Vendor
http://statistics.data.gov.uk/id/local-authority/38,Oxfordshire County Council,Planned Maintenance,18/03/2022,3787,Premises Repairs,2200968461,518,Windrush Door & Window Services Ltd
http://statistics.data.gov.uk/id/local-authority/38,Oxfordshire County Council,Support at Home 65+ Physical Support,29/03/2022,5689,,3111151745,518.87,Home Helpers Care Ltd
http://statistics.data.gov.uk/id/local-authority/38,Oxfordshire County Council,Support at Home U65 Physical Support,15/03/2022,5899,Social Care - Direct Payments,3111143934,519.2,Personal Redacted Data
http://statistics.data.gov.uk/id/local-authority/38,Oxfordshire County Council,2 YEAR OLD FUNDING,31/03/2022,5537,Payments to Other Establishments,3111153268,519.27,Wheatley Pre-School
http://statistics.data.gov.uk/id/local-authority/38,Oxfordshire County Council,Support at Home U65 Physical Support,15/03/2022,5899,Social Care - Direct Payments,3111145149,519.92,Purple Conversation Com In Co (DP)
http://statistics.data.gov.uk/id/local-authority/38,Oxfordshire County Council,Wokingham Adoption Support Fund,29/03/2022,6500,Government Grants (Revenue),3111149741,519.96,OCC One Time Vendor
http://statistics.data.gov.uk/id/local-authority/38,Oxfordshire County Council,Support at Home U65 Learning Disability,14/03/2022,5227,Other Transport Arrangements,3111142718,520,BC CARS
http://statistics.data.gov.uk/id/local-authority/38,Oxfordshire County Council,MAINSTREAM-PRIMARY,14/03/2022,4330,Transport to School Activities,3111142896,520,Go Green Taxis
http://statistics.data.gov.uk/id/local-authority/38,Oxfordshire County Council,Support at Home U65 Memory & Cognition,02/03/2022,5697,,3111135413,520,Headway Oxford
http://statistics.data.gov.uk/id/local-authority/38,Oxfordshire County Council,Support at Home 65+ Physical Support,02/03/2022,5697,,3111135419,520,Headway Oxford
http://statistics.data.gov.uk/id/local-authority/38,Oxfordshire County Council,Support at Home 65+ Physical Support,02/03/2022,5697,,3111135424,520,Headway Oxford
http://statistics.data.gov.uk/id/local-authority/38,Oxfordshire County Council,Support at Home U65 Memory & Cognition,11/03/2022,5697,,3111142481,520,Headway Oxford
http://statistics.data.gov.uk/id/local-authority/38,Oxfordshire County Council,Support at Home U65 Physical Support,11/03/2022,5697,,3111142482,520,Headway Oxford
http://statistics.data.gov.uk/id/local-authority/38,Oxfordshire County Council,Support at Home U65 Memory & Cognition,11/03/2022,5697,,3111142483,520,Headway Oxford
http://statistics.data.gov.uk/id/local-authority/38,Oxfordshire County Council,Support at Home U65 Memory & Cognition,11/03/2022,5697,,3111142486,520,Headway Oxford
http://statistics.data.gov.uk/id/local-authority/38,Oxfordshire County Council,Support at Home 65+ Physical Support,11/03/2022,5697,,3111142487,520,Headway Oxford
http://statistics.data.gov.uk/id/local-authority/38,Oxfordshire County Council,Support at Home 65+ Physical Support,11/03/2022,5697,,3111142493,520,Headway Oxford
http://statistics.data.gov.uk/id/local-authority/38,Oxfordshire County Council,Support at Home 65+ Mental Health,09/03/2022,5693,,3111137466,520,Star Projections
http://statistics.data.gov.uk/id/local-authority/38,Oxfordshire County Council,Support at Home 65+ Mental Health,30/03/2022,5693,,3111152752,520,Star Projections
http://statistics.data.gov.uk/id/local-authority/38,Oxfordshire County Council,Swindon Adoption Support Fund,07/03/2022,6500,Government Grants (Revenue),2200962529,520,The Family Place
http://statistics.data.gov.uk/id/local-authority/38,Oxfordshire County Council,Transition Team,23/03/2022,4494,Purchase of IT Equipment,2200970029,520,TOTAL COMPUTERS NETWORK LTD
http://statistics.data.gov.uk/id/local-authority/38,Oxfordshire County Council,DISABILITIES TEAM S,23/03/2022,4494,Purchase of IT Equipment,2200970328,520,TOTAL COMPUTERS NETWORK LTD
http://statistics.data.gov.uk/id/local-authority/38,Oxfordshire County Council,FLEET COSTS,03/03/2022,4270,HTM / Other Vehicle - Hire Charges,2200961045,520,West Wallasey Fleet Hire Services
http://statistics.data.gov.uk/id/local-authority/38,Oxfordshire County Council,Support at Home 65+ Learning Disability,11/03/2022,5696,,3111142496,520.2,Housing&care21
http://statistics.data.gov.uk/id/local-authority/38,Oxfordshire County Council,Support at Home U65 Physical Support,01/03/2022,5689,,3111133629,520.52,Greigcare Home Service
http://statistics.data.gov.uk/id/local-authority/38,Oxfordshire County Council,MOTOR FLEET,30/03/2022,3053,,3111152787,521.1,OCC One Time Vendor
http://statistics.data.gov.uk/id/local-authority/38,Oxfordshire County Council,UASC 16&17,21/03/2022,5665,B*Fostering Project Care Fee,9300055055,521.4,OCC SS Oxford City Div 1 Cash
http://statistics.data.gov.uk/id/local-authority/38,Oxfordshire County Council,Support at Home U65 Physical Support,15/03/2022,5899,Social Care - Direct Payments,3111145323,521.48,Purple Conversation Com In Co (DP)
http://statistics.data.gov.uk/id/local-authority/38,Oxfordshire County Council,Support at Home 65+ Physical Support,01/03/2022,5698,,3111133456,521.67,KCARE NURSING AGENCY
http://statistics.data.gov.uk/id/local-authority/38,Oxfordshire County Council,Support at Home U65 Learning Disability,10/03/2022,5690,,3111138085,521.95,Style Acre
http://statistics.data.gov.uk/id/local-authority/38,Oxfordshire County Council,LAC PUPIL PREMIUM,21/03/2022,5537,Payments to Other Establishments,3111147038,522,Briary Primary School
http://statistics.data.gov.uk/id/local-authority/38,Oxfordshire County Council,FLEET MAINTENANCE,14/03/2022,4495,IT Software,2200966412,522,C Track UK
http://statistics.data.gov.uk/id/local-authority/38,Oxfordshire County Council,SEN TRANSPORT,16/03/2022,4330,Transport to School Activities,3111145721,522,Vine Community Services Ltd T/A
http://statistics.data.gov.uk/id/local-authority/38,Oxfordshire County Council,Planned Maintenance,11/03/2022,3787,Premises Repairs,2200965215,522.23,Marlowe Fire & Security Ltd
http://statistics.data.gov.uk/id/local-authority/38,Oxfordshire County Council,Planned Maintenance,04/03/2022,3787,Premises Repairs,2200961678,522.5,ARJO LTD
http://statistics.data.gov.uk/id/local-authority/38,Oxfordshire County Council,Support at Home 65+ Physical Support,01/03/2022,5698,,3111133471,522.82,KCARE NURSING AGENCY
http://statistics.data.gov.uk/id/local-authority/38,Oxfordshire County Council,Support at Home 65+ Physical Support,29/03/2022,5698,,3111151445,522.92,Oxfordshire Crossroads
http://statistics.data.gov.uk/id/local-authority/38,Oxfordshire County Council,Support at Home 65+ Physical Support,01/03/2022,5699,,3111132737,522.94,CaringPlus Healthcare Services Ltd
http://statistics.data.gov.uk/id/local-authority/38,Oxfordshire County Council,Support at Home 65+ Physical Support,29/03/2022,5699,,3111150389,522.94,CaringPlus Healthcare Services Ltd
http://statistics.data.gov.uk/id/local-authority/38,Oxfordshire County Council,Support at Home 65+ Physical Support,29/03/2022,5699,,3111150474,522.94,Mega Resources Ltd
http://statistics.data.gov.uk/id/local-authority/38,Oxfordshire County Council,FOSTERING MAIN,01/03/2022,5549,B*Fostering Allowance - Regulation 38,3111133879,523,Personal Redacted Data
http://statistics.data.gov.uk/id/local-authority/38,Oxfordshire County Council,FOSTERING MAIN,08/03/2022,5549,B*Fostering Allowance - Regulation 38,3111136971,523,Personal Redacted Data
http://statistics.data.gov.uk/id/local-authority/38,Oxfordshire County Council,FOSTERING MAIN,15/03/2022,5549,B*Fostering Allowance - Regulation 38,3111143478,523,Personal Redacted Data
http://statistics.data.gov.uk/id/local-authority/38,Oxfordshire County Council,FOSTERING MAIN,29/03/2022,5549,B*Fostering Allowance - Regulation 38,3111150089,523,Personal Redacted Data
http://statistics.data.gov.uk/id/local-authority/38,Oxfordshire County Council,Support at Home 65+ Learning Disability,15/03/2022,5899,Social Care - Direct Payments,3111144708,523.08,Purple Conversation Com In Co (DP)
http://statistics.data.gov.uk/id/local-authority/38,Oxfordshire County Council,Support at Home U65 HFA,10/03/2022,5688,,3111140030,523.59,The Laurels (Witney)
http://statistics.data.gov.uk/id/local-authority/38,Oxfordshire County Council,SEN TRANSPORT,29/03/2022,5227,Other Transport Arrangements,3111153047,523.6,Banbury Taxis
http://statistics.data.gov.uk/id/local-authority/38,Oxfordshire County Council,Early Years SEN Funding,11/03/2022,5537,Payments to Other Establishments,3111142419,523.6,Cygnets Playschool
http://statistics.data.gov.uk/id/local-authority/38,Oxfordshire County Council,Support at Home 65+ Physical Support,17/03/2022,5696,,3111145812,523.6,Orders of St John Care Trust
http://statistics.data.gov.uk/id/local-authority/38,Oxfordshire County Council,Support at Home 65+ Physical Support,29/03/2022,5698,,3111151324,523.71,Oxford Private Care
http://statistics.data.gov.uk/id/local-authority/38,Oxfordshire County Council,Support at Home U65 Learning Disability,15/03/2022,5899,Social Care - Direct Payments,3111144023,524,Personal Redacted Data
http://statistics.data.gov.uk/id/local-authority/38,Oxfordshire County Council,MAINSTREAM-SECONDARY,30/03/2022,4322,"Season Tickets - Bus, Rail & Ferry",3111152900,524,Stagecoach Services Ltd
http://statistics.data.gov.uk/id/local-authority/38,Oxfordshire County Council,TRANSPORT COSTS,15/03/2022,5227,Other Transport Arrangements,3111143207,524,The Oxfordshire Taxi Company Ltd T/
http://statistics.data.gov.uk/id/local-authority/38,Oxfordshire County Council,Supervised Consumption APL,01/03/2022,4934,,3111135661,524.16,Boots the Chemist
http://statistics.data.gov.uk/id/local-authority/38,Oxfordshire County Council,Supervised Consumption APL,01/03/2022,4934,,3111135664,524.16,Boots the Chemist
http://statistics.data.gov.uk/id/local-authority/38,Oxfordshire County Council,Supervised Consumption APL,01/03/2022,4934,,3111135671,524.16,Faringdon Pharmacy (Sanbol)
http://statistics.data.gov.uk/id/local-authority/38,Oxfordshire County Council,Delegated Health Tasks  - Over 65,15/03/2022,5691,,3111145575,524.17,SEABROOK SERVICES LTD
http://statistics.data.gov.uk/id/local-authority/38,Oxfordshire County Council,COMM DRAWDOWN FUNDNG,24/03/2022,8004,Design Consultant,2200971242,524.39,Milestone Infrastructure Limited
http://statistics.data.gov.uk/id/local-authority/38,Oxfordshire County Council,SEN TRANSPORT,04/03/2022,5227,Other Transport Arrangements,3111136073,525,Crown Cabs Travel Ltd
http://statistics.data.gov.uk/id/local-authority/38,Oxfordshire County Council,Support at Home 65+ Physical Support,11/03/2022,5693,,3111142543,525,HEALTHCARE ACCESS LTD
http://statistics.data.gov.uk/id/local-authority/38,Oxfordshire County Council,Support at Home 65+ Physical Support,30/03/2022,5693,,3111152683,525,HEALTHCARE ACCESS LTD
http://statistics.data.gov.uk/id/local-authority/38,Oxfordshire County Council,FOSTERING MAIN,01/03/2022,5541,B*Foster Parents,3111133868,525,Personal Redacted Data
http://statistics.data.gov.uk/id/local-authority/38,Oxfordshire County Council,FOSTERING MAIN,08/03/2022,5541,B*Foster Parents,3111136958,525,Personal Redacted Data
http://statistics.data.gov.uk/id/local-authority/38,Oxfordshire County Council,FOSTERING MAIN,15/03/2022,5541,B*Foster Parents,3111143471,525,Personal Redacted Data
http://statistics.data.gov.uk/id/local-authority/38,Oxfordshire County Council,FOSTERING MAIN,22/03/2022,5541,B*Foster Parents,3111147829,525,Personal Redacted Data
http://statistics.data.gov.uk/id/local-authority/38,Oxfordshire County Council,FOSTERING MAIN,29/03/2022,5541,B*Foster Parents,3111150077,525,Personal Redacted Data
http://statistics.data.gov.uk/id/local-authority/38,Oxfordshire County Council,Oxfordshire Adoption Support Fund,28/03/2022,4861,Hired and Contracted Services,2200972260,525,PACT (PARENTS & CHILDREN TOGETHER)
http://statistics.data.gov.uk/id/local-authority/38,Oxfordshire County Council,FOSTERING MAIN,01/03/2022,5541,B*Foster Parents,3111134291,525,Personal Redacted Data
http://statistics.data.gov.uk/id/local-authority/38,Oxfordshire County Council,FOSTERING MAIN,08/03/2022,5541,B*Foster Parents,3111137242,525,Personal Redacted Data
http://statistics.data.gov.uk/id/local-authority/38,Oxfordshire County Council,FOSTERING MAIN,15/03/2022,5541,B*Foster Parents,3111143731,525,Personal Redacted Data
http://statistics.data.gov.uk/id/local-authority/38,Oxfordshire County Council,FOSTERING MAIN,22/03/2022,5541,B*Foster Parents,3111148196,525,Personal Redacted Data
http://statistics.data.gov.uk/id/local-authority/38,Oxfordshire County Council,FOSTERING MAIN,29/03/2022,5541,B*Foster Parents,3111150339,525,Personal Redacted Data
http://statistics.data.gov.uk/id/local-authority/38,Oxfordshire County Council,Family Solutions Plus Non-staff - South,14/03/2022,5227,Other Transport Arrangements,3111142693,525,Unitaxi Ltd
http://statistics.data.gov.uk/id/local-authority/38,Oxfordshire County Council,Planned Maintenance,15/03/2022,3787,Premises Repairs,2200967093,525.5,Darren Bryan Security Services
http://statistics.data.gov.uk/id/local-authority/38,Oxfordshire County Council,Support at Home 65+ Mental Health,29/03/2022,5689,,3111151680,525.56,Greigcare Home Service
http://statistics.data.gov.uk/id/local-authority/38,Oxfordshire County Council,Support at Home 65+ Physical Support,02/03/2022,5696,,3111135428,525.56,Radis Community Care
http://statistics.data.gov.uk/id/local-authority/38,Oxfordshire County Council,Support at Home 65+ Physical Support,02/03/2022,5696,,3111135435,525.56,Radis Community Care
http://statistics.data.gov.uk/id/local-authority/38,Oxfordshire County Council,Support at Home 65+ Memory & Cognition,17/03/2022,5696,,3111145783,525.67,Orders of St John Care Trust
http://statistics.data.gov.uk/id/local-authority/38,Oxfordshire County Council,POST 16 SEN,18/03/2022,4330,Transport to School Activities,3111146579,525.75,Abingdon Taxis FKN Autotaxis
http://statistics.data.gov.uk/id/local-authority/38,Oxfordshire County Council,LEGAL BUDGET,22/03/2022,5251,Legal Costs,2200969520,525.99,DNA WORLDWIDE GROUP
http://statistics.data.gov.uk/id/local-authority/38,Oxfordshire County Council,ECH Central Costs,10/03/2022,5696,,3111137940,526.03,BPHA Limited
http://statistics.data.gov.uk/id/local-authority/38,Oxfordshire County Council,Support at Home U65 Learning Disability,10/03/2022,5690,,3111137914,526.11,Oxford Wholefoods
http://statistics.data.gov.uk/id/local-authority/38,Oxfordshire County Council,Support at Home 65+ Physical Support,29/03/2022,5689,,3111151816,526.13,My Carer Ltd
http://statistics.data.gov.uk/id/local-authority/38,Oxfordshire County Council,FAM GRP CONFERENCES,30/03/2022,4940,Other Services,2200973604,526.2,Andy Robinson
http://statistics.data.gov.uk/id/local-authority/38,Oxfordshire County Council,Support at Home U65 Learning Disability,15/03/2022,5899,Social Care - Direct Payments,3111144922,526.28,Purple Conversation Com In Co (DP)
http://statistics.data.gov.uk/id/local-authority/38,Oxfordshire County Council,Support at Home U65 Physical Support,15/03/2022,5899,Social Care - Direct Payments,3111145307,526.28,Purple Conversation Com In Co (DP)
http://statistics.data.gov.uk/id/local-authority/38,Oxfordshire County Council,FOSTERING MAIN,08/03/2022,5227,Other Transport Arrangements,3111136969,526.38,Personal Redacted Data
http://statistics.data.gov.uk/id/local-authority/38,Oxfordshire County Council,Vegetation Mgmt,02/03/2022,5526,Payments to Private Contractors,2200960455,526.4,Milestone Infrastructure Limited
http://statistics.data.gov.uk/id/local-authority/38,Oxfordshire County Council,Support at Home 65+ Mental Health,29/03/2022,5698,,3111151383,526.44,Oxford Private Care
http://statistics.data.gov.uk/id/local-authority/38,Oxfordshire County Council,FAM GRP CONFERENCES,18/03/2022,4940,Other Services,2200968408,526.6,Jessica Howards
http://statistics.data.gov.uk/id/local-authority/38,Oxfordshire County Council,CEF Household Support Fund,29/03/2022,5365,Non-Staff Subsistence and Expenses,9300055211,526.6,OCC SS Banbury Area Off Cash
http://statistics.data.gov.uk/id/local-authority/38,Oxfordshire County Council,CHC Fast Track - Sup at Homes - Over 65,28/03/2022,5691,,3111149451,527.5,Home Helpers Care Ltd
http://statistics.data.gov.uk/id/local-authority/38,Oxfordshire County Council,FOSTERING MAIN,01/03/2022,5545,B*Fostering Enhancements - Level 2,3111134052,528.98,Personal Redacted Data
http://statistics.data.gov.uk/id/local-authority/38,Oxfordshire County Council,Support at Home U65 Mental Health,29/03/2022,5689,,3111152007,529.11,Response Organisation
http://statistics.data.gov.uk/id/local-authority/38,Oxfordshire County Council,Support at Home 65+ Physical Support,01/03/2022,5698,,3111133562,529.17,Oxford Private Care
http://statistics.data.gov.uk/id/local-authority/38,Oxfordshire County Council,LIBRARY COLLECTIONS,16/03/2022,4539,"Books, DVDs and CDs",3111145741,529.32,ASKEWS & HOLTS LIBRARY SERVICES LTD
http://statistics.data.gov.uk/id/local-authority/38,Oxfordshire County Council,Support at Home U65 Other /Soc Isolation,15/03/2022,5899,Social Care - Direct Payments,3111144686,529.48,Purple Conversation Com In Co (DP)
http://statistics.data.gov.uk/id/local-authority/38,Oxfordshire County Council,FOSTERING MAIN,22/03/2022,5227,Other Transport Arrangements,3111147953,529.71,Personal Redacted Data
http://statistics.data.gov.uk/id/local-authority/38,Oxfordshire County Council,Support at Home 65+ Learning Disability,14/03/2022,5688,,3111142833,529.72,Dimensions (UK) Ltd
http://statistics.data.gov.uk/id/local-authority/38,Oxfordshire County Council,Support at Home 65+ Learning Disability,14/03/2022,5688,,3111142836,529.72,Dimensions (UK) Ltd
http://statistics.data.gov.uk/id/local-authority/38,Oxfordshire County Council,Support at Home 65+ Physical Support,29/03/2022,5698,,3111151429,529.76,Oxfordshire Crossroads
http://statistics.data.gov.uk/id/local-authority/38,Oxfordshire County Council,Support at Home 65+ Physical Support,29/03/2022,5689,,3111151808,529.86,My Carer Ltd
http://statistics.data.gov.uk/id/local-authority/38,Oxfordshire County Council,FOSTERING MAIN,29/03/2022,5549,B*Fostering Allowance - Regulation 38,3111150161,529.9,Personal Redacted Data
http://statistics.data.gov.uk/id/local-authority/38,Oxfordshire County Council,REGISTRAR,08/03/2022,7382,Ceremonies,3111136561,530,OCC One Time Vendor
http://statistics.data.gov.uk/id/local-authority/38,Oxfordshire County Council,Strategy Team,16/03/2022,4861,Hired and Contracted Services,2200967495,530,Oxford City Council
http://statistics.data.gov.uk/id/local-authority/38,Oxfordshire County Council,COUNTY PRINT FINSHRS,28/03/2022,5091,Postage and Delivery,2200971881,530.53,Whistl
http://statistics.data.gov.uk/id/local-authority/38,Oxfordshire County Council,Support at Home 65+ Physical Support,29/03/2022,5689,,3111151722,530.64,Home Helpers Care Ltd
http://statistics.data.gov.uk/id/local-authority/38,Oxfordshire County Council,Support at Home 65+ Physical Support,29/03/2022,5689,,3111151761,530.64,Home Helpers Care Ltd
http://statistics.data.gov.uk/id/local-authority/38,Oxfordshire County Council,FOSTERING MAIN,08/03/2022,5227,Other Transport Arrangements,3111136853,530.76,Personal Redacted Data
http://statistics.data.gov.uk/id/local-authority/38,Oxfordshire County Council,Support at Home U65 Physical Support,15/03/2022,5899,Social Care - Direct Payments,3111144561,531.08,Purple Conversation Com In Co (DP)
http://statistics.data.gov.uk/id/local-authority/38,Oxfordshire County Council,Support at Home 65+ Physical Support,01/03/2022,5689,,3111133602,531.25,Greigcare Home Service
http://statistics.data.gov.uk/id/local-authority/38,Oxfordshire County Council,Support at Home U65 Learning Disability,10/03/2022,5688,,3111139830,531.52,Autism at Kingwood Limited
http://statistics.data.gov.uk/id/local-authority/38,Oxfordshire County Council,Oxfordshire Adoption Support Fund,29/03/2022,6500,Government Grants (Revenue),3111149703,531.55,OCC One Time Vendor
http://statistics.data.gov.uk/id/local-authority/38,Oxfordshire County Council,Delegated Health Tasks  - Over 65,29/03/2022,5689,,3111151497,531.81,Caremark (West Oxfordshire & Cherwe
http://statistics.data.gov.uk/id/local-authority/38,Oxfordshire County Council,Support at Home U65 Mental Health,01/03/2022,5696,,3111132565,532,All Care GB Ltd
http://statistics.data.gov.uk/id/local-authority/38,Oxfordshire County Council,Support at Home U65 Physical Support,01/03/2022,5696,,3111132580,532,All Care GB Ltd
http://statistics.data.gov.uk/id/local-authority/38,Oxfordshire County Council,Support at Home U65 Physical Support,01/03/2022,5696,,3111132583,532,All Care GB Ltd
http://statistics.data.gov.uk/id/local-authority/38,Oxfordshire County Council,Support at Home 65+ Memory & Cognition,01/03/2022,5696,,3111132587,532,All Care GB Ltd
http://statistics.data.gov.uk/id/local-authority/38,Oxfordshire County Council,Support at Home 65+ Physical Support,01/03/2022,5696,,3111132601,532,All Care GB Ltd
http://statistics.data.gov.uk/id/local-authority/38,Oxfordshire County Council,Support at Home 65+ Physical Support,01/03/2022,5696,,3111132612,532,All Care GB Ltd
http://statistics.data.gov.uk/id/local-authority/38,Oxfordshire County Council,Support at Home 65+ Physical Support,01/03/2022,5696,,3111132618,532,All Care GB Ltd
http://statistics.data.gov.uk/id/local-authority/38,Oxfordshire County Council,Support at Home 65+ Physical Support,01/03/2022,5696,,3111132620,532,All Care GB Ltd
http://statistics.data.gov.uk/id/local-authority/38,Oxfordshire County Council,Support at Home 65+ Physical Support,01/03/2022,5696,,3111132671,532,All Care GB Ltd
http://statistics.data.gov.uk/id/local-authority/38,Oxfordshire County Council,Support at Home U65 Mental Health,29/03/2022,5696,,3111150042,532,All Care GB Ltd
http://statistics.data.gov.uk/id/local-authority/38,Oxfordshire County Council,Support at Home U65 Physical Support,29/03/2022,5696,,3111150071,532,All Care GB Ltd
http://statistics.data.gov.uk/id/local-authority/38,Oxfordshire County Council,Support at Home U65 Physical Support,29/03/2022,5696,,3111150075,532,All Care GB Ltd
http://statistics.data.gov.uk/id/local-authority/38,Oxfordshire County Council,Support at Home 65+ Memory & Cognition,29/03/2022,5696,,3111150082,532,All Care GB Ltd
http://statistics.data.gov.uk/id/local-authority/38,Oxfordshire County Council,Support at Home 65+ Physical Support,29/03/2022,5696,,3111150108,532,All Care GB Ltd
http://statistics.data.gov.uk/id/local-authority/38,Oxfordshire County Council,Support at Home 65+ Physical Support,29/03/2022,5696,,3111150128,532,All Care GB Ltd
http://statistics.data.gov.uk/id/local-authority/38,Oxfordshire County Council,Support at Home 65+ Physical Support,29/03/2022,5696,,3111150134,532,All Care GB Ltd
http://statistics.data.gov.uk/id/local-authority/38,Oxfordshire County Council,Support at Home 65+ Physical Support,29/03/2022,5696,,3111150140,532,All Care GB Ltd
http://statistics.data.gov.uk/id/local-authority/38,Oxfordshire County Council,Support at Home 65+ Physical Support,29/03/2022,5696,,3111150142,532,All Care GB Ltd
http://statistics.data.gov.uk/id/local-authority/38,Oxfordshire County Council,Support at Home U65 Physical Support,30/03/2022,4330,Transport to School Activities,3111152190,532,Faringdon Cars
http://statistics.data.gov.uk/id/local-authority/38,Oxfordshire County Council,Delegated Health Tasks  - Over 65,22/03/2022,5691,,3111147952,532,Prime Social Care Services Ltd
http://statistics.data.gov.uk/id/local-authority/38,Oxfordshire County Council,Delegated Health Tasks  - Over 65,28/03/2022,5691,,3111149497,532,Prime Social Care Services Ltd
http://statistics.data.gov.uk/id/local-authority/38,Oxfordshire County Council,Support at Home 65+ Physical Support,01/03/2022,5689,,3111133003,532.12,Care Outlook Ltd
http://statistics.data.gov.uk/id/local-authority/38,Oxfordshire County Council,Wokingham Adoption Support Fund,29/03/2022,6500,Government Grants (Revenue),3111149807,532.39,OCC One Time Vendor
http://statistics.data.gov.uk/id/local-authority/38,Oxfordshire County Council,Delegated Health Tasks  - Over 65,18/03/2022,5691,,3111146734,532.4,George Springall Homecare
http://statistics.data.gov.uk/id/local-authority/38,Oxfordshire County Council,Support at Home 65+ Physical Support,29/03/2022,5689,,3111151417,532.51,Care Outlook Ltd
http://statistics.data.gov.uk/id/local-authority/38,Oxfordshire County Council,Delegated Health Tasks  - Over 65,01/03/2022,5689,,3111133145,532.7,Caremark (West Oxfordshire & Cherwe
http://statistics.data.gov.uk/id/local-authority/38,Oxfordshire County Council,FOSTERING MAIN,01/03/2022,5549,B*Fostering Allowance - Regulation 38,3111134158,533,Personal Redacted Data
http://statistics.data.gov.uk/id/local-authority/38,Oxfordshire County Council,FOSTERING MAIN,08/03/2022,5549,B*Fostering Allowance - Regulation 38,3111137189,533,Personal Redacted Data
http://statistics.data.gov.uk/id/local-authority/38,Oxfordshire County Council,FOSTERING MAIN,15/03/2022,5549,B*Fostering Allowance - Regulation 38,3111143648,533,Personal Redacted Data
http://statistics.data.gov.uk/id/local-authority/38,Oxfordshire County Council,FOSTERING MAIN,22/03/2022,5549,B*Fostering Allowance - Regulation 38,3111148153,533,Personal Redacted Data
http://statistics.data.gov.uk/id/local-authority/38,Oxfordshire County Council,FOSTERING MAIN,29/03/2022,5549,B*Fostering Allowance - Regulation 38,3111150262,533,Personal Redacted Data
http://statistics.data.gov.uk/id/local-authority/38,Oxfordshire County Council,LAC PUPIL PREMIUM,17/03/2022,5380,"Author, Speaker and Lecturer Fees",2200968076,533.83,Teaching Personnel Ltd
http://statistics.data.gov.uk/id/local-authority/38,Oxfordshire County Council,OTHER NON-HOUSEHOLD,14/03/2022,5526,Payments to Private Contractors,2200966404,534,Cawleys Ltd
http://statistics.data.gov.uk/id/local-authority/38,Oxfordshire County Council,FOSTERING MAIN,01/03/2022,5549,B*Fostering Allowance - Regulation 38,3111133789,534,Personal Redacted Data
http://statistics.data.gov.uk/id/local-authority/38,Oxfordshire County Council,FOSTERING MAIN,08/03/2022,5549,B*Fostering Allowance - Regulation 38,3111136859,534,Personal Redacted Data
http://statistics.data.gov.uk/id/local-authority/38,Oxfordshire County Council,FOSTERING MAIN,15/03/2022,5549,B*Fostering Allowance - Regulation 38,3111143436,534,Personal Redacted Data
http://statistics.data.gov.uk/id/local-authority/38,Oxfordshire County Council,FOSTERING MAIN,22/03/2022,5549,B*Fostering Allowance - Regulation 38,3111147755,534,Personal Redacted Data
http://statistics.data.gov.uk/id/local-authority/38,Oxfordshire County Council,FOSTERING MAIN,29/03/2022,5549,B*Fostering Allowance - Regulation 38,3111150012,534,Personal Redacted Data
http://statistics.data.gov.uk/id/local-authority/38,Oxfordshire County Council,STREET SWEEPINGS,21/03/2022,5227,Other Transport Arrangements,2200968867,534.05,GRUNDON WASTE MANAGEMENT LTD
http://statistics.data.gov.uk/id/local-authority/38,Oxfordshire County Council,Support at Home 65+ Physical Support,01/03/2022,5689,,3111132961,534.07,Care Outlook Ltd
http://statistics.data.gov.uk/id/local-authority/38,Oxfordshire County Council,Support at Home U65 Physical Support,11/03/2022,5693,,3111142545,534.08,Helping Hands
http://statistics.data.gov.uk/id/local-authority/38,Oxfordshire County Council,NURSERY ED FUND,02/03/2022,5537,Payments to Other Establishments,3111135079,534.2,Natasha McSweeney
http://statistics.data.gov.uk/id/local-authority/38,Oxfordshire County Council,LEAVING CARE SOUTH,31/03/2022,4685,Clothing and Uniforms,9300055240,534.82,OCC SS Banbury Area Off Cash
http://statistics.data.gov.uk/id/local-authority/38,Oxfordshire County Council,,01/03/2022,1531,Cash Allocation Control Account,3111152808,534.82,Personal Redacted Data
http://statistics.data.gov.uk/id/local-authority/38,Oxfordshire County Council,Support at Home 65+ Mental Health,29/03/2022,5699,,3111150235,534.83,Alina Homecare Ltd
http://statistics.data.gov.uk/id/local-authority/38,Oxfordshire County Council,Support at Home U65 Learning Disability,15/03/2022,5899,Social Care - Direct Payments,3111144491,534.88,Purple Conversation Com In Co (DP)
http://statistics.data.gov.uk/id/local-authority/38,Oxfordshire County Council,Contingency Home Care,01/03/2022,5689,,3111133943,534.9,Oxford University Hospitals NHS FT
http://statistics.data.gov.uk/id/local-authority/38,Oxfordshire County Council,Support at Home 65+ Physical Support,10/03/2022,5686,,3111141705,535,Orders of St John
http://statistics.data.gov.uk/id/local-authority/38,Oxfordshire County Council,Support at Home 65+ Physical Support,10/03/2022,5686,,3111141818,535,Orders of St John
http://statistics.data.gov.uk/id/local-authority/38,Oxfordshire County Council,COMM DRAWDOWN FUNDNG,16/03/2022,8004,Design Consultant,2200967519,535.1,AECOM Infrastructure & Environment
http://statistics.data.gov.uk/id/local-authority/38,Oxfordshire County Council,COMM DRAWDOWN FUNDNG,16/03/2022,8004,Design Consultant,2200967523,535.1,AECOM Infrastructure & Environment
http://statistics.data.gov.uk/id/local-authority/38,Oxfordshire County Council,Support at Home U65 Mental Health,01/03/2022,5689,,3111134232,535.18,Response Organisation
http://statistics.data.gov.uk/id/local-authority/38,Oxfordshire County Council,Support at Home 65+ Physical Support,01/03/2022,5689,,3111133185,535.3,Casa Care Ltd
http://statistics.data.gov.uk/id/local-authority/38,Oxfordshire County Council,Support at Home 65+ Physical Support,09/03/2022,5693,,3111137441,535.5,Enable Health Ltd
http://statistics.data.gov.uk/id/local-authority/38,Oxfordshire County Council,Contingency Home Care,29/03/2022,5689,,3111151896,535.58,Oxford University Hospitals NHS FT
http://statistics.data.gov.uk/id/local-authority/38,Oxfordshire County Council,FOSTERING MAIN,01/03/2022,5541,B*Foster Parents,3111134056,536,Personal Redacted Data
http://statistics.data.gov.uk/id/local-authority/38,Oxfordshire County Council,FOSTERING MAIN,01/03/2022,5541,B*Foster Parents,3111134059,536,Personal Redacted Data
http://statistics.data.gov.uk/id/local-authority/38,Oxfordshire County Council,FOSTERING MAIN,08/03/2022,5541,B*Foster Parents,3111137152,536,Personal Redacted Data
http://statistics.data.gov.uk/id/local-authority/38,Oxfordshire County Council,FOSTERING MAIN,08/03/2022,5541,B*Foster Parents,3111137153,536,Personal Redacted Data
http://statistics.data.gov.uk/id/local-authority/38,Oxfordshire County Council,FOSTERING MAIN,15/03/2022,5541,B*Foster Parents,3111143424,536,Personal Redacted Data
http://statistics.data.gov.uk/id/local-authority/38,Oxfordshire County Council,FOSTERING MAIN,15/03/2022,5541,B*Foster Parents,3111143425,536,Personal Redacted Data
http://statistics.data.gov.uk/id/local-authority/38,Oxfordshire County Council,FOSTERING MAIN,22/03/2022,5541,B*Foster Parents,3111147725,536,Personal Redacted Data
http://statistics.data.gov.uk/id/local-authority/38,Oxfordshire County Council,FOSTERING MAIN,22/03/2022,5541,B*Foster Parents,3111147727,536,Personal Redacted Data
http://statistics.data.gov.uk/id/local-authority/38,Oxfordshire County Council,FOSTERING MAIN,29/03/2022,5541,B*Foster Parents,3111150002,536,Personal Redacted Data
http://statistics.data.gov.uk/id/local-authority/38,Oxfordshire County Council,FOSTERING MAIN,29/03/2022,5541,B*Foster Parents,3111150003,536,Personal Redacted Data
http://statistics.data.gov.uk/id/local-authority/38,Oxfordshire County Council,Support at Home U65 Physical Support,15/03/2022,5899,Social Care - Direct Payments,3111144064,536,Personal Redacted Data
http://statistics.data.gov.uk/id/local-authority/38,Oxfordshire County Council,Support at Home U65 Learning Disability,15/03/2022,5899,Social Care - Direct Payments,3111144114,536,Personal Redacted Data
http://statistics.data.gov.uk/id/local-authority/38,Oxfordshire County Council,UASC 16&17,04/03/2022,5365,Non-Staff Subsistence and Expenses,9300054814,536.12,OCC SS Banbury Area Off Cash
http://statistics.data.gov.uk/id/local-authority/38,Oxfordshire County Council,SPECIAL GUARDIANSHIP,15/03/2022,5661,B*Carriageway pre surf. dressing patchin,3111144773,536.9,Personal Redacted Data
http://statistics.data.gov.uk/id/local-authority/38,Oxfordshire County Council,Support at Home U65 Learning Disability,29/03/2022,5689,,3111151952,537.39,PLL Care Services
http://statistics.data.gov.uk/id/local-authority/38,Oxfordshire County Council,Support at Home U65 Physical Support,29/03/2022,5698,,3111150883,537.54,Acquire Care Ltd
http://statistics.data.gov.uk/id/local-authority/38,Oxfordshire County Council,Support at Home U65 Physical Support,01/03/2022,5698,,3111133041,538.01,Acquire Care Ltd
http://statistics.data.gov.uk/id/local-authority/38,Oxfordshire County Council,Support at Home 65+ Physical Support,29/03/2022,5689,,3111151663,538.05,Goldsmith Personnel Ltd
http://statistics.data.gov.uk/id/local-authority/38,Oxfordshire County Council,LIBRARY COLLECTIONS,03/03/2022,4539,"Books, DVDs and CDs",3111135882,538.32,ASKEWS & HOLTS LIBRARY SERVICES LTD
http://statistics.data.gov.uk/id/local-authority/38,Oxfordshire County Council,Support at Home U65 MH OBC Contract,24/03/2022,5691,,3111148509,538.38,Personal Redacted Data
http://statistics.data.gov.uk/id/local-authority/38,Oxfordshire County Council,FPT NORTH,22/03/2022,5394,Other Expenses,3111147868,539,Personal Redacted Data
http://statistics.data.gov.uk/id/local-authority/38,Oxfordshire County Council,Swindon Adoption Support Fund,23/03/2022,4861,Hired and Contracted Services,2200970295,540,2PIP Theraputic Services
http://statistics.data.gov.uk/id/local-authority/38,Oxfordshire County Council,SEN TRANSPORT,11/03/2022,5227,Other Transport Arrangements,3111142444,540,A2B Castle Cars Ltd
http://statistics.data.gov.uk/id/local-authority/38,Oxfordshire County Council,SEN TRANSPORT,01/03/2022,5227,Other Transport Arrangements,3111132527,540,Airport Transfers Banbury Ltd
http://statistics.data.gov.uk/id/local-authority/38,Oxfordshire County Council,POST 16 SEN,22/03/2022,4330,Transport to School Activities,3111147258,540,Ali's Cabs
http://statistics.data.gov.uk/id/local-authority/38,Oxfordshire County Council,LEGAL SERVICES,22/03/2022,5251,Legal Costs,2200969723,540,Cherwell District Council
http://statistics.data.gov.uk/id/local-authority/38,Oxfordshire County Council,SEN TRANSPORT,04/03/2022,5227,Other Transport Arrangements,3111136097,540,Crown Cabs Travel Ltd
http://statistics.data.gov.uk/id/local-authority/38,Oxfordshire County Council,LEGAL BUDGET,03/03/2022,5251,Legal Costs,2200960998,540,DR A J WILKINS
http://statistics.data.gov.uk/id/local-authority/38,Oxfordshire County Council,MAINSTREAM-PRIMARY,14/03/2022,4330,Transport to School Activities,3111142895,540,Go Green Taxis
http://statistics.data.gov.uk/id/local-authority/38,Oxfordshire County Council,SEN TRANSPORT,22/03/2022,5227,Other Transport Arrangements,3111147206,540,Her Ride Limited
http://statistics.data.gov.uk/id/local-authority/38,Oxfordshire County Council,CC TRAINING,31/03/2022,3103,Other Training Courses and Qualification,2200974540,540,MBL SEMINARS LTD
http://statistics.data.gov.uk/id/local-authority/38,Oxfordshire County Council,SEN Alternative Provision,22/03/2022,4878,Hired and Contracted Services (Curricul,2200969511,540,NHance Maths Academy
http://statistics.data.gov.uk/id/local-authority/38,Oxfordshire County Council,SEN Alternative Provision,22/03/2022,4878,Hired and Contracted Services (Curricul,2200969514,540,NHance Maths Academy
http://statistics.data.gov.uk/id/local-authority/38,Oxfordshire County Council,LEGAL BUDGET,08/03/2022,5251,Legal Costs,3111137324,540,OCC One Time Vendor
http://statistics.data.gov.uk/id/local-authority/38,Oxfordshire County Council,Clinical Team,21/03/2022,3100,Educational and Vocational Training,3111146855,540,OCC One Time Vendor
http://statistics.data.gov.uk/id/local-authority/38,Oxfordshire County Council,CORONER,08/03/2022,5202,Use of Mortuary Services,2200963321,540,Oxford University Hospitals NHS Tru
http://statistics.data.gov.uk/id/local-authority/38,Oxfordshire County Council,POST 16 SEN,22/03/2022,5227,Other Transport Arrangements,3111147250,540,Oxfordlinks
http://statistics.data.gov.uk/id/local-authority/38,Oxfordshire County Council,SEN TRANSPORT,14/03/2022,5227,Other Transport Arrangements,3111142910,540,Oxon Transport Services Ltd
http://statistics.data.gov.uk/id/local-authority/38,Oxfordshire County Council,SEN TRANSPORT,14/03/2022,5227,Other Transport Arrangements,3111142914,540,Oxon Transport Services Ltd
http://statistics.data.gov.uk/id/local-authority/38,Oxfordshire County Council,SEN TRANSPORT,14/03/2022,5227,Other Transport Arrangements,3111142940,540,Oxon Transport Services Ltd
http://statistics.data.gov.uk/id/local-authority/38,Oxfordshire County Council,SEN TRANSPORT,14/03/2022,5227,Other Transport Arrangements,3111142994,540,Oxon Transport Services Ltd
http://statistics.data.gov.uk/id/local-authority/38,Oxfordshire County Council,SEN TRANSPORT,14/03/2022,5227,Other Transport Arrangements,3111143003,540,Oxon Transport Services Ltd
http://statistics.data.gov.uk/id/local-authority/38,Oxfordshire County Council,SEN TRANSPORT,14/03/2022,5227,Other Transport Arrangements,3111143009,540,Oxon Transport Services Ltd
http://statistics.data.gov.uk/id/local-authority/38,Oxfordshire County Council,SEN TRANSPORT,14/03/2022,5227,Other Transport Arrangements,3111143011,540,Oxon Transport Services Ltd
http://statistics.data.gov.uk/id/local-authority/38,Oxfordshire County Council,SEN TRANSPORT,14/03/2022,5227,Other Transport Arrangements,3111143032,540,Oxon Transport Services Ltd
http://statistics.data.gov.uk/id/local-authority/38,Oxfordshire County Council,SEN TRANSPORT,14/03/2022,5227,Other Transport Arrangements,3111143034,540,Oxon Transport Services Ltd
http://statistics.data.gov.uk/id/local-authority/38,Oxfordshire County Council,FPT CITY,01/03/2022,4525,Furniture,3111134293,540,Personal Redacted Data
http://statistics.data.gov.uk/id/local-authority/38,Oxfordshire County Council,NURSERY ED FUND,02/03/2022,5537,Payments to Other Establishments,3111135131,540,Rose Hill Pre-School
http://statistics.data.gov.uk/id/local-authority/38,Oxfordshire County Council,COMMUNITY & ROAD SAFETY,10/03/2022,3103,Other Training Courses and Qualification,2200964684,540,The Bike Academy (South) Ltd
http://statistics.data.gov.uk/id/local-authority/38,Oxfordshire County Council,COMMUNITY & ROAD SAFETY,30/03/2022,3103,Other Training Courses and Qualification,2200973448,540,The Bike Academy (South) Ltd
http://statistics.data.gov.uk/id/local-authority/38,Oxfordshire County Council,SEN TRANSPORT,15/03/2022,5227,Other Transport Arrangements,3111143236,540,The Oxfordshire Taxi Company Ltd T/
http://statistics.data.gov.uk/id/local-authority/38,Oxfordshire County Council,SEN TRANSPORT,15/03/2022,5227,Other Transport Arrangements,3111143294,540,The Oxfordshire Taxi Company Ltd T/
http://statistics.data.gov.uk/id/local-authority/38,Oxfordshire County Council,Contingency Home Care,01/03/2022,5689,,3111133976,540.35,Oxford University Hospitals NHS FT
http://statistics.data.gov.uk/id/local-authority/38,Oxfordshire County Council,Support at Home U65 Mental Health,04/03/2022,5693,,3111135995,540.87,Care at Home
http://statistics.data.gov.uk/id/local-authority/38,Oxfordshire County Council,NURSERY ED FUND,02/03/2022,5537,Payments to Other Establishments,3111134996,541.73,Kelly Louch
http://statistics.data.gov.uk/id/local-authority/38,Oxfordshire County Council,NURSERY ED FUND,02/03/2022,5537,Payments to Other Establishments,3111135153,541.73,Sarah Peterson
http://statistics.data.gov.uk/id/local-authority/38,Oxfordshire County Council,NURSERY ED FUND,02/03/2022,5537,Payments to Other Establishments,3111135160,541.73,Sharon Maddox
http://statistics.data.gov.uk/id/local-authority/38,Oxfordshire County Council,Support at Home U65 Learning Disability,29/03/2022,5682,,3111152154,542.64,The Brandon Trust
http://statistics.data.gov.uk/id/local-authority/38,Oxfordshire County Council,Support at Home U65 Learning Disability,14/03/2022,5688,,3111142766,542.72,Dimensions (UK) Ltd
http://statistics.data.gov.uk/id/local-authority/38,Oxfordshire County Council,Support at Home 65+ Memory & Cognition,09/03/2022,5693,,3111137414,543.05,CaringPlus Healthcare Services Ltd
http://statistics.data.gov.uk/id/local-authority/38,Oxfordshire County Council,Support at Home U65 Learning Disability,15/03/2022,5899,Social Care - Direct Payments,3111144483,543.08,Purple Conversation Com In Co (DP)
http://statistics.data.gov.uk/id/local-authority/38,Oxfordshire County Council,Support at Home 65+ Physical Support,15/03/2022,5899,Social Care - Direct Payments,3111144819,543.08,Purple Conversation Com In Co (DP)
http://statistics.data.gov.uk/id/local-authority/38,Oxfordshire County Council,Support at Home U65 Learning Disability,15/03/2022,5899,Social Care - Direct Payments,3111145437,543.08,Purple Conversation Com In Co (DP)
http://statistics.data.gov.uk/id/local-authority/38,Oxfordshire County Council,Support at Home U65 Learning Disability,01/03/2022,5689,,3111134041,543.41,Pechiv Ltd
http://statistics.data.gov.uk/id/local-authority/38,Oxfordshire County Council,Independent Foster,30/03/2022,5559,,3111152840,543.43,BY THE BRIDGE
http://statistics.data.gov.uk/id/local-authority/38,Oxfordshire County Council,Support at Home 65+ Physical Support,01/03/2022,5698,,3111133220,543.52,Day & Night Care Assistance
http://statistics.data.gov.uk/id/local-authority/38,Oxfordshire County Council,SEN Additional Funding,15/03/2022,5537,Payments to Other Establishments,3111145605,543.56,Longford Park Primary School
http://statistics.data.gov.uk/id/local-authority/38,Oxfordshire County Council,Support at Home U65 Physical Support,01/03/2022,5689,,3111133656,543.78,Harino Care
http://statistics.data.gov.uk/id/local-authority/38,Oxfordshire County Council,MultiCAV,15/03/2022,4861,Hired and Contracted Services,2200967132,543.8,Nova Modus
http://statistics.data.gov.uk/id/local-authority/38,Oxfordshire County Council,Support at Home 65+ Physical Support,15/03/2022,5899,Social Care - Direct Payments,3111144347,544,Personal Redacted Data
http://statistics.data.gov.uk/id/local-authority/38,Oxfordshire County Council,LAC PUPIL PREMIUM,21/03/2022,5537,Payments to Other Establishments,3111146957,544,Pegasus Primary School
http://statistics.data.gov.uk/id/local-authority/38,Oxfordshire County Council,COUNTY PRINT FINSHRS,01/03/2022,4705,Printing,2200960006,544.1,Lexon Group
http://statistics.data.gov.uk/id/local-authority/38,Oxfordshire County Council,SM DISABILITIES,28/03/2022,5554,Childrens' Social Care - Direct Payments,3111149562,544.29,Personal Redacted Data
http://statistics.data.gov.uk/id/local-authority/38,Oxfordshire County Council,DEFINITIVE MAP,14/03/2022,3103,Other Training Courses and Qualification,2200966512,544.5,INSTITUTE OF PUBLIC RIGHTS OF WAY
http://statistics.data.gov.uk/id/local-authority/38,Oxfordshire County Council,,11/03/2022,1448,Blackfield Inc & Exp A/c,3111142603,544.6,OCC One Time Vendor
http://statistics.data.gov.uk/id/local-authority/38,Oxfordshire County Council,Support at Home 65+ Learning Disability,17/03/2022,5696,,3111145803,544.93,Orders of St John Care Trust
http://statistics.data.gov.uk/id/local-authority/38,Oxfordshire County Council,SPECIAL GUARDIANSHIP,15/03/2022,5661,B*Carriageway pre surf. dressing patchin,3111144771,545.33,Personal Redacted Data
http://statistics.data.gov.uk/id/local-authority/38,Oxfordshire County Council,Support at Home 65+ Physical Support,01/03/2022,5689,,3111133606,545.44,Greigcare Home Service
http://statistics.data.gov.uk/id/local-authority/38,Oxfordshire County Council,Support at Home U65 Physical Support,29/03/2022,5689,,3111152094,545.67,T.HOW HOMELY LTD
http://statistics.data.gov.uk/id/local-authority/38,Oxfordshire County Council,Support at Home 65+ Learning Disability,01/03/2022,5689,,3111133608,546.2,Greigcare Home Service
http://statistics.data.gov.uk/id/local-authority/38,Oxfordshire County Council,FAMILY TIME TEAM,01/03/2022,4940,Other Services,2200959858,546.26,BDP Social Care LTD
http://statistics.data.gov.uk/id/local-authority/38,Oxfordshire County Council,FAMILY TIME TEAM,07/03/2022,5394,Other Expenses,2200962575,546.26,BDP Social Care LTD
http://statistics.data.gov.uk/id/local-authority/38,Oxfordshire County Council,SEN TRANSPORT,14/03/2022,5227,Other Transport Arrangements,3111142908,546.3,Oxon Transport Services Ltd
http://statistics.data.gov.uk/id/local-authority/38,Oxfordshire County Council,Support at Home 65+ Physical Support,29/03/2022,5689,,3111151472,546.56,Caremark (West Oxfordshire & Cherwe
http://statistics.data.gov.uk/id/local-authority/38,Oxfordshire County Council,Support at Home 65+ Physical Support,29/03/2022,5699,,3111150486,546.71,Mega Resources Ltd
http://statistics.data.gov.uk/id/local-authority/38,Oxfordshire County Council,Support at Home 65+ Physical Support,29/03/2022,5699,,3111150632,546.72,YOD Ltd
http://statistics.data.gov.uk/id/local-authority/38,Oxfordshire County Council,Support at Home 65+ Physical Support,17/03/2022,5696,,3111145895,546.96,Orders of St John Care Trust
http://statistics.data.gov.uk/id/local-authority/38,Oxfordshire County Council,HN IN SEC SCHOOLS,21/03/2022,5537,Payments to Other Establishments,3111146881,547,FUTURES INSTITUTE BANBURY
http://statistics.data.gov.uk/id/local-authority/38,Oxfordshire County Council,Support at Home U65 Learning Disability,29/03/2022,5682,,3111152150,547.07,The Brandon Trust
http://statistics.data.gov.uk/id/local-authority/38,Oxfordshire County Council,Support at Home 65+ Mental Health,01/03/2022,5689,,3111133489,547.09,Golden Services Care Ltd
http://statistics.data.gov.uk/id/local-authority/38,Oxfordshire County Council,Support at Home U65 Physical Support,15/03/2022,5899,Social Care - Direct Payments,3111144727,547.2,Purple Conversation Com In Co (DP)
http://statistics.data.gov.uk/id/local-authority/38,Oxfordshire County Council,FOSTERING MAIN,29/03/2022,5548,B*Fostering - Special Rates & Plus Amou,3111150444,547.33,Personal Redacted Data
http://statistics.data.gov.uk/id/local-authority/38,Oxfordshire County Council,Support at Home U65 Mental Health,09/03/2022,5693,,3111137476,547.4,XPERIENCE RECRUITMENT LIMITED
http://statistics.data.gov.uk/id/local-authority/38,Oxfordshire County Council,Support at Home 65+ Physical Support,09/03/2022,5693,,3111137483,547.4,XPERIENCE RECRUITMENT LIMITED
http://statistics.data.gov.uk/id/local-authority/38,Oxfordshire County Council,Support at Home 65+ Physical Support,30/03/2022,5693,,3111152783,547.4,XPERIENCE RECRUITMENT LIMITED
http://statistics.data.gov.uk/id/local-authority/38,Oxfordshire County Council,Support at Home 65+ Physical Support,29/03/2022,5698,,3111150847,547.75,Acquire Care Ltd
http://statistics.data.gov.uk/id/local-authority/38,Oxfordshire County Council,Support at Home 65+ Memory & Cognition,29/03/2022,5689,,3111151282,548,Amber Healthcare Personnel Ltd
http://statistics.data.gov.uk/id/local-authority/38,Oxfordshire County Council,TRO TEAM,07/03/2022,4790,"Publicity, Promotions and Advertisement",2200962127,548.41,Tmp (Uk) Ltd
http://statistics.data.gov.uk/id/local-authority/38,Oxfordshire County Council,VIRTUAL SCHOOL LAC,07/03/2022,3942,Hire of Accommodation and Facilities,2200962390,549,Firoka(Oxford United Stadium) Ltd
http://statistics.data.gov.uk/id/local-authority/38,Oxfordshire County Council,Support at Home 65+ Physical Support,29/03/2022,5698,,3111151199,549.51,Day & Night Care Assistance
http://statistics.data.gov.uk/id/local-authority/38,Oxfordshire County Council,Support at Home 65+ Memory & Cognition,01/03/2022,5689,,3111134168,549.56,Prestige Nursing Ltd
http://statistics.data.gov.uk/id/local-authority/38,Oxfordshire County Council,OPERATIONS,22/03/2022,4498,Health and Safety Equipment,2200969488,549.9,THE HEIGHTEC GROUP
http://statistics.data.gov.uk/id/local-authority/38,Oxfordshire County Council,Support at Home 65+ Physical Support,01/03/2022,5689,,3111132988,549.93,Care Outlook Ltd
http://statistics.data.gov.uk/id/local-authority/38,Oxfordshire County Council,SEN TRANSPORT,17/03/2022,4330,Transport to School Activities,3111146143,550,A2B Castle Cars Ltd
http://statistics.data.gov.uk/id/local-authority/38,Oxfordshire County Council,LEGAL SERVICES,31/03/2022,5251,Legal Costs,2200974358,550,Adam Kayani
http://statistics.data.gov.uk/id/local-authority/38,Oxfordshire County Council,LEGAL SERVICES,15/03/2022,5251,Legal Costs,2200967084,550,Alana Hughes
http://statistics.data.gov.uk/id/local-authority/38,Oxfordshire County Council,LEGAL SERVICES,15/03/2022,5251,Legal Costs,2200967128,550,Annie Sayers
http://statistics.data.gov.uk/id/local-authority/38,Oxfordshire County Council,LEGAL SERVICES,29/03/2022,5251,Legal Costs,2200973053,550,Annie Sayers
http://statistics.data.gov.uk/id/local-authority/38,Oxfordshire County Council,Support at Home U65 Physical Support,14/03/2022,5227,Other Transport Arrangements,3111142728,550,BC CARS
http://statistics.data.gov.uk/id/local-authority/38,Oxfordshire County Council,Household Support Fund,25/03/2022,4939,,3111148708,550,Berinsfield Early Years Pre-School
http://statistics.data.gov.uk/id/local-authority/38,Oxfordshire County Council,Household Support Fund,25/03/2022,4939,,3111148712,550,Bright Start Pre-school
http://statistics.data.gov.uk/id/local-authority/38,Oxfordshire County Council,LEGAL SERVICES,18/03/2022,5251,Legal Costs,2200968742,550,Carol Clelland
http://statistics.data.gov.uk/id/local-authority/38,Oxfordshire County Council,LEGAL SERVICES,29/03/2022,5251,Legal Costs,2200973163,550,Caroline Budden
http://statistics.data.gov.uk/id/local-authority/38,Oxfordshire County Council,Household Support Fund,25/03/2022,4939,,3111148734,550,Chipping Norton Pre-school
http://statistics.data.gov.uk/id/local-authority/38,Oxfordshire County Council,LEGAL SERVICES,10/03/2022,5251,Legal Costs,2200964725,550,David Marusza
http://statistics.data.gov.uk/id/local-authority/38,Oxfordshire County Council,LEGAL SERVICES,18/03/2022,5251,Legal Costs,2200968785,550,David Marusza
http://statistics.data.gov.uk/id/local-authority/38,Oxfordshire County Council,LEGAL SERVICES,18/03/2022,5251,Legal Costs,2200968770,550,Fazeela Ishmael
http://statistics.data.gov.uk/id/local-authority/38,Oxfordshire County Council,Household Support Fund,25/03/2022,4939,,3111148779,550,Hardwick Primary School Academy
http://statistics.data.gov.uk/id/local-authority/38,Oxfordshire County Council,Afghanistan settler holding hotel fund,29/03/2022,4315,Payments for Conveying Children,2200973122,550,Heyfordian Travel Ltd
http://statistics.data.gov.uk/id/local-authority/38,Oxfordshire County Council,Afghanistan settler holding hotel fund,29/03/2022,4315,Payments for Conveying Children,2200973154,550,Heyfordian Travel Ltd
http://statistics.data.gov.uk/id/local-authority/38,Oxfordshire County Council,Afghanistan settler holding hotel fund,29/03/2022,4315,Payments for Conveying Children,2200973161,550,Heyfordian Travel Ltd
http://statistics.data.gov.uk/id/local-authority/38,Oxfordshire County Council,Afghanistan settler holding hotel fund,29/03/2022,4315,Payments for Conveying Children,2200973164,550,Heyfordian Travel Ltd
http://statistics.data.gov.uk/id/local-authority/38,Oxfordshire County Council,LEGAL SERVICES,31/03/2022,5251,Legal Costs,2200974371,550,Kate Ferguson
http://statistics.data.gov.uk/id/local-authority/38,Oxfordshire County Council,SEN Alternative Provision,09/03/2022,4861,Hired and Contracted Services,2200963488,550,Langtree School
http://statistics.data.gov.uk/id/local-authority/38,Oxfordshire County Council,LEGAL SERVICES,04/03/2022,5251,Legal Costs,2200961977,550,Mavis Amonoo-Acquah
http://statistics.data.gov.uk/id/local-authority/38,Oxfordshire County Council,Household Support Fund,25/03/2022,4939,,3111148849,550,Millbrook Primary School
http://statistics.data.gov.uk/id/local-authority/38,Oxfordshire County Council,LEGAL SERVICES,18/03/2022,5251,Legal Costs,2200968793,550,Miss Anna Yarde
http://statistics.data.gov.uk/id/local-authority/38,Oxfordshire County Council,LEGAL SERVICES,10/03/2022,5251,Legal Costs,2200964631,550,Miss Justine Ramsden
http://statistics.data.gov.uk/id/local-authority/38,Oxfordshire County Council,LEGAL SERVICES,31/03/2022,5251,Legal Costs,2200974387,550,Ms Sian Cox
http://statistics.data.gov.uk/id/local-authority/38,Oxfordshire County Council,LEGAL SERVICES,04/03/2022,5251,Legal Costs,2200962013,550,Natasha Miller
http://statistics.data.gov.uk/id/local-authority/38,Oxfordshire County Council,Household Support Fund,25/03/2022,4939,,3111148862,550,NOAs Ark Nursery
http://statistics.data.gov.uk/id/local-authority/38,Oxfordshire County Council,MENTAL CAPACITY,28/03/2022,5380,"Author, Speaker and Lecturer Fees",3111149286,550,OCC One Time Vendor
http://statistics.data.gov.uk/id/local-authority/38,Oxfordshire County Council,LEGAL SERVICES,11/03/2022,5251,Legal Costs,2200965185,550,Oliver Powell (Harcourt)
http://statistics.data.gov.uk/id/local-authority/38,Oxfordshire County Council,LEGAL SERVICES,18/03/2022,5251,Legal Costs,2200968393,550,Oliver Powell (Harcourt)
http://statistics.data.gov.uk/id/local-authority/38,Oxfordshire County Council,LEGAL SERVICES,29/03/2022,5251,Legal Costs,2200973058,550,Paige Campbell
http://statistics.data.gov.uk/id/local-authority/38,Oxfordshire County Council,TRAINING MANAGEMENT,21/03/2022,3100,Educational and Vocational Training,2200969267,550,Police & Crime Comm for W.Midlands
http://statistics.data.gov.uk/id/local-authority/38,Oxfordshire County Council,L&D CORE PROGRAMME,07/03/2022,3103,Other Training Courses and Qualification,2200962165,550,Premier Partnership
http://statistics.data.gov.uk/id/local-authority/38,Oxfordshire County Council,Household Support Fund,25/03/2022,4939,,3111148881,550,Robin Playgroup
http://statistics.data.gov.uk/id/local-authority/38,Oxfordshire County Council,LEGAL SERVICES,04/03/2022,5251,Legal Costs,2200962037,550,Ruby Jamieson
http://statistics.data.gov.uk/id/local-authority/38,Oxfordshire County Council,Household Support Fund,25/03/2022,4939,,3111149197,550,St Josephs Thame
http://statistics.data.gov.uk/id/local-authority/38,Oxfordshire County Council,Staff Travel Benefits,17/03/2022,4340,Staff and Volunteer Travel Expenses - General,2200968115,550,Stagecoach Services Ltd.
http://statistics.data.gov.uk/id/local-authority/38,Oxfordshire County Council,LEGAL SERVICES,18/03/2022,5251,Legal Costs,2200968774,550,Stephen Crispin
http://statistics.data.gov.uk/id/local-authority/38,Oxfordshire County Council,LANDLORD & TENANT,23/03/2022,3980,Service Charges - Premises,3500082300,550.09,Savills (UK) Limited
http://statistics.data.gov.uk/id/local-authority/38,Oxfordshire County Council,Support at Home 65+ Physical Support,01/03/2022,5689,,3111133746,550.13,Home Helpers Care Ltd
http://statistics.data.gov.uk/id/local-authority/38,Oxfordshire County Council,Support at Home 65+ Physical Support,01/03/2022,5698,,3111133428,550.43,Day & Night Care Assistance
http://statistics.data.gov.uk/id/local-authority/38,Oxfordshire County Council,TRADING STANDARDS,29/03/2022,4820,Sampling and Testing,2200973264,550.8,Hampshire Scientific Services
http://statistics.data.gov.uk/id/local-authority/38,Oxfordshire County Council,Support at Home U65 Learning Disability,29/03/2022,5682,,3111152155,550.92,The Brandon Trust
http://statistics.data.gov.uk/id/local-authority/38,Oxfordshire County Council,Support at Home U65 Learning Disability,01/03/2022,5696,,3111132616,551,All Care GB Ltd
http://statistics.data.gov.uk/id/local-authority/38,Oxfordshire County Council,Support at Home U65 Learning Disability,29/03/2022,5696,,3111150138,551,All Care GB Ltd
http://statistics.data.gov.uk/id/local-authority/38,Oxfordshire County Council,CHC Fast Track - Sup at Homes - Over 65,28/03/2022,5691,,3111149450,551,Home Helpers Care Ltd
http://statistics.data.gov.uk/id/local-authority/38,Oxfordshire County Council,Support at Home 65+ Mental Health,15/03/2022,5899,Social Care - Direct Payments,3111144732,551.08,Purple Conversation Com In Co (DP)
http://statistics.data.gov.uk/id/local-authority/38,Oxfordshire County Council,Support at Home 65+ Physical Support,22/03/2022,5899,Social Care - Direct Payments,3111148067,551.25,Personal Redacted Data
http://statistics.data.gov.uk/id/local-authority/38,Oxfordshire County Council,Support at Home U65 Physical Support,25/03/2022,5693,,3111148972,551.72,Helping Hands
http://statistics.data.gov.uk/id/local-authority/38,Oxfordshire County Council,NURSERY ED FUND,31/03/2022,5537,Payments to Other Establishments,3111153117,551.76,Highmoor Nursery School Ltd
http://statistics.data.gov.uk/id/local-authority/38,Oxfordshire County Council,NURSERY ED FUND,31/03/2022,5537,Payments to Other Establishments,3111153182,551.76,Standlake CE Primary School
http://statistics.data.gov.uk/id/local-authority/38,Oxfordshire County Council,Support at Home U65 Physical Support,01/03/2022,5689,,3111133429,551.95,Elite Care Agency
http://statistics.data.gov.uk/id/local-authority/38,Oxfordshire County Council,LEGAL BUDGET,18/03/2022,5251,Legal Costs,2200968370,552,DNA WORLDWIDE GROUP
http://statistics.data.gov.uk/id/local-authority/38,Oxfordshire County Council,CHC Fast Track - Sup at Homes - Over 65,28/03/2022,5691,,3111149453,552,Home Helpers Care Ltd
http://statistics.data.gov.uk/id/local-authority/38,Oxfordshire County Council,CHC Fast Track - Sup at Homes - Over 65,28/03/2022,5691,,3111149420,552,XPERIENCE RECRUITMENT LIMITED
http://statistics.data.gov.uk/id/local-authority/38,Oxfordshire County Council,LIBRARY COLLECTIONS,16/03/2022,4539,"Books, DVDs and CDs",3111145738,552.33,ASKEWS & HOLTS LIBRARY SERVICES LTD
http://statistics.data.gov.uk/id/local-authority/38,Oxfordshire County Council,Support at Home 65+ Physical Support,01/03/2022,5689,,3111133227,552.43,Oxfordshire Crossroads
http://statistics.data.gov.uk/id/local-authority/38,Oxfordshire County Council,Support at Home 65+ Physical Support,01/03/2022,5699,,3111132753,552.65,Mega Resources Ltd
http://statistics.data.gov.uk/id/local-authority/38,Oxfordshire County Council,Support at Home 65+ Physical Support,29/03/2022,5698,,3111151044,552.74,Day & Night Care Assistance
http://statistics.data.gov.uk/id/local-authority/38,Oxfordshire County Council,Supervised Consumption APL,01/03/2022,4934,,3111135651,553.28,Berinsfield Pharmacy
http://statistics.data.gov.uk/id/local-authority/38,Oxfordshire County Council,SEN TRANSPORT,15/03/2022,4330,Transport to School Activities,3111143794,554,001 Alpha Cars Ltd
http://statistics.data.gov.uk/id/local-authority/38,Oxfordshire County Council,Early Years SEN Funding,31/03/2022,5537,Payments to Other Establishments,3111152975,554.4,Alfresco Childcare
http://statistics.data.gov.uk/id/local-authority/38,Oxfordshire County Council,Support at Home U65 Other /Soc Isolation,02/03/2022,5693,,3111135457,554.88,Star Projections
http://statistics.data.gov.uk/id/local-authority/38,Oxfordshire County Council,SEN TRANSPORT,01/03/2022,5227,Other Transport Arrangements,3111132529,555,Airport Transfers Banbury Ltd
http://statistics.data.gov.uk/id/local-authority/38,Oxfordshire County Council,LIBRARY COLLECTIONS,17/03/2022,4539,"Books, DVDs and CDs",2200968291,555,ULVERSCROFT LARGE PRINT BOOKS LTD
http://statistics.data.gov.uk/id/local-authority/38,Oxfordshire County Council,SEN TRANSPORT,15/03/2022,5227,Other Transport Arrangements,3111143332,555.3,The Oxfordshire Taxi Company Ltd T/
http://statistics.data.gov.uk/id/local-authority/38,Oxfordshire County Council,Staff Travel Benefits,10/03/2022,4340,Staff and Volunteer Travel Expenses - General,2200964416,555.75,Stagecoach Services Ltd.
http://statistics.data.gov.uk/id/local-authority/38,Oxfordshire County Council,Support at Home 65+ Physical Support,01/03/2022,5689,,3111133714,555.81,Home Helpers Care Ltd
http://statistics.data.gov.uk/id/local-authority/38,Oxfordshire County Council,Support at Home U65 Physical Support,02/03/2022,5693,,3111135304,555.87,A CARING HAND LTD
http://statistics.data.gov.uk/id/local-authority/38,Oxfordshire County Council,Support at Home 65+ Physical Support,02/03/2022,5693,,3111135314,555.87,A CARING HAND LTD
http://statistics.data.gov.uk/id/local-authority/38,Oxfordshire County Council,Support at Home 65+ Physical Support,02/03/2022,5693,,3111135323,555.87,A CARING HAND LTD
http://statistics.data.gov.uk/id/local-authority/38,Oxfordshire County Council,Support at Home 65+ Physical Support,02/03/2022,5693,,3111135328,555.87,A CARING HAND LTD
http://statistics.data.gov.uk/id/local-authority/38,Oxfordshire County Council,OPERATIONS,24/03/2022,4498,Health and Safety Equipment,2200971413,556,INTERSPIRO LTD
http://statistics.data.gov.uk/id/local-authority/38,Oxfordshire County Council,ADOPTION ALLOWANCES,15/03/2022,5664,B*Holiday Allowance,3111145163,556.11,Personal Redacted Data
http://statistics.data.gov.uk/id/local-authority/38,Oxfordshire County Council,Support at Home U65 Learning Disability,14/03/2022,5688,,3111142832,556.4,Dimensions (UK) Ltd
http://statistics.data.gov.uk/id/local-authority/38,Oxfordshire County Council,Support at Home U65 Learning Disability,14/03/2022,5688,,3111142834,556.4,Dimensions (UK) Ltd
http://statistics.data.gov.uk/id/local-authority/38,Oxfordshire County Council,Planned Maintenance,31/03/2022,3787,Premises Repairs,2200974289,556.57,CEF
http://statistics.data.gov.uk/id/local-authority/38,Oxfordshire County Council,Support at Home 65+ Memory & Cognition,16/03/2022,5693,,3111145642,556.6,Acquire Care Ltd
http://statistics.data.gov.uk/id/local-authority/38,Oxfordshire County Council,Delegated Health Tasks  - Over 65,29/03/2022,5689,,3111151546,556.84,Oxfordshire Crossroads
http://statistics.data.gov.uk/id/local-authority/38,Oxfordshire County Council,Support at Home 65+ Memory & Cognition,17/03/2022,5696,,3111145907,556.86,Orders of St John Care Trust
http://statistics.data.gov.uk/id/local-authority/38,Oxfordshire County Council,Support at Home U65 Learning Disability,10/03/2022,5690,,3111137874,557.42,Guideposts Trust
http://statistics.data.gov.uk/id/local-authority/38,Oxfordshire County Council,Support at Home U65 Learning Disability,15/03/2022,5899,Social Care - Direct Payments,3111144073,557.6,Personal Redacted Data
http://statistics.data.gov.uk/id/local-authority/38,Oxfordshire County Council,FOSTERING MAIN,22/03/2022,5545,B*Fostering Enhancements - Level 2,3111147695,557.71,Personal Redacted Data
http://statistics.data.gov.uk/id/local-authority/38,Oxfordshire County Council,COMM DRAWDOWN FUNDNG,02/03/2022,8004,Design Consultant,2200960520,557.87,Milestone Infrastructure Limited
http://statistics.data.gov.uk/id/local-authority/38,Oxfordshire County Council,Support at Home 65+ Physical Support,29/03/2022,5689,,3111151689,558.47,Greigcare Home Service
http://statistics.data.gov.uk/id/local-authority/38,Oxfordshire County Council,Support at Home 65+ Physical Support,15/03/2022,5899,Social Care - Direct Payments,3111143928,558.48,Personal Redacted Data
http://statistics.data.gov.uk/id/local-authority/38,Oxfordshire County Council,Support at Home U65 Physical Support,23/03/2022,5693,,3111148312,558.83,Genuine Carers Ltd
http://statistics.data.gov.uk/id/local-authority/38,Oxfordshire County Council,FOSTERING MAIN,01/03/2022,5549,B*Fostering Allowance - Regulation 38,3111134223,558.9,Personal Redacted Data
http://statistics.data.gov.uk/id/local-authority/38,Oxfordshire County Council,FOSTERING MAIN,29/03/2022,5549,B*Fostering Allowance - Regulation 38,3111150055,558.9,Personal Redacted Data
http://statistics.data.gov.uk/id/local-authority/38,Oxfordshire County Council,FOSTERING MAIN,29/03/2022,5549,B*Fostering Allowance - Regulation 38,3111150415,558.9,Personal Redacted Data
http://statistics.data.gov.uk/id/local-authority/38,Oxfordshire County Council,SHORT BREAK ACTIVITIES,11/03/2022,4330,Transport to School Activities,3111142429,559.12,LINK SHIRES LTD
http://statistics.data.gov.uk/id/local-authority/38,Oxfordshire County Council,FPT CITY,29/03/2022,5394,Other Expenses,3111149996,559.42,Personal Redacted Data
http://statistics.data.gov.uk/id/local-authority/38,Oxfordshire County Council,Contingency Home Care,01/03/2022,5689,,3111133983,559.43,Oxford University Hospitals NHS FT
http://statistics.data.gov.uk/id/local-authority/38,Oxfordshire County Council,ELEC PRIN RD ST LTG,25/03/2022,5526,Payments to Private Contractors,2200971611,559.62,Cable Damages South
http://statistics.data.gov.uk/id/local-authority/38,Oxfordshire County Council,,24/03/2022,1531,Cash Allocation Control Account,3111149899,559.83,Oxford Human Sciences Ltd
http://statistics.data.gov.uk/id/local-authority/38,Oxfordshire County Council,Support at Home 65+ Mental Health,01/03/2022,5689,,3111133666,559.87,Harino Care
http://statistics.data.gov.uk/id/local-authority/38,Oxfordshire County Council,Wokingham Adoption Support Fund,17/03/2022,4861,Hired and Contracted Services,2200967845,560,Dr Diane Dansey
http://statistics.data.gov.uk/id/local-authority/38,Oxfordshire County Council,MAINSTREAM-PRIMARY,14/03/2022,4330,Transport to School Activities,3111142893,560,Go Green Taxis
http://statistics.data.gov.uk/id/local-authority/38,Oxfordshire County Council,MAINSTREAM-PRIMARY,14/03/2022,4330,Transport to School Activities,3111142894,560,Go Green Taxis
http://statistics.data.gov.uk/id/local-authority/38,Oxfordshire County Council,SEN TRANSPORT,22/03/2022,5227,Other Transport Arrangements,3111147219,560,Her Ride Limited
http://statistics.data.gov.uk/id/local-authority/38,Oxfordshire County Council,PREMISES,23/03/2022,4122,Other premises related costs,2200970157,560,Lee & Freeman
http://statistics.data.gov.uk/id/local-authority/38,Oxfordshire County Council,SEN TRANSPORT,25/03/2022,5227,Other Transport Arrangements,3111148655,560,Luxicars Ltd
http://statistics.data.gov.uk/id/local-authority/38,Oxfordshire County Council,Wokingham Adoption Support Fund,29/03/2022,6500,Government Grants (Revenue),3111149858,560,OCC One Time Vendor
http://statistics.data.gov.uk/id/local-authority/38,Oxfordshire County Council,Family Solutions Plus Non-staff - Centra,29/03/2022,4270,HTM / Other Vehicle - Hire Charges,2200972653,560,Oxford Van Man
http://statistics.data.gov.uk/id/local-authority/38,Oxfordshire County Council,Support at Home U65 Physical Support,02/03/2022,5227,Other Transport Arrangements,3111137613,560,Oxon Transport Services Ltd
http://statistics.data.gov.uk/id/local-authority/38,Oxfordshire County Council,Support at Home U65 Learning Disability,02/03/2022,5227,Other Transport Arrangements,3111137614,560,Oxon Transport Services Ltd
http://statistics.data.gov.uk/id/local-authority/38,Oxfordshire County Council,SEN TRANSPORT,14/03/2022,5227,Other Transport Arrangements,3111142947,560,Oxon Transport Services Ltd
http://statistics.data.gov.uk/id/local-authority/38,Oxfordshire County Council,SEN TRANSPORT,14/03/2022,5227,Other Transport Arrangements,3111142969,560,Oxon Transport Services Ltd
http://statistics.data.gov.uk/id/local-authority/38,Oxfordshire County Council,SEN TRANSPORT,14/03/2022,5227,Other Transport Arrangements,3111142984,560,Oxon Transport Services Ltd
http://statistics.data.gov.uk/id/local-authority/38,Oxfordshire County Council,L&D CORE PROGRAMME,14/03/2022,4615,Drugs and Medical Supplies,2200966461,560,ST JOHN AMBULANCE
http://statistics.data.gov.uk/id/local-authority/38,Oxfordshire County Council,L&D CORE PROGRAMME,28/03/2022,3100,Educational and Vocational Training,2200972295,560,ST JOHNS AMBULANCE HAMPSHIRE
http://statistics.data.gov.uk/id/local-authority/38,Oxfordshire County Council,MAINSTREAM-SECONDARY,30/03/2022,4322,"Season Tickets - Bus, Rail & Ferry",3111152893,560,Stagecoach Services Ltd
http://statistics.data.gov.uk/id/local-authority/38,Oxfordshire County Council,Staff Travel Benefits,17/03/2022,4340,Staff and Volunteer Travel Expenses - General,2200968117,560,Stagecoach Services Ltd.
http://statistics.data.gov.uk/id/local-authority/38,Oxfordshire County Council,Support at Home 65+ Physical Support,15/03/2022,5899,Social Care - Direct Payments,3111143811,560,Personal Redacted Data
http://statistics.data.gov.uk/id/local-authority/38,Oxfordshire County Council,Support at Home U65 Physical Support,29/03/2022,5689,,3111151723,560.28,Home Helpers Care Ltd
http://statistics.data.gov.uk/id/local-authority/38,Oxfordshire County Council,Support at Home 65+ Memory & Cognition,29/03/2022,5698,,3111151115,561.04,Day & Night Care Assistance
http://statistics.data.gov.uk/id/local-authority/38,Oxfordshire County Council,NURSERY ED FUND,02/03/2022,5537,Payments to Other Establishments,3111134980,561.79,Jourdan Sessegnon
http://statistics.data.gov.uk/id/local-authority/38,Oxfordshire County Council,SM DISABILITIES,28/03/2022,5554,Childrens' Social Care - Direct Payments,3111149620,562.07,Purple Conversation Com In Co (DP)
http://statistics.data.gov.uk/id/local-authority/38,Oxfordshire County Council,Support at Home U65 Physical Support,15/03/2022,5899,Social Care - Direct Payments,3111144501,562.28,Purple Conversation Com In Co (DP)
http://statistics.data.gov.uk/id/local-authority/38,Oxfordshire County Council,NURSERY ED FUND,02/03/2022,5537,Payments to Other Establishments,3111135159,562.32,Sharna Bangs
http://statistics.data.gov.uk/id/local-authority/38,Oxfordshire County Council,LIBRARY COLLECTIONS,29/03/2022,4706,Stationery and other office consumables,2200972840,562.5,Bibliotheca Ltd
http://statistics.data.gov.uk/id/local-authority/38,Oxfordshire County Council,Funded Nursing Care  - Over 65,10/03/2022,5692,,3111138166,562.8,Abbey Crest Nursing Home
http://statistics.data.gov.uk/id/local-authority/38,Oxfordshire County Council,Funded Nursing Care  - Over 65,10/03/2022,5692,,3111140463,562.8,Heathfield House Nursing Home
http://statistics.data.gov.uk/id/local-authority/38,Oxfordshire County Council,Support at Home 65+ Physical Support,29/03/2022,5689,,3111151400,562.9,Care Outlook Ltd
http://statistics.data.gov.uk/id/local-authority/38,Oxfordshire County Council,LD Continuing Care - Sup at Home - U65,18/03/2022,5691,,3111146746,563.26,Paterson Recruitment
http://statistics.data.gov.uk/id/local-authority/38,Oxfordshire County Council,Support at Home 65+ Physical Support,01/03/2022,5698,,3111133253,563.34,Day & Night Care Assistance
http://statistics.data.gov.uk/id/local-authority/38,Oxfordshire County Council,Delegated Health Tasks  - Over 65,15/03/2022,5691,,3111145511,563.6,Acquire Care Ltd
http://statistics.data.gov.uk/id/local-authority/38,Oxfordshire County Council,Support at Home U65 Learning Disability,15/03/2022,5899,Social Care - Direct Payments,3111145137,563.72,Purple Conversation Com In Co (DP)
http://statistics.data.gov.uk/id/local-authority/38,Oxfordshire County Council,Support at Home 65+ Physical Support,01/03/2022,5689,,3111133818,563.86,My Carer Ltd
http://statistics.data.gov.uk/id/local-authority/38,Oxfordshire County Council,Support at Home U65 Learning Disability,18/03/2022,5227,Other Transport Arrangements,3111146498,564,ACE CARS BANBURY LTD
http://statistics.data.gov.uk/id/local-authority/38,Oxfordshire County Council,POST 16 SEN,23/03/2022,4330,Transport to School Activities,3111148476,564,Bicester Cars UK Ltd
http://statistics.data.gov.uk/id/local-authority/38,Oxfordshire County Council,SEN TRANSPORT,22/03/2022,5227,Other Transport Arrangements,3111147266,564,BORJAN LTD
http://statistics.data.gov.uk/id/local-authority/38,Oxfordshire County Council,Delegated Health Tasks  - Under 65,28/03/2022,5691,,3111149353,564,Enable Health Ltd
http://statistics.data.gov.uk/id/local-authority/38,Oxfordshire County Council,Support at Home U65 Physical Support,15/03/2022,5899,Social Care - Direct Payments,3111143903,564,Personal Redacted Data
http://statistics.data.gov.uk/id/local-authority/38,Oxfordshire County Council,Support at Home U65 Learning Disability,10/03/2022,5690,,3111137929,564.2,Turnstyle
http://statistics.data.gov.uk/id/local-authority/38,Oxfordshire County Council,Support at Home 65+ Physical Support,29/03/2022,5689,,3111151408,564.24,Care Outlook Ltd
http://statistics.data.gov.uk/id/local-authority/38,Oxfordshire County Council,NURSERY ED FUND,31/03/2022,5537,Payments to Other Establishments,3111153112,564.3,Glory Farm Primary School
http://statistics.data.gov.uk/id/local-authority/38,Oxfordshire County Council,Support at Home 65+ Physical Support,29/03/2022,5699,,3111150411,564.54,CaringPlus Healthcare Services Ltd
http://statistics.data.gov.uk/id/local-authority/38,Oxfordshire County Council,VOIDS/VACANCY COSTS,10/03/2022,3945,Rent,3111139431,564.73,Cherwell District Council
http://statistics.data.gov.uk/id/local-authority/38,Oxfordshire County Council,VOIDS/VACANCY COSTS,10/03/2022,3945,Rent,3111139434,564.73,Cherwell District Council
http://statistics.data.gov.uk/id/local-authority/38,Oxfordshire County Council,WOODCOTE LIBRARY,30/03/2022,4042,Fixtures and Fittings,2200973550,565,Sunray Blinds & Windows
http://statistics.data.gov.uk/id/local-authority/38,Oxfordshire County Council,Support at Home U65 Learning Disability,17/03/2022,5696,,3111145889,565.33,Orders of St John Care Trust
http://statistics.data.gov.uk/id/local-authority/38,Oxfordshire County Council,Support at Home 65+ Memory & Cognition,29/03/2022,5689,,3111151984,565.35,Prestige Nursing Ltd
http://statistics.data.gov.uk/id/local-authority/38,Oxfordshire County Council,Support at Home U65 Physical Support,23/03/2022,5688,,3111148351,565.8,KEY2 FUTURES LTD
http://statistics.data.gov.uk/id/local-authority/38,Oxfordshire County Council,Support at Home U65 Learning Disability,15/03/2022,5899,Social Care - Direct Payments,3111144416,565.88,Personal Redacted Data
http://statistics.data.gov.uk/id/local-authority/38,Oxfordshire County Council,FOSTERING MAIN,08/03/2022,5227,Other Transport Arrangements,3111136945,565.97,Personal Redacted Data
http://statistics.data.gov.uk/id/local-authority/38,Oxfordshire County Council,POST 16 SEN,30/03/2022,4330,Transport to School Activities,3111152222,566.2,D�Arrive Ltd
http://statistics.data.gov.uk/id/local-authority/38,Oxfordshire County Council,SEN TRANSPORT,08/03/2022,5227,Other Transport Arrangements,3111136538,566.7,LINK SHIRES LTD
http://statistics.data.gov.uk/id/local-authority/38,Oxfordshire County Council,Support at Home U65 Physical Support,15/03/2022,5899,Social Care - Direct Payments,3111145413,566.83,Purple Conversation Com In Co (DP)
http://statistics.data.gov.uk/id/local-authority/38,Oxfordshire County Council,Community Support Service - Abingdon,07/03/2022,2040,Agency Staff,2200962488,567,Completely Care Ltd
http://statistics.data.gov.uk/id/local-authority/38,Oxfordshire County Council,Community Support Service - Abingdon,15/03/2022,2040,Agency Staff,2200966818,567,Completely Care Ltd
http://statistics.data.gov.uk/id/local-authority/38,Oxfordshire County Council,Community Support Service - Abingdon,23/03/2022,2040,Agency Staff,2200970057,567,Completely Care Ltd
http://statistics.data.gov.uk/id/local-authority/38,Oxfordshire County Council,Community Support Service - Abingdon,28/03/2022,2040,Agency Staff,2200972410,567,Completely Care Ltd
http://statistics.data.gov.uk/id/local-authority/38,Oxfordshire County Council,Community Support Service Banbury,31/03/2022,2040,Agency Staff,2200974157,567,Completely Care Ltd
http://statistics.data.gov.uk/id/local-authority/38,Oxfordshire County Council,Support at Home 65+ Physical Support,09/03/2022,5693,,3111137457,567,Prime Social Care Services Ltd
http://statistics.data.gov.uk/id/local-authority/38,Oxfordshire County Council,MUSEUM RETAIL,02/03/2022,4531,Materials,2200960820,567.12,Baker & Taylor (UK) Ltd
http://statistics.data.gov.uk/id/local-authority/38,Oxfordshire County Council,FOSTERING MAIN,22/03/2022,5549,B*Fostering Allowance - Regulation 38,3111147731,567.14,Personal Redacted Data
http://statistics.data.gov.uk/id/local-authority/38,Oxfordshire County Council,FOSTERING MAIN,22/03/2022,5549,B*Fostering Allowance - Regulation 38,3111147735,567.14,Personal Redacted Data
http://statistics.data.gov.uk/id/local-authority/38,Oxfordshire County Council,Support at Home 65+ Physical Support,01/03/2022,5689,,3111134089,567.14,PLL Care Services
http://statistics.data.gov.uk/id/local-authority/38,Oxfordshire County Council,Support at Home U65 Learning Disability,14/03/2022,5688,,3111142845,567.28,Dimensions (UK) Ltd
http://statistics.data.gov.uk/id/local-authority/38,Oxfordshire County Council,ON ST PARK OXFD SPA,28/03/2022,5091,Postage and Delivery,2200972165,567.31,Royal Mail Retail
http://statistics.data.gov.uk/id/local-authority/38,Oxfordshire County Council,OPERATIONS,21/03/2022,4685,Clothing and Uniforms,2200969340,567.5,SAFEQUIP LTD
http://statistics.data.gov.uk/id/local-authority/38,Oxfordshire County Council,Support at Home 65+ Memory & Cognition,15/03/2022,5899,Social Care - Direct Payments,3111144396,567.68,Personal Redacted Data
http://statistics.data.gov.uk/id/local-authority/38,Oxfordshire County Council,SEN Additional Funding,15/03/2022,5537,Payments to Other Establishments,3111145599,567.72,Deddington CE Primary School
http://statistics.data.gov.uk/id/local-authority/38,Oxfordshire County Council,Planned Maintenance,10/03/2022,3787,Premises Repairs,2200965078,568,Ambiflex Ltd
http://statistics.data.gov.uk/id/local-authority/38,Oxfordshire County Council,Support at Home U65 Learning Disability,11/03/2022,5227,Other Transport Arrangements,3111142682,568,Town Cars
http://statistics.data.gov.uk/id/local-authority/38,Oxfordshire County Council,Support at Home U65 Physical Support,30/03/2022,5227,Other Transport Arrangements,3111152442,568,Town Cars
http://statistics.data.gov.uk/id/local-authority/38,Oxfordshire County Council,Support at Home 65+ Physical Support,01/03/2022,5689,,3111133637,568.82,Greigcare Home Service
http://statistics.data.gov.uk/id/local-authority/38,Oxfordshire County Council,Support at Home U65 Learning Disability,10/03/2022,5690,,3111137901,569.16,MacIntyre Care (Womaston)
http://statistics.data.gov.uk/id/local-authority/38,Oxfordshire County Council,Support at Home 65+ Learning Disability,10/03/2022,5690,,3111137906,569.16,MacIntyre Care (Womaston)
http://statistics.data.gov.uk/id/local-authority/38,Oxfordshire County Council,Support at Home U65 Learning Disability,10/03/2022,5690,,3111137908,569.16,MacIntyre Care (Womaston)
http://statistics.data.gov.uk/id/local-authority/38,Oxfordshire County Council,Support at Home U65 Memory & Cognition,02/03/2022,5693,,3111135450,569.25,Star Projections
http://statistics.data.gov.uk/id/local-authority/38,Oxfordshire County Council,Support at Home U65 Learning Disability,10/03/2022,5690,,3111138046,569.47,Autism at Kingwood Limited
http://statistics.data.gov.uk/id/local-authority/38,Oxfordshire County Council,Support at Home U65 Learning Disability,10/03/2022,5690,,3111138053,569.47,Autism at Kingwood Limited
http://statistics.data.gov.uk/id/local-authority/38,Oxfordshire County Council,Support at Home 65+ Physical Support,29/03/2022,5689,,3111151938,569.58,PLL Care Services
http://statistics.data.gov.uk/id/local-authority/38,Oxfordshire County Council,FAM GRP CONFERENCES,21/03/2022,4940,Other Services,2200969337,569.62,Culbone Limited
http://statistics.data.gov.uk/id/local-authority/38,Oxfordshire County Council,LIBRARY COLLECTIONS,17/03/2022,4539,"Books, DVDs and CDs",2200968290,569.68,ULVERSCROFT LARGE PRINT BOOKS LTD
http://statistics.data.gov.uk/id/local-authority/38,Oxfordshire County Council,Support at Home 65+ Memory & Cognition,01/03/2022,5698,,3111133338,569.8,Day & Night Care Assistance
http://statistics.data.gov.uk/id/local-authority/38,Oxfordshire County Council,FAM GRP CONFERENCES,21/03/2022,4940,Other Services,2200969042,570,Jessica Howards
http://statistics.data.gov.uk/id/local-authority/38,Oxfordshire County Council,SEN Alternative Provision,22/03/2022,4878,Hired and Contracted Services (Curricul,2200969482,570,NHance Maths Academy
http://statistics.data.gov.uk/id/local-authority/38,Oxfordshire County Council,LEAVING CARE CITY 1,03/03/2022,5394,Other Expenses,3111135645,570,OCC One Time Vendor
http://statistics.data.gov.uk/id/local-authority/38,Oxfordshire County Council,RBWM Adoption Support Fund,29/03/2022,6500,Government Grants (Revenue),3111149730,570,OCC One Time Vendor
http://statistics.data.gov.uk/id/local-authority/38,Oxfordshire County Council,SEN TRANSPORT,14/03/2022,5227,Other Transport Arrangements,3111143017,570,Oxon Transport Services Ltd
http://statistics.data.gov.uk/id/local-authority/38,Oxfordshire County Council,SM DISABILITIES,28/03/2022,5554,Childrens' Social Care - Direct Payments,3111149644,570.47,Purple Conversation Com In Co (DP)
http://statistics.data.gov.uk/id/local-authority/38,Oxfordshire County Council,Support at Home 65+ Physical Support,23/03/2022,5693,,3111148302,570.52,Genuine Carers Ltd
http://statistics.data.gov.uk/id/local-authority/38,Oxfordshire County Council,Support at Home U65 Physical Support,01/03/2022,5689,,3111134042,570.73,PLL Care Services
http://statistics.data.gov.uk/id/local-authority/38,Oxfordshire County Council,SM DISABILITIES,28/03/2022,5554,Childrens' Social Care - Direct Payments,3111149584,570.99,Personal Redacted Data
http://statistics.data.gov.uk/id/local-authority/38,Oxfordshire County Council,Support at Home 65+ Physical Support,29/03/2022,5689,,3111151939,571.07,PLL Care Services
http://statistics.data.gov.uk/id/local-authority/38,Oxfordshire County Council,Support at Home U65 Physical Support,15/03/2022,5899,Social Care - Direct Payments,3111145402,571.08,Purple Conversation Com In Co (DP)
http://statistics.data.gov.uk/id/local-authority/38,Oxfordshire County Council,Support at Home U65 Mental Health,15/03/2022,5899,Social Care - Direct Payments,3111145421,571.08,Purple Conversation Com In Co (DP)
http://statistics.data.gov.uk/id/local-authority/38,Oxfordshire County Council,Support at Home U65 Physical Support,29/03/2022,5689,,3111151368,571.16,Care Outlook Ltd
http://statistics.data.gov.uk/id/local-authority/38,Oxfordshire County Council,Support at Home 65+ Physical Support,29/03/2022,5689,,3111151958,571.28,Premier Personal Care
http://statistics.data.gov.uk/id/local-authority/38,Oxfordshire County Council,Support at Home 65+ Physical Support,29/03/2022,5689,,3111151711,571.31,Harino Care
http://statistics.data.gov.uk/id/local-authority/38,Oxfordshire County Council,Support at Home U65 Learning Disability,15/03/2022,5899,Social Care - Direct Payments,3111145489,571.56,Rosekel Resourcing Ltd
http://statistics.data.gov.uk/id/local-authority/38,Oxfordshire County Council,Support at Home 65+ Physical Support,29/03/2022,5689,,3111151492,571.59,Caremark (West Oxfordshire & Cherwe
http://statistics.data.gov.uk/id/local-authority/38,Oxfordshire County Council,SM DISABILITIES,28/03/2022,5554,Childrens' Social Care - Direct Payments,3111149520,571.76,Personal Redacted Data
http://statistics.data.gov.uk/id/local-authority/38,Oxfordshire County Council,Support at Home 65+ Physical Support,01/03/2022,5698,,3111133599,571.94,Oxford Private Care
http://statistics.data.gov.uk/id/local-authority/38,Oxfordshire County Council,Family Solutions Plus Non-staff - North,31/03/2022,4940,Other Services,2200974353,572,Co-Op Oxford Nursery
http://statistics.data.gov.uk/id/local-authority/38,Oxfordshire County Council,Support at Home U65 Learning Disability,15/03/2022,5899,Social Care - Direct Payments,3111143913,572,Personal Redacted Data
http://statistics.data.gov.uk/id/local-authority/38,Oxfordshire County Council,Support at Home 65+ Memory & Cognition,15/03/2022,5899,Social Care - Direct Payments,3111143526,572,Personal Redacted Data
http://statistics.data.gov.uk/id/local-authority/38,Oxfordshire County Council,COUNTY HALL,14/03/2022,4665,Catering,2200966368,572.22,Vending Sense
http://statistics.data.gov.uk/id/local-authority/38,Oxfordshire County Council,Support at Home 65+ Learning Disability,14/03/2022,5688,,3111142864,572.4,Dimensions (UK) Ltd
http://statistics.data.gov.uk/id/local-authority/38,Oxfordshire County Council,Delegated Health Tasks  - Over 65,15/03/2022,5691,,3111145533,572.6,Bluebird Care
http://statistics.data.gov.uk/id/local-authority/38,Oxfordshire County Council,Delegated Health Tasks  - Over 65,15/03/2022,5691,,3111145534,572.6,Bluebird Care
http://statistics.data.gov.uk/id/local-authority/38,Oxfordshire County Council,Delegated Health Tasks  - Over 65,18/03/2022,5691,,3111146646,572.6,Bluebird Care
http://statistics.data.gov.uk/id/local-authority/38,Oxfordshire County Council,Delegated Health Tasks  - Under 65,18/03/2022,5691,,3111146647,572.6,Bluebird Care
http://statistics.data.gov.uk/id/local-authority/38,Oxfordshire County Council,Delegated Health Tasks  - Over 65,18/03/2022,5691,,3111146660,572.6,Bluebird Care
http://statistics.data.gov.uk/id/local-authority/38,Oxfordshire County Council,AGENCY RESID - DISAB,01/03/2022,5549,B*Fostering Allowance - Regulation 38,3111134403,573,Personal Redacted Data
http://statistics.data.gov.uk/id/local-authority/38,Oxfordshire County Council,AGENCY RESID - DISAB,08/03/2022,5549,B*Fostering Allowance - Regulation 38,3111137306,573,Personal Redacted Data
http://statistics.data.gov.uk/id/local-authority/38,Oxfordshire County Council,AGENCY RESID - DISAB,15/03/2022,5549,B*Fostering Allowance - Regulation 38,3111143898,573,Personal Redacted Data
http://statistics.data.gov.uk/id/local-authority/38,Oxfordshire County Council,AGENCY RESID - DISAB,22/03/2022,5549,B*Fostering Allowance - Regulation 38,3111148267,573,Personal Redacted Data
http://statistics.data.gov.uk/id/local-authority/38,Oxfordshire County Council,AGENCY RESID - DISAB,29/03/2022,5549,B*Fostering Allowance - Regulation 38,3111150519,573,Personal Redacted Data
http://statistics.data.gov.uk/id/local-authority/38,Oxfordshire County Council,AGENCY RESID - DISAB,01/03/2022,5549,B*Fostering Allowance - Regulation 38,3111134132,573,Personal Redacted Data
http://statistics.data.gov.uk/id/local-authority/38,Oxfordshire County Council,AGENCY RESID - DISAB,08/03/2022,5549,B*Fostering Allowance - Regulation 38,3111137179,573,Personal Redacted Data
http://statistics.data.gov.uk/id/local-authority/38,Oxfordshire County Council,AGENCY RESID - DISAB,15/03/2022,5549,B*Fostering Allowance - Regulation 38,3111143626,573,Personal Redacted Data
http://statistics.data.gov.uk/id/local-authority/38,Oxfordshire County Council,AGENCY RESID - DISAB,22/03/2022,5549,B*Fostering Allowance - Regulation 38,3111148142,573,Personal Redacted Data
http://statistics.data.gov.uk/id/local-authority/38,Oxfordshire County Council,AGENCY RESID - DISAB,29/03/2022,5549,B*Fostering Allowance - Regulation 38,3111150251,573,Personal Redacted Data
http://statistics.data.gov.uk/id/local-authority/38,Oxfordshire County Council,Support at Home 65+ Physical Support,01/03/2022,5698,,3111133232,573.48,Day & Night Care Assistance
http://statistics.data.gov.uk/id/local-authority/38,Oxfordshire County Council,Support at Home 65+ Physical Support,29/03/2022,5698,,3111151052,573.95,Day & Night Care Assistance
http://statistics.data.gov.uk/id/local-authority/38,Oxfordshire County Council,Swindon Adoption Support Fund,01/03/2022,4861,Hired and Contracted Services,2200959967,574,Dr Vicky Sutton
http://statistics.data.gov.uk/id/local-authority/38,Oxfordshire County Council,SEN TRANSPORT,14/03/2022,5227,Other Transport Arrangements,3111142982,574,Oxon Transport Services Ltd
http://statistics.data.gov.uk/id/local-authority/38,Oxfordshire County Council,CONCESSIONARY FARES,14/03/2022,5781,Payments to Transport Operators,2200966242,574,Stagecoach Services Ltd
http://statistics.data.gov.uk/id/local-authority/38,Oxfordshire County Council,Interim Funding  - Care Homes - Over 65,10/03/2022,5687,,3111138444,574.55,METHODIST HOMES
http://statistics.data.gov.uk/id/local-authority/38,Oxfordshire County Council,Support at Home U65 Physical Support,01/03/2022,5696,,3111132613,574.75,All Care GB Ltd
http://statistics.data.gov.uk/id/local-authority/38,Oxfordshire County Council,FOSTERING MAIN,01/03/2022,5545,B*Fostering Enhancements - Level 2,3111134027,575,Personal Redacted Data
http://statistics.data.gov.uk/id/local-authority/38,Oxfordshire County Council,FOSTERING MAIN,08/03/2022,5545,B*Fostering Enhancements - Level 2,3111137140,575,Personal Redacted Data
http://statistics.data.gov.uk/id/local-authority/38,Oxfordshire County Council,FOSTERING MAIN,15/03/2022,5545,B*Fostering Enhancements - Level 2,3111143580,575,Personal Redacted Data
http://statistics.data.gov.uk/id/local-authority/38,Oxfordshire County Council,FOSTERING MAIN,22/03/2022,5545,B*Fostering Enhancements - Level 2,3111148094,575,Personal Redacted Data
http://statistics.data.gov.uk/id/local-authority/38,Oxfordshire County Council,FOSTERING MAIN,29/03/2022,5545,B*Fostering Enhancements - Level 2,3111150220,575,Personal Redacted Data
http://statistics.data.gov.uk/id/local-authority/38,Oxfordshire County Council,TREE MAINT OPS,07/03/2022,5526,Payments to Private Contractors,2200962120,575,Jenks Oxford Ltd
http://statistics.data.gov.uk/id/local-authority/38,Oxfordshire County Council,LEGAL SERVICES,15/03/2022,5251,Legal Costs,2200967106,575,Ms Sian Cox
http://statistics.data.gov.uk/id/local-authority/38,Oxfordshire County Council,Support at Home U65 Learning Disability,02/03/2022,5227,Other Transport Arrangements,3111137616,575,Oxon Transport Services Ltd
http://statistics.data.gov.uk/id/local-authority/38,Oxfordshire County Council,Household Support Fund,25/03/2022,4939,,3111148763,575,People Place & Participation LTD
http://statistics.data.gov.uk/id/local-authority/38,Oxfordshire County Council,MAINSTREAM-SECONDARY,30/03/2022,4322,"Season Tickets - Bus, Rail & Ferry",3111152899,575,Stagecoach Services Ltd
http://statistics.data.gov.uk/id/local-authority/38,Oxfordshire County Council,SM DISABILITIES,28/03/2022,5554,Childrens' Social Care - Direct Payments,3111149637,575.79,Purple Conversation Com In Co (DP)
http://statistics.data.gov.uk/id/local-authority/38,Oxfordshire County Council,LD Continuing Care - Sup at Home - U65,15/03/2022,5691,,3111145577,576,KIT Mobility Taxis Oxford Ltd
http://statistics.data.gov.uk/id/local-authority/38,Oxfordshire County Council,Support at Home U65 Learning Disability,15/03/2022,5227,Other Transport Arrangements,3111143339,576,The Oxfordshire Taxi Company Ltd T/
http://statistics.data.gov.uk/id/local-authority/38,Oxfordshire County Council,Bracknell Adoption Support Fund,29/03/2022,6500,Government Grants (Revenue),3111149808,576.16,OCC One Time Vendor
http://statistics.data.gov.uk/id/local-authority/38,Oxfordshire County Council,FOSTERING MAIN,01/03/2022,5541,B*Foster Parents,3111134063,577,Personal Redacted Data
http://statistics.data.gov.uk/id/local-authority/38,Oxfordshire County Council,FOSTERING MAIN,08/03/2022,5541,B*Foster Parents,3111137155,577,Personal Redacted Data
http://statistics.data.gov.uk/id/local-authority/38,Oxfordshire County Council,FOSTERING MAIN,15/03/2022,5541,B*Foster Parents,3111143595,577,Personal Redacted Data
http://statistics.data.gov.uk/id/local-authority/38,Oxfordshire County Council,FOSTERING MAIN,01/03/2022,5541,B*Foster Parents,3111134102,577,Personal Redacted Data
http://statistics.data.gov.uk/id/local-authority/38,Oxfordshire County Council,FOSTERING MAIN,08/03/2022,5541,B*Foster Parents,3111137168,577,Personal Redacted Data
http://statistics.data.gov.uk/id/local-authority/38,Oxfordshire County Council,FOSTERING MAIN,15/03/2022,5541,B*Foster Parents,3111143612,577,Personal Redacted Data
http://statistics.data.gov.uk/id/local-authority/38,Oxfordshire County Council,FOSTERING MAIN,22/03/2022,5541,B*Foster Parents,3111148136,577,Personal Redacted Data
http://statistics.data.gov.uk/id/local-authority/38,Oxfordshire County Council,FOSTERING MAIN,29/03/2022,5541,B*Foster Parents,3111150242,577,Personal Redacted Data
http://statistics.data.gov.uk/id/local-authority/38,Oxfordshire County Council,FOSTERING MAIN,01/03/2022,5541,B*Foster Parents,3111133897,577,Personal Redacted Data
http://statistics.data.gov.uk/id/local-authority/38,Oxfordshire County Council,FOSTERING MAIN,08/03/2022,5541,B*Foster Parents,3111136991,577,Personal Redacted Data
http://statistics.data.gov.uk/id/local-authority/38,Oxfordshire County Council,FOSTERING MAIN,15/03/2022,5541,B*Foster Parents,3111143487,577,Personal Redacted Data
http://statistics.data.gov.uk/id/local-authority/38,Oxfordshire County Council,FOSTERING MAIN,22/03/2022,5541,B*Foster Parents,3111147885,577,Personal Redacted Data
http://statistics.data.gov.uk/id/local-authority/38,Oxfordshire County Council,FOSTERING MAIN,29/03/2022,5541,B*Foster Parents,3111150109,577,Personal Redacted Data
http://statistics.data.gov.uk/id/local-authority/38,Oxfordshire County Council,Support at Home U65 Learning Disability,01/03/2022,5682,,3111133231,577.08,The Brandon Trust
http://statistics.data.gov.uk/id/local-authority/38,Oxfordshire County Council,Support at Home 65+ Physical Support,15/03/2022,5899,Social Care - Direct Payments,3111144622,577.24,Purple Conversation Com In Co (DP)
http://statistics.data.gov.uk/id/local-authority/38,Oxfordshire County Council,Support at Home U65 HFA,15/03/2022,5899,Social Care - Direct Payments,3111144566,577.6,Purple Conversation Com In Co (DP)
http://statistics.data.gov.uk/id/local-authority/38,Oxfordshire County Council,Support at Home 65+ Physical Support,01/03/2022,5689,,3111133137,577.84,Caremark (West Oxfordshire & Cherwe
http://statistics.data.gov.uk/id/local-authority/38,Oxfordshire County Council,Support at Home 65+ Physical Support,01/03/2022,5689,,3111133024,578.4,Care Outlook Ltd
http://statistics.data.gov.uk/id/local-authority/38,Oxfordshire County Council,LAC PUPIL PREMIUM,21/03/2022,5537,Payments to Other Establishments,3111147027,579,Castle Manor Academy
http://statistics.data.gov.uk/id/local-authority/38,Oxfordshire County Council,Support at Home U65 Learning Disability,29/03/2022,5689,,3111151912,579.3,Pechiv Ltd
http://statistics.data.gov.uk/id/local-authority/38,Oxfordshire County Council,ADOPTION ALLOWANCES,01/03/2022,5664,B*Holiday Allowance,3111134754,579.3,Personal Redacted Data
http://statistics.data.gov.uk/id/local-authority/38,Oxfordshire County Council,ADOPTION ALLOWANCES,08/03/2022,5664,B*Holiday Allowance,3111137091,579.3,Personal Redacted Data
http://statistics.data.gov.uk/id/local-authority/38,Oxfordshire County Council,2 YEAR OLD FUNDING,31/03/2022,5537,Payments to Other Establishments,3111153230,579.36,Dunmore Pre-School Association
http://statistics.data.gov.uk/id/local-authority/38,Oxfordshire County Council,Support at Home U65 Learning Disability,29/03/2022,5696,,3111150197,579.5,All Care GB Ltd
http://statistics.data.gov.uk/id/local-authority/38,Oxfordshire County Council,SEN TRANSPORT,14/03/2022,5227,Other Transport Arrangements,3111142714,580,ABC Travel(Wokingham) limited t/a A
http://statistics.data.gov.uk/id/local-authority/38,Oxfordshire County Council,LAC PUPIL PREMIUM,21/03/2022,5537,Payments to Other Establishments,3111147068,580,Dudley Port School
http://statistics.data.gov.uk/id/local-authority/38,Oxfordshire County Council,SEN TRANSPORT,15/03/2022,5227,Other Transport Arrangements,3111143123,580,Schon Executive Cars Ltd
http://statistics.data.gov.uk/id/local-authority/38,Oxfordshire County Council,LAC PUPIL PREMIUM,21/03/2022,5537,Payments to Other Establishments,3111146962,580,St Birinus School
http://statistics.data.gov.uk/id/local-authority/38,Oxfordshire County Council,SEN TRANSPORT,07/03/2022,5227,Other Transport Arrangements,3111136448,580,Town Cars
http://statistics.data.gov.uk/id/local-authority/38,Oxfordshire County Council,FLEET COSTS,03/03/2022,4270,HTM / Other Vehicle - Hire Charges,2200961037,580,West Wallasey Fleet Hire Services
http://statistics.data.gov.uk/id/local-authority/38,Oxfordshire County Council,Support at Home 65+ Physical Support,01/03/2022,5689,,3111133647,580.32,Greigcare Home Service
http://statistics.data.gov.uk/id/local-authority/38,Oxfordshire County Council,Support at Home U65 Learning Disability,10/03/2022,5690,,3111137943,580.32,Turnstyle
http://statistics.data.gov.uk/id/local-authority/38,Oxfordshire County Council,Support at Home U65 Learning Disability,10/03/2022,5688,,3111138974,580.94,Mencap Contracts
http://statistics.data.gov.uk/id/local-authority/38,Oxfordshire County Council,Support at Home U65 Learning Disability,10/03/2022,5688,,3111138976,580.94,Mencap Contracts
http://statistics.data.gov.uk/id/local-authority/38,Oxfordshire County Council,Support at Home U65 Learning Disability,10/03/2022,5690,,3111138104,580.94,Real Life Options
http://statistics.data.gov.uk/id/local-authority/38,Oxfordshire County Council,Support at Home 65+ Learning Disability,10/03/2022,5688,,3111139682,580.94,The Brandon Trust
http://statistics.data.gov.uk/id/local-authority/38,Oxfordshire County Council,MAINSTREAM-PRIMARY,17/03/2022,4330,Transport to School Activities,3111146191,581.25,24/7 LTD
http://statistics.data.gov.uk/id/local-authority/38,Oxfordshire County Council,MAINSTREAM-SECONDARY,17/03/2022,4330,Transport to School Activities,3111146192,581.25,24/7 LTD
http://statistics.data.gov.uk/id/local-authority/38,Oxfordshire County Council,CHC Fast Track - Sup at Homes - Over 65,18/03/2022,5691,,3111146693,581.76,Golden Services
http://statistics.data.gov.uk/id/local-authority/38,Oxfordshire County Council,Support at Home U65 Learning Disability,15/03/2022,5899,Social Care - Direct Payments,3111143760,581.92,Personal Redacted Data
http://statistics.data.gov.uk/id/local-authority/38,Oxfordshire County Council,ADOPTION ALLOWANCES,22/03/2022,5664,B*Holiday Allowance,3111147949,582.3,Personal Redacted Data
http://statistics.data.gov.uk/id/local-authority/38,Oxfordshire County Council,ADOPTION ALLOWANCES,29/03/2022,5664,B*Holiday Allowance,3111151098,582.3,Personal Redacted Data
http://statistics.data.gov.uk/id/local-authority/38,Oxfordshire County Council,Support at Home 65+ Physical Support,29/03/2022,5699,,3111150525,582.37,Pechiv Ltd
http://statistics.data.gov.uk/id/local-authority/38,Oxfordshire County Council,Supervised Consumption APL,01/03/2022,4934,,3111135660,582.4,Boots the Chemist
http://statistics.data.gov.uk/id/local-authority/38,Oxfordshire County Council,FPT CITY,29/03/2022,4525,Furniture,3111150023,582.44,Personal Redacted Data
http://statistics.data.gov.uk/id/local-authority/38,Oxfordshire County Council,RBWM Adoption Support Fund,29/03/2022,6500,Government Grants (Revenue),3111149880,583.01,OCC One Time Vendor
http://statistics.data.gov.uk/id/local-authority/38,Oxfordshire County Council,WATER EATON P & R,03/03/2022,4861,Hired and Contracted Services,2200961201,583.32,Aspire Enterprise Services Ltd
http://statistics.data.gov.uk/id/local-authority/38,Oxfordshire County Council,THORNHILL P & R,31/03/2022,4861,Hired and Contracted Services,2200974473,583.32,Aspire Enterprise Services Ltd
http://statistics.data.gov.uk/id/local-authority/38,Oxfordshire County Council,THORNHILL P & R,03/03/2022,4861,Hired and Contracted Services,2200961204,583.33,Aspire Enterprise Services Ltd
http://statistics.data.gov.uk/id/local-authority/38,Oxfordshire County Council,SEN Alternative Provision,09/03/2022,4861,Hired and Contracted Services,2200964041,583.5,NISAI SATELLITE SCHOOL
http://statistics.data.gov.uk/id/local-authority/38,Oxfordshire County Council,Support at Home 65+ Physical Support,01/03/2022,5689,,3111133614,583.91,Greigcare Home Service
http://statistics.data.gov.uk/id/local-authority/38,Oxfordshire County Council,Support at Home 65+ Physical Support,01/03/2022,5689,,3111133135,584.1,Caremark (West Oxfordshire & Cherwe
http://statistics.data.gov.uk/id/local-authority/38,Oxfordshire County Council,Support at Home U65 Learning Disability,01/03/2022,5689,,3111134112,584.15,PLL Care Services
http://statistics.data.gov.uk/id/local-authority/38,Oxfordshire County Council,Catering Management Soft FM,22/03/2022,3787,Premises Repairs,2200969759,584.48,Whitco Catering & Bakery Equipment
http://statistics.data.gov.uk/id/local-authority/38,Oxfordshire County Council,FOSTERING MAIN,22/03/2022,5549,B*Fostering Allowance - Regulation 38,3111148254,584.86,Personal Redacted Data
http://statistics.data.gov.uk/id/local-authority/38,Oxfordshire County Council,Support at Home 65+ Physical Support,01/03/2022,5689,,3111133029,584.92,Care Outlook Ltd
http://statistics.data.gov.uk/id/local-authority/38,Oxfordshire County Council,Support at Home 65+ Physical Support,29/03/2022,5689,,3111151710,584.92,Greigcare Home Service
http://statistics.data.gov.uk/id/local-authority/38,Oxfordshire County Council,LEGAL BUDGET,23/03/2022,5251,Legal Costs,2200970463,585,Forensis Ltd
http://statistics.data.gov.uk/id/local-authority/38,Oxfordshire County Council,TRANSPORT COSTS,02/03/2022,4330,Transport to School Activities,3111137666,585,Oxon Transport Services Ltd
http://statistics.data.gov.uk/id/local-authority/38,Oxfordshire County Council,SEN TRANSPORT,15/03/2022,5227,Other Transport Arrangements,3111143268,585,The Oxfordshire Taxi Company Ltd T/
http://statistics.data.gov.uk/id/local-authority/38,Oxfordshire County Council,TRO TEAM,11/03/2022,4790,"Publicity, Promotions and Advertisement",2200965149,585.83,Tmp (Uk) Ltd
http://statistics.data.gov.uk/id/local-authority/38,Oxfordshire County Council,Support at Home U65 Learning Disability,15/03/2022,5899,Social Care - Direct Payments,3111144151,586.56,Personal Redacted Data
http://statistics.data.gov.uk/id/local-authority/38,Oxfordshire County Council,NURSERY ED FUND,02/03/2022,5537,Payments to Other Establishments,3111134855,586.87,Claire Clark
http://statistics.data.gov.uk/id/local-authority/38,Oxfordshire County Council,Support at Home 65+ Physical Support,01/03/2022,5689,,3111133574,587.22,Greigcare Home Service
http://statistics.data.gov.uk/id/local-authority/38,Oxfordshire County Council,Family Solutions Plus Non-staff - Centra,29/03/2022,5227,Other Transport Arrangements,9300055194,587.23,OCC SS Oxford City Div 1 Cash
http://statistics.data.gov.uk/id/local-authority/38,Oxfordshire County Council,GYPSY & TRAVELLER SV,03/03/2022,4122,Other premises related costs,2200960929,588,Advanced Pest Control Ltd
http://statistics.data.gov.uk/id/local-authority/38,Oxfordshire County Council,Support at Home 65+ Physical Support,01/03/2022,5689,,3111132945,588.27,Bicester PA and Care LLP
http://statistics.data.gov.uk/id/local-authority/38,Oxfordshire County Council,SEN TRANSPORT,17/03/2022,5227,Other Transport Arrangements,3111146170,588.6,24/7 LTD
http://statistics.data.gov.uk/id/local-authority/38,Oxfordshire County Council,UASC 16&17,29/03/2022,5365,Non-Staff Subsistence and Expenses,9300055209,588.96,OCC SS Banbury Area Off Cash
http://statistics.data.gov.uk/id/local-authority/38,Oxfordshire County Council,Reading Adoption Support Fund,29/03/2022,6500,Government Grants (Revenue),3111149682,589.38,OCC One Time Vendor
http://statistics.data.gov.uk/id/local-authority/38,Oxfordshire County Council,SEN TRANSPORT,15/03/2022,4320,Pupil / Client Travel Reimbursement,3111143160,589.44,Personal Redacted Data
http://statistics.data.gov.uk/id/local-authority/38,Oxfordshire County Council,LEAVING CARE SOUTH,10/03/2022,5526,Payments to Private Contractors,2200964552,589.92,Response Organisation
http://statistics.data.gov.uk/id/local-authority/38,Oxfordshire County Council,MAINSTREAM-PRIMARY,15/03/2022,4330,Transport to School Activities,3111143798,590,001 Alpha Cars Ltd
http://statistics.data.gov.uk/id/local-authority/38,Oxfordshire County Council,TREE MAINT OPS,30/03/2022,5526,Payments to Private Contractors,2200973514,590,Acreman's Arboriculture Ltd
http://statistics.data.gov.uk/id/local-authority/38,Oxfordshire County Council,Delegated Health Tasks  - Under 65,22/03/2022,5691,,3111147849,590.36,Bluebird Care (Oxford South & West)
http://statistics.data.gov.uk/id/local-authority/38,Oxfordshire County Council,LD Continuing Care - Sup at Home - U65,18/03/2022,5691,,3111146745,591.03,Paterson Recruitment
http://statistics.data.gov.uk/id/local-authority/38,Oxfordshire County Council,Community Support Service - Abingdon,11/03/2022,4232,Vehicle Fuel,2200965155,591.41,Allstar Business Solutions Ltd
http://statistics.data.gov.uk/id/local-authority/38,Oxfordshire County Council,Delegated Health Tasks  - Over 65,15/03/2022,5691,,3111145571,592,SEABROOK SERVICES LTD
http://statistics.data.gov.uk/id/local-authority/38,Oxfordshire County Council,Delegated Health Tasks  - Over 65,28/03/2022,5691,,3111149382,592,SEABROOK SERVICES LTD
http://statistics.data.gov.uk/id/local-authority/38,Oxfordshire County Council,Support at Home 65+ Physical Support,29/03/2022,5689,,3111151532,592.08,Oxfordshire Crossroads
http://statistics.data.gov.uk/id/local-authority/38,Oxfordshire County Council,Support at Home 65+ Learning Disability,10/03/2022,5690,,3111137996,592.1,Style Acre
http://statistics.data.gov.uk/id/local-authority/38,Oxfordshire County Council,Support at Home U65 Physical Support,01/03/2022,5689,,3111132970,592.63,Care Outlook Ltd
http://statistics.data.gov.uk/id/local-authority/38,Oxfordshire County Council,Support at Home U65 Physical Support,29/03/2022,5698,,3111151326,593.25,Oxford Private Care
http://statistics.data.gov.uk/id/local-authority/38,Oxfordshire County Council,Delegated Health Tasks  - Over 65,01/03/2022,5689,,3111133272,593.71,Oxfordshire Crossroads
http://statistics.data.gov.uk/id/local-authority/38,Oxfordshire County Council,Community Support Service Wantage,10/03/2022,2040,Agency Staff,2200964281,594,Completely Care Ltd
http://statistics.data.gov.uk/id/local-authority/38,Oxfordshire County Council,,04/03/2022,1448,Blackfield Inc & Exp A/c,3111136052,594,OCC One Time Vendor
http://statistics.data.gov.uk/id/local-authority/38,Oxfordshire County Council,Covid 19 CHC,10/03/2022,5687,,3111142043,594,OSJ  - Old Station House
http://statistics.data.gov.uk/id/local-authority/38,Oxfordshire County Council,SEN TRANSPORT,14/03/2022,5227,Other Transport Arrangements,3111142988,594,Oxon Transport Services Ltd
http://statistics.data.gov.uk/id/local-authority/38,Oxfordshire County Council,Support at Home U65 MH OBC Contract,09/03/2022,5691,,3111137676,594.12,Care With Dignity Partnerships
http://statistics.data.gov.uk/id/local-authority/38,Oxfordshire County Council,Contingency Home Care,29/03/2022,5689,,3111151866,594.18,Oxford University Hospitals NHS FT
http://statistics.data.gov.uk/id/local-authority/38,Oxfordshire County Council,Support at Home 65+ Memory & Cognition,11/03/2022,5693,,3111142525,594.25,GET CARE LIMITED
http://statistics.data.gov.uk/id/local-authority/38,Oxfordshire County Council,Support at Home 65+ Physical Support,29/03/2022,5699,,3111150572,594.25,YOD Ltd
http://statistics.data.gov.uk/id/local-authority/38,Oxfordshire County Council,Support at Home 65+ Physical Support,15/03/2022,5899,Social Care - Direct Payments,3111144887,594.52,Purple Conversation Com In Co (DP)
http://statistics.data.gov.uk/id/local-authority/38,Oxfordshire County Council,Support at Home U65 Physical Support,01/03/2022,5689,,3111133495,594.58,Golden Services Care Ltd
http://statistics.data.gov.uk/id/local-authority/38,Oxfordshire County Council,Independent Hospital School Placements,22/03/2022,4861,Hired and Contracted Services,2200969857,595,Huntercombe Hospital Maidenhead
http://statistics.data.gov.uk/id/local-authority/38,Oxfordshire County Council,SEN TRANSPORT,14/03/2022,5227,Other Transport Arrangements,3111143055,595,Oxon Transport Services Ltd
http://statistics.data.gov.uk/id/local-authority/38,Oxfordshire County Council,TRANSLATION,01/03/2022,5668,Technical and Professional Consultant F,2200960022,595.46,K International PLC
http://statistics.data.gov.uk/id/local-authority/38,Oxfordshire County Council,Support at Home 65+ Physical Support,01/03/2022,5689,,3111133776,595.57,Kare Plus Oxford
http://statistics.data.gov.uk/id/local-authority/38,Oxfordshire County Council,Support at Home U65 Physical Support,15/03/2022,5899,Social Care - Direct Payments,3111144242,596,Personal Redacted Data
http://statistics.data.gov.uk/id/local-authority/38,Oxfordshire County Council,Contingency Home Care,01/03/2022,5689,,3111133932,596.23,Oxford University Hospitals NHS FT
http://statistics.data.gov.uk/id/local-authority/38,Oxfordshire County Council,2 YEAR OLD FUNDING,31/03/2022,5537,Payments to Other Establishments,3111153252,596.4,Pegasus Primary School
http://statistics.data.gov.uk/id/local-authority/38,Oxfordshire County Council,Support at Home U65 MH OBC Contract,01/03/2022,5689,,3111133203,596.69,Casa Care Ltd
http://statistics.data.gov.uk/id/local-authority/38,Oxfordshire County Council,SEN TRANSPORT,08/03/2022,5227,Other Transport Arrangements,3111136540,596.7,LINK SHIRES LTD
http://statistics.data.gov.uk/id/local-authority/38,Oxfordshire County Council,Corp Proc Service,03/03/2022,4940,Other Services,2200961139,596.8,WATERMAN ASPEN LTD
http://statistics.data.gov.uk/id/local-authority/38,Oxfordshire County Council,SEN TRANSPORT,17/03/2022,5227,Other Transport Arrangements,3111146181,597,24/7 LTD
http://statistics.data.gov.uk/id/local-authority/38,Oxfordshire County Council,MENTAL CAPACITY,01/03/2022,4940,Other Services,2200960214,597,Dr Hasanen Al-Taiar
http://statistics.data.gov.uk/id/local-authority/38,Oxfordshire County Council,Support at Home U65 HFA,10/03/2022,5690,,3111138103,597.27,Real Life Options
http://statistics.data.gov.uk/id/local-authority/38,Oxfordshire County Council,Support at Home 65+ Physical Support,01/03/2022,5698,,3111133186,597.46,Day & Night Care Assistance
http://statistics.data.gov.uk/id/local-authority/38,Oxfordshire County Council,Support at Home U65 Other /Soc Isolation,10/03/2022,5690,,3111138028,597.86,ADVANCE HOUSING & SUPPORT LTD
http://statistics.data.gov.uk/id/local-authority/38,Oxfordshire County Council,Support at Home 65+ Physical Support,30/03/2022,5693,,3111152692,598,Kwikfix Recruitment Services Ltd
http://statistics.data.gov.uk/id/local-authority/38,Oxfordshire County Council,Support at Home U65 Memory & Cognition,25/03/2022,5693,,3111149007,598,Star Projections
http://statistics.data.gov.uk/id/local-authority/38,Oxfordshire County Council,Support at Home 65+ Physical Support,01/03/2022,5689,,3111133823,598.24,My Carer Ltd
http://statistics.data.gov.uk/id/local-authority/38,Oxfordshire County Council,Support at Home U65 MH OBC Contract,29/03/2022,5689,,3111151523,598.37,Casa Care Ltd
http://statistics.data.gov.uk/id/local-authority/38,Oxfordshire County Council,Support at Home 65+ Physical Support,01/03/2022,5698,,3111133176,598.84,Day & Night Care Assistance
http://statistics.data.gov.uk/id/local-authority/38,Oxfordshire County Council,LIBRARY COLLECTIONS,10/03/2022,4539,"Books, DVDs and CDs",2200964566,599.04,ULVERSCROFT LARGE PRINT BOOKS LTD
http://statistics.data.gov.uk/id/local-authority/38,Oxfordshire County Council,Support at Home U65 Physical Support,15/03/2022,5899,Social Care - Direct Payments,3111144486,599.08,Purple Conversation Com In Co (DP)
http://statistics.data.gov.uk/id/local-authority/38,Oxfordshire County Council,TRANSPORT COSTS,09/03/2022,4330,Transport to School Activities,3111137360,599.39,LINK SHIRES LTD
http://statistics.data.gov.uk/id/local-authority/38,Oxfordshire County Council,Support at Home U65 Learning Disability,14/03/2022,5688,,3111142859,599.4,Dimensions (UK) Ltd
http://statistics.data.gov.uk/id/local-authority/38,Oxfordshire County Council,Support at Home U65 Learning Disability,15/03/2022,5227,Other Transport Arrangements,3111143348,599.8,The Oxfordshire Taxi Company Ltd T/
http://statistics.data.gov.uk/id/local-authority/38,Oxfordshire County Council,Support at Home 65+ Physical Support,01/03/2022,5689,,3111134122,599.98,Premier Personal Care
http://statistics.data.gov.uk/id/local-authority/38,Oxfordshire County Council,Fire Protection,09/03/2022,4494,Purchase of IT Equipment,2200964075,599.99,Kingsfield Computer Products Ltd
http://statistics.data.gov.uk/id/local-authority/38,Oxfordshire County Council,SEN TRANSPORT,30/03/2022,5227,Other Transport Arrangements,3111152870,600,A2B Castle Cars Ltd
http://statistics.data.gov.uk/id/local-authority/38,Oxfordshire County Council,Support at Home U65 Physical Support,30/03/2022,5227,Other Transport Arrangements,3111152459,600,ACE CARS BANBURY LTD
http://statistics.data.gov.uk/id/local-authority/38,Oxfordshire County Council,SEN TRANSPORT,01/03/2022,5227,Other Transport Arrangements,3111132381,600,AKR Ltd
http://statistics.data.gov.uk/id/local-authority/38,Oxfordshire County Council,SEN TRANSPORT,01/03/2022,5227,Other Transport Arrangements,3111132457,600,Ali's Cabs
http://statistics.data.gov.uk/id/local-authority/38,Oxfordshire County Council,SEN TRANSPORT,01/03/2022,4330,Transport to School Activities,3111132459,600,Ali's Cabs
http://statistics.data.gov.uk/id/local-authority/38,Oxfordshire County Council,POST 16 SEN,22/03/2022,4330,Transport to School Activities,3111147259,600,Ali's Cabs
http://statistics.data.gov.uk/id/local-authority/38,Oxfordshire County Council,POST18 UASC DCSF FND,24/03/2022,3942,Hire of Accommodation and Facilities,3111148589,600,Personal Redacted Data
http://statistics.data.gov.uk/id/local-authority/38,Oxfordshire County Council,LEGAL SERVICES,11/03/2022,5251,Legal Costs,2200965979,600,Annie Sayers
http://statistics.data.gov.uk/id/local-authority/38,Oxfordshire County Council,SEN TRANSPORT,22/03/2022,5227,Other Transport Arrangements,3111147385,600,Banbury Taxis
http://statistics.data.gov.uk/id/local-authority/38,Oxfordshire County Council,SEN TRANSPORT,07/03/2022,5227,Other Transport Arrangements,3111136220,600,C&M Management Services Ltd
http://statistics.data.gov.uk/id/local-authority/38,Oxfordshire County Council,Household Support Fund,25/03/2022,4939,,3111148730,600,Cherry Tree Nursery (Oxford)
http://statistics.data.gov.uk/id/local-authority/38,Oxfordshire County Council,Household Support Fund,25/03/2022,4939,,3111149113,600,Christopher Rawlins Primary School
http://statistics.data.gov.uk/id/local-authority/38,Oxfordshire County Council,SEN TRANSPORT,04/03/2022,5227,Other Transport Arrangements,3111136095,600,Crown Cabs Travel Ltd
http://statistics.data.gov.uk/id/local-authority/38,Oxfordshire County Council,WASTE REDUCTION GEN,18/03/2022,4790,"Publicity, Promotions and Advertisement",2200968624,600,Crystal Publications
http://statistics.data.gov.uk/id/local-authority/38,Oxfordshire County Council,SEN TRANSPORT,07/03/2022,5227,Other Transport Arrangements,3111136442,600,D & A Nichols
http://statistics.data.gov.uk/id/local-authority/38,Oxfordshire County Council,SEN TRANSPORT,07/03/2022,5227,Other Transport Arrangements,3111136444,600,D & A Nichols
http://statistics.data.gov.uk/id/local-authority/38,Oxfordshire County Council,MAINSTREAM-SECONDARY,07/03/2022,4330,Transport to School Activities,3111136274,600,D�Arrive Ltd
http://statistics.data.gov.uk/id/local-authority/38,Oxfordshire County Council,Household Support Fund,25/03/2022,4939,,3111149118,600,Dr Radcliffe's CE Primary
http://statistics.data.gov.uk/id/local-authority/38,Oxfordshire County Council,SEN TRANSPORT,11/03/2022,5227,Other Transport Arrangements,3111142436,600,Eagle Taxi
http://statistics.data.gov.uk/id/local-authority/38,Oxfordshire County Council,LEGAL SERVICES,29/03/2022,5251,Legal Costs,2200973045,600,Elisabeth Wickham
http://statistics.data.gov.uk/id/local-authority/38,Oxfordshire County Council,SEN TRANSPORT,01/03/2022,5227,Other Transport Arrangements,3111132392,600,Faringdon Cars
http://statistics.data.gov.uk/id/local-authority/38,Oxfordshire County Council,LEGAL SERVICES,22/03/2022,5251,Legal Costs,2200969487,600,Fazeela Ishmael
http://statistics.data.gov.uk/id/local-authority/38,Oxfordshire County Council,LEGAL SERVICES,25/03/2022,5251,Legal Costs,2200971800,600,Fazeela Ishmael
http://statistics.data.gov.uk/id/local-authority/38,Oxfordshire County Council,LEGAL SERVICES,29/03/2022,5251,Legal Costs,2200972965,600,Fazeela Ishmael
http://statistics.data.gov.uk/id/local-authority/38,Oxfordshire County Council,LEGAL SERVICES,29/03/2022,5251,Legal Costs,2200973127,600,Fazeela Ishmael
http://statistics.data.gov.uk/id/local-authority/38,Oxfordshire County Council,CHC Fast Track - Care Homes - Over 65,10/03/2022,5687,,3111140328,600,Freeland House
http://statistics.data.gov.uk/id/local-authority/38,Oxfordshire County Council,Support at Home U65 Physical Support,16/03/2022,5697,,3111145640,600,Headway Oxford
http://statistics.data.gov.uk/id/local-authority/38,Oxfordshire County Council,Support at Home U65 Physical Support,11/03/2022,5693,,3111142538,600,HEALTHCARE ACCESS LTD
http://statistics.data.gov.uk/id/local-authority/38,Oxfordshire County Council,Support at Home U65 Physical Support,30/03/2022,5693,,3111152680,600,HEALTHCARE ACCESS LTD
http://statistics.data.gov.uk/id/local-authority/38,Oxfordshire County Council,LAC PUPIL PREMIUM,21/03/2022,5537,Payments to Other Establishments,3111147000,600,Heath Farm School
http://statistics.data.gov.uk/id/local-authority/38,Oxfordshire County Council,SEN TRANSPORT,22/03/2022,5227,Other Transport Arrangements,3111147305,600,Henley Taxis Ltd
http://statistics.data.gov.uk/id/local-authority/38,Oxfordshire County Council,TRANSPORT COSTS,21/03/2022,4330,Transport to School Activities,3111146760,600,Her Ride Limited
http://statistics.data.gov.uk/id/local-authority/38,Oxfordshire County Council,SEN TRANSPORT,22/03/2022,5227,Other Transport Arrangements,3111147204,600,Her Ride Limited
http://statistics.data.gov.uk/id/local-authority/38,Oxfordshire County Council,SEN TRANSPORT,22/03/2022,5227,Other Transport Arrangements,3111147213,600,Her Ride Limited
http://statistics.data.gov.uk/id/local-authority/38,Oxfordshire County Council,SEN TRANSPORT,22/03/2022,5227,Other Transport Arrangements,3111147215,600,Her Ride Limited
http://statistics.data.gov.uk/id/local-authority/38,Oxfordshire County Council,SEN TRANSPORT,22/03/2022,5227,Other Transport Arrangements,3111147222,600,Her Ride Limited
http://statistics.data.gov.uk/id/local-authority/38,Oxfordshire County Council,Household Support Fund,25/03/2022,4939,,3111148786,600,Hobby Horse Childrens Centre
http://statistics.data.gov.uk/id/local-authority/38,Oxfordshire County Council,LAC PUPIL PREMIUM,25/03/2022,5380,"Author, Speaker and Lecturer Fees",2200971506,600,Ian D Ll Jones
http://statistics.data.gov.uk/id/local-authority/38,Oxfordshire County Council,Children in Care Non-staffing - North,30/03/2022,5394,Other Expenses,3111152820,600,Jamores Limited
http://statistics.data.gov.uk/id/local-authority/38,Oxfordshire County Council,LD Continuing Care - Sup at Home - U65,28/03/2022,5691,,3111149488,600,KIT Mobility Taxis Oxford Ltd
http://statistics.data.gov.uk/id/local-authority/38,Oxfordshire County Council,LD Continuing Care - Sup at Home - U65,28/03/2022,5691,,3111149489,600,KIT Mobility Taxis Oxford Ltd
http://statistics.data.gov.uk/id/local-authority/38,Oxfordshire County Council,Household Support Fund,25/03/2022,4939,,3111148811,600,Lake Street Nursery
http://statistics.data.gov.uk/id/local-authority/38,Oxfordshire County Council,SEN TRANSPORT,11/03/2022,5227,Other Transport Arrangements,3111142638,600,Luxicars Ltd
http://statistics.data.gov.uk/id/local-authority/38,Oxfordshire County Council,SEN TRANSPORT,11/03/2022,5227,Other Transport Arrangements,3111142640,600,Luxicars Ltd
http://statistics.data.gov.uk/id/local-authority/38,Oxfordshire County Council,SEN TRANSPORT,11/03/2022,5227,Other Transport Arrangements,3111142646,600,Luxicars Ltd
http://statistics.data.gov.uk/id/local-authority/38,Oxfordshire County Council,SEN TRANSPORT,11/03/2022,5227,Other Transport Arrangements,3111142648,600,Luxicars Ltd
http://statistics.data.gov.uk/id/local-authority/38,Oxfordshire County Council,SEN TRANSPORT,11/03/2022,5227,Other Transport Arrangements,3111142654,600,Luxicars Ltd
http://statistics.data.gov.uk/id/local-authority/38,Oxfordshire County Council,SEN TRANSPORT,11/03/2022,5227,Other Transport Arrangements,3111142658,600,Luxicars Ltd
http://statistics.data.gov.uk/id/local-authority/38,Oxfordshire County Council,LEGAL SERVICES,18/03/2022,5251,Legal Costs,2200968730,600,Ms Emma Gatland
http://statistics.data.gov.uk/id/local-authority/38,Oxfordshire County Council,SEN Alternative Provision,22/03/2022,4878,Hired and Contracted Services (Curricul,2200969530,600,NHance Maths Academy
http://statistics.data.gov.uk/id/local-authority/38,Oxfordshire County Council,,24/03/2022,1441,Uncleared Misc Income Receipts,2200970896,600,OCC Chipping Norton Lib Bank
http://statistics.data.gov.uk/id/local-authority/38,Oxfordshire County Council,CONTRACEPTION,18/03/2022,4861,Hired and Contracted Services,3111146597,600,OCC One Time Vendor
http://statistics.data.gov.uk/id/local-authority/38,Oxfordshire County Council,Oxfordshire Adoption Support Fund,29/03/2022,6500,Government Grants (Revenue),3111149770,600,OCC One Time Vendor
http://statistics.data.gov.uk/id/local-authority/38,Oxfordshire County Council,Wokingham Adoption Support Fund,29/03/2022,6500,Government Grants (Revenue),3111149819,600,OCC One Time Vendor
http://statistics.data.gov.uk/id/local-authority/38,Oxfordshire County Council,SEN TRANSPORT,01/03/2022,5227,Other Transport Arrangements,3111132473,600,Oxfordshire Travel Ltd
http://statistics.data.gov.uk/id/local-authority/38,Oxfordshire County Council,SEN TRANSPORT,01/03/2022,5227,Other Transport Arrangements,3111132500,600,Oxfordshire Travel Ltd
http://statistics.data.gov.uk/id/local-authority/38,Oxfordshire County Council,Care Packages & Placements- LD - OCC,02/03/2022,5227,Other Transport Arrangements,3111137612,600,Oxon Transport Services Ltd
http://statistics.data.gov.uk/id/local-authority/38,Oxfordshire County Council,TRANSPORT COSTS,02/03/2022,4330,Transport to School Activities,3111137632,600,Oxon Transport Services Ltd
http://statistics.data.gov.uk/id/local-authority/38,Oxfordshire County Council,Family Solutions Plus Non-staff - South,02/03/2022,5227,Other Transport Arrangements,3111137651,600,Oxon Transport Services Ltd
http://statistics.data.gov.uk/id/local-authority/38,Oxfordshire County Council,SEN TRANSPORT,14/03/2022,5227,Other Transport Arrangements,3111142912,600,Oxon Transport Services Ltd
http://statistics.data.gov.uk/id/local-authority/38,Oxfordshire County Council,SEN TRANSPORT,14/03/2022,5227,Other Transport Arrangements,3111142916,600,Oxon Transport Services Ltd
http://statistics.data.gov.uk/id/local-authority/38,Oxfordshire County Council,SEN TRANSPORT,14/03/2022,5227,Other Transport Arrangements,3111142925,600,Oxon Transport Services Ltd
http://statistics.data.gov.uk/id/local-authority/38,Oxfordshire County Council,SEN TRANSPORT,14/03/2022,5227,Other Transport Arrangements,3111142927,600,Oxon Transport Services Ltd
http://statistics.data.gov.uk/id/local-authority/38,Oxfordshire County Council,SEN TRANSPORT,14/03/2022,5227,Other Transport Arrangements,3111142934,600,Oxon Transport Services Ltd
http://statistics.data.gov.uk/id/local-authority/38,Oxfordshire County Council,SEN TRANSPORT,14/03/2022,5227,Other Transport Arrangements,3111142949,600,Oxon Transport Services Ltd
http://statistics.data.gov.uk/id/local-authority/38,Oxfordshire County Council,SEN TRANSPORT,14/03/2022,5227,Other Transport Arrangements,3111142952,600,Oxon Transport Services Ltd
http://statistics.data.gov.uk/id/local-authority/38,Oxfordshire County Council,SEN TRANSPORT,14/03/2022,5227,Other Transport Arrangements,3111142954,600,Oxon Transport Services Ltd
http://statistics.data.gov.uk/id/local-authority/38,Oxfordshire County Council,SEN TRANSPORT,14/03/2022,5227,Other Transport Arrangements,3111142958,600,Oxon Transport Services Ltd
http://statistics.data.gov.uk/id/local-authority/38,Oxfordshire County Council,SEN TRANSPORT,14/03/2022,5227,Other Transport Arrangements,3111142966,600,Oxon Transport Services Ltd
http://statistics.data.gov.uk/id/local-authority/38,Oxfordshire County Council,SEN TRANSPORT,14/03/2022,5227,Other Transport Arrangements,3111142977,600,Oxon Transport Services Ltd
http://statistics.data.gov.uk/id/local-authority/38,Oxfordshire County Council,SEN TRANSPORT,14/03/2022,5227,Other Transport Arrangements,3111142992,600,Oxon Transport Services Ltd
http://statistics.data.gov.uk/id/local-authority/38,Oxfordshire County Council,SEN TRANSPORT,14/03/2022,5227,Other Transport Arrangements,3111142996,600,Oxon Transport Services Ltd
http://statistics.data.gov.uk/id/local-authority/38,Oxfordshire County Council,SEN TRANSPORT,14/03/2022,5227,Other Transport Arrangements,3111142999,600,Oxon Transport Services Ltd
